Workbook

Sheet 40104
A1: م | B1: DATE التاريخ | C1: NO TRUCK رقم السيارة | D1: NO TICKET رقم الفاتورة | E1: DESTINATION الموقع | F1: CRUCHER الكسارة | G1: MATERIAL المادة | H1: NETWET الوزن | I1: RATE سعر الطن | J1: TOTAL الاجمالى | K1: FUJ ت/فجيرة | L1: SAEEDY ت/ساعدي | M1: DHAID ت/الذيد | N1: ZUBAIR ت/الزبير | O1: ALGHAIL ت/الغيل | P1: KADRAA ت/كدرة | Q1: DIESEL الديزل | R1: SALARY الراتب
A2: =ROW()-1 -> 1 | B2: 2019-03-01 | C2: 40104 | D2: 141337 | E2: MUSSAFAH | F2: AL FUTTAIM | G2: Road base | H2: 78.14 | I2: =IF(AND(F2="RIDI SIDI"),"16.65",IF(AND(F2="CENTRAL",E2="DUBAI"),"19",IF(AND(F2="CENTRAL",E2="JEBEL ALI"),"21",IF(AND(F2="AL RAWASI"),"16.65",IF(AND(F2="AL NAKHEEL"),"16.65",IF(AND(F2="WB"),"22.60",IF(AND(F2="AL BARRAK",E2="DUCON"),"21.97",IF(AND(F2="AL KAWTHER",E2="DUCON"),"21.97",IF(AND(F2="AL KAWTHER"),"22.5",IF(AND(F2="AL FUTTAIM",E2="JEBEL ALI"),"8.75",IF(AND(F2="AL FUTTAIM",E2="MAFRAQ"),"16",IF(AND(F2="AL FUTTAIM",E2="AL QUOZ"),"7.70",IF(AND(F2="AL FUTTAIM",E2="MUSSAFAH"),"16.90",IF(AND(F2="AL FUTTAIM",E2="NAD AL SHEBA"),"8.50",IF(AND(F2="AL FUTTAIM",E2="MAHAWI"),"16.90",IF(AND(F2="AL RAWDA",E2="MADAM"),"24.50",)))))))))))))))) -> 16.90 | J2: =I2*H2 -> 1320.566 | M2: 420.5 | P2: 550 | Q2: 0 | R2: 180
A3: 2 | B3: 2019-03-02 | C3: 40104 | D3: 141396 | E3: AL QUOZ | F3: AL FUTTAIM | G3: Road base | H3: 79.54 | I3: 7.70 | J3: 612.458 | M3: 420.5 | P3: 550 | Q3: 0 | R3: 70
A4: 3 | B4: 2019-03-03 | C4: 40104 | D4: 2213818 | E4: Cement Factory | F4: AL RAWASI | G4: Road base | H4: 79.58 | I4: 16.65 | J4: 1325.007 | L4: 300 | M4: 420.5 | Q4: 0 | R4: 75
A5: 4 | B5: 2019-03-03 | C5: 40104 | D5: 141521 | E5: JEBEL ALI | F5: AL FUTTAIM | G5: Road base | H5: 78.52 | I5: 8.75 | J5: 687.05 | M5: 420.5 | P5: 550 | Q5: 0 | R5: 80
A6: 5 | B6: 2019-03-03 | C6: 40104 | D6: 141437 | E6: MUSSAFAH | F6: AL FUTTAIM | G6: Road base | H6: 78.28 | I6: 16.90 | J6: 1322.932 | M6: 420.5 | P6: 550 | Q6: 0 | R6: 180
A7: 6 | B7: 2019-03-04 | C7: 40104 | D7: 141564 | E7: AL QUOZ | F7: AL FUTTAIM | G7: Road base | H7: 79.56 | I7: 7.70 | J7: 612.612 | M7: 420.5 | P7: 550 | Q7: 0 | R7: 70
A8: 7 | B8: 2019-03-04 | C8: 40104 | D8: 141611 | E8: JEBEL ALI | F8: AL RAWASI | G8: Road base | H8: 78.72 | I8: 16.65 | J8: 1310.688 | M8: 420.5 | P8: 550 | Q8: 0 | R8: 80
A9: 8 | B9: 2019-03-05 | C9: 40104 | D9: 141658 | E9: MAFRAQ | F9: AL FUTTAIM | G9: Road base | H9: 76.54 | I9: 16 | J9: 1224.64 | M9: 420.5 | P9: 550 | Q9: 0 | R9: 160
A10: 9 | B10: 2019-03-06 | C10: 40104 | D10: 2214141 | E10: Cement Factory | F10: AL RAWASI | G10: Road base | H10: 83.58 | I10: 16.65 | J10: 1391.607 | L10: 300 | Q10: 0 | R10: 100
A11: 10 | B11: 2019-03-06 | C11: 40104 | D11: 2214280 | E11: Cement Factory | F11: AL RAWASI | G11: Road base | H11: 78.76 | I11: 16.65 | J11: 1311.354 | L11: 300 | M11: 420.5 | Q11: 0 | R11: 75
A12: 11 | B12: 2019-03-06 | C12: 40104 | D12: 2214214 | E12: Cement Factory | F12: AL RAWASI | G12: Road base | H12: 81.24 | I12: 16.65 | J12: 1352.646 | L12: 300 | M12: 420.5 | Q12: 0 | R12: 75
A13: 12 | B13: 2019-03-07 | C13: 40104 | D13: 2214314 | E13: Cement Factory | F13: AL RAWASI | G13: Road base | H13: 86.42 | I13: 16.65 | J13: 1438.893 | L13: 300 | Q13: 0 | R13: 100
A14: 13 | B14: 2019-03-07 | C14: 40104 | D14: 2214461 | E14: Cement Factory | F14: AL RAWASI | G14: Road base | H14: 80.42 | I14: 16.65 | J14: 1338.993 | L14: 300 | M14: 420.5 | Q14: 0 | R14: 75
A15: 14 | B15: 2019-03-07 | C15: 40104 | D15: 141845 | E15: JEBEL ALI | F15: AL FUTTAIM | G15: Road base | H15: 77.66 | I15: 8.75 | J15: 679.525 | M15: 420.5 | P15: 550 | Q15: 0 | R15: 80
A16: 15 | B16: 2019-03-08 | C16: 40104 | D16: 2214611 | E16: Cement Factory | F16: AL RAWASI | G16: Road base | H16: 84 | I16: 16.65 | J16: 1398.6 | L16: 300 | Q16: 0 | R16: 100
A17: 16 | B17: 2019-03-08 | C17: 40104 | D17: 2214848 | E17: Cement Factory | F17: AL RAWASI | G17: Road base | H17: 89.6 | I17: 16.65 | J17: 1491.84 | L17: 300 | M17: 420.5 | Q17: 0 | R17: 75
A18: 17 | B18: 2019-03-08 | C18: 40104 | D18: 2214775 | E18: Cement Factory | F18: AL RAWASI | G18: Road base | H18: 74.64 | I18: 16.65 | J18: 1242.756 | L18: 300 | M18: 420.5 | Q18: 0 | R18: 75
A19: 18 | B19: 2019-03-09 | C19: 40104 | D19: 2214914 | E19: Cement Factory | F19: AL RAWASI | G19: Road base | H19: 84.62 | I19: 16.65 | J19: 1408.923 | L19: 300 | Q19: 0 | R19: 100
A20: 19 | B20: 2019-03-09 | C20: 40104 | D20: 2215117 | E20: Cement Factory | F20: AL RAWASI | G20: Road base | H20: 80.76 | I20: 16.65 | J20: 1344.654 | L20: 300 | M20: 420.5 | Q20: 0 | R20: 75
A21: 20 | B21: 2019-03-09 | C21: 40104 | D21: 2215049 | E21: Cement Factory | F21: AL RAWASI | G21: Road base | H21: 87.8 | I21: 16.65 | J21: 1461.87 | L21: 300 | M21: 420.5 | Q21: 0 | R21: 75
A22: 21 | B22: 2019-03-10 | C22: 40104 | D22: 2215149 | E22: Cement Factory | F22: AL RAWASI | G22: Road base | H22: 81.84 | I22: 16.65 | J22: 1362.636 | L22: 300 | Q22: 0 | R22: 100
A23: 22 | B23: 2019-03-10 | C23: 40104 | D23: 142192 | E23: AL QUOZ | F23: AL FUTTAIM | G23: Road base | H23: 78.3 | I23: 7.70 | J23: 602.91 | M23: 420.5 | P23: 550 | Q23: 0 | R23: 70
A24: 23 | B24: 2019-03-11 | C24: 40104 | D24: 2215276 | E24: Cement Factory | F24: AL RAWASI | G24: Road base | H24: 75.52 | I24: 16.65 | J24: 1257.408 | L24: 300 | Q24: 0 | R24: 100
A25: 24 | B25: 2019-03-11 | C25: 40104 | D25: 901370 | E25: DUCON | F25: AL BARRAK | G25: Road base | H25: 76.82 | I25: 21.97 | J25: 1687.7354 | K25: 540 | M25: 420.5 | Q25: 0 | R25: 90
A26: 25 | B26: 2019-03-12 | C26: 40104 | D26: 2215474 | E26: Cement Factory | F26: AL RAWASI | G26: Road base | H26: 81.52 | I26: 16.65 | J26: 1357.308 | L26: 300 | Q26: 0 | R26: 100
A27: 26 | B27: 2019-03-12 | C27: 40104 | D27: 901558 | E27: DUCON | F27: AL BARRAK | G27: Road base | H27: 83.56 | I27: 21.97 | J27: 1835.8132 | K27: 590 | M27: 420.5 | Q27: 0 | R27: 80
A28: 27 | B28: 2019-03-13 | C28: 40104 | D28: 2217647 | E28: Cement Factory | F28: AL RAWASI | G28: Road base | H28: 83.58 | I28: 16.65 | J28: 1391.607 | L28: 300 | Q28: 0 | R28: 100
A29: 28 | C29: 40104 | E29: JEBEL ALI | F29: AL FUTTAIM | G29: Road base | I29: 8.75 | J29: 0 | Q29: 0 | R29: 80
A30: 29 | C30: 40104 | E30: MAFRAQ | F30: AL FUTTAIM | G30: Road base | I30: 16 | J30: 0 | Q30: 0 | R30: 160
A31: 30 | C31: 40104 | E31: DUCON | F31: AL BARRAK | G31: Road base | I31: 21.97 | J31: 0 | Q31: 0 | R31: 90
A32: 31 | C32: 40104 | E32: AL QUOZ | F32: AL FUTTAIM | G32: Road base | I32: 7.70 | J32: 0 | Q32: 0 | R32: 70
A33: 32 | C33: 40104 | E33: AL QUOZ | F33: AL FUTTAIM | G33: Road base | I33: 7.70 | J33: 0 | Q33: 0 | R33: 70
A34: =ROW()-1 -> 33 | C34: 40104 | E34: MAFRAQ | F34: AL FUTTAIM | G34: Road base | I34: =IF(AND(F34="RIDI SIDI"),"16.65",IF(AND(F34="CENTRAL",E34="DUBAI"),"19",IF(AND(F34="CENTRAL",E34="JEBEL ALI"),"21",IF(AND(F34="AL RAWASI"),"16.65",IF(AND(F34="AL NAKHEEL"),"16.65",IF(AND(F34="WB"),"22.60",IF(AND(F34="AL BARRAK",E34="DUCON"),"21.97",IF(AND(F34="AL KAWTHER",E34="DUCON"),"21.97",IF(AND(F34="AL KAWTHER"),"22.5",IF(AND(F34="AL FUTTAIM",E34="JEBEL ALI"),"8.75",IF(AND(F34="AL FUTTAIM",E34="MAFRAQ"),"16",IF(AND(F34="AL FUTTAIM",E34="AL QUOZ"),"7.70",IF(AND(F34="AL FUTTAIM",E34="MUSSAFAH"),"16.90",IF(AND(F34="AL FUTTAIM",E34="NAD AL SHEBA"),"8.50",IF(AND(F34="AL FUTTAIM",E34="MAHAWI"),"16.90",IF(AND(F34="AL RAWDA",E34="MADAM"),"24.50",)))))))))))))))) -> 16 | J34: =I34*H34 -> 0 | Q34: 0 | R34: 160
A35: 34 | C35: 40104 | E35: MAFRAQ | F35: AL FUTTAIM | G35: Road base | I35: 16 | J35: 0 | Q35: 0 | R35: 160
A36: 35 | C36: 40104 | E36: AL QUOZ | F36: AL FUTTAIM | G36: Road base | I36: 7.70 | J36: 0 | Q36: 0 | R36: 70
A37: 36 | C37: 40104 | E37: AL QUOZ | F37: AL FUTTAIM | G37: Road base | I37: 7.70 | J37: 0 | Q37: 0 | R37: 70
A38: 37 | C38: 40104 | E38: JEBEL ALI | F38: AL FUTTAIM | G38: Road base | I38: 8.75 | J38: 0 | Q38: 0 | R38: 80
A39: 38 | C39: 40104 | E39: DUCON | F39: AL KAWTHER | G39: Road base | I39: 21.97 | J39: 0 | Q39: 0
A40: 39 | C40: 40104 | E40: Cement Factory | F40: AL RAWASI | G40: Road base | I40: 16.65 | J40: 0 | Q40: 0
A41: 40 | C41: 40104 | E41: DUCON | F41: AL KAWTHER | G41: Road base | I41: 21.97 | J41: 0 | Q41: 0
A42: 41 | C42: 40104 | E42: Cement Factory | F42: AL RAWASI | G42: Road base | I42: 16.65 | J42: 0 | Q42: 0
A43: 42 | C43: 40104 | E43: Cement Factory | F43: AL RAWASI | G43: Road base | I43: 16.65 | J43: 0 | Q43: 0
A44: 43 | C44: 40104 | E44: DUCON | F44: AL KAWTHER | G44: Road base | I44: 21.97 | J44: 0 | Q44: 0
A45: 44 | C45: 40104 | E45: Cement Factory | F45: AL RAWASI | G45: Road base | I45: 16.65 | J45: 0 | Q45: 0
A46: 45 | C46: 40104 | E46: Cement Factory | F46: AL NAKHEEL | G46: Road base | I46: 16.65 | J46: 0 | Q46: 0
A47: 46 | C47: 40104 | E47: DUCON | F47: AL KAWTHER | G47: Road base | I47: 21.97 | J47: 0 | Q47: 0
A48: 47 | C48: 40104 | E48: Cement Factory | F48: AL RAWASI | G48: Road base | I48: 16.65 | J48: 0 | Q48: 0
A49: 48 | C49: 40104 | E49: Cement Factory | F49: AL RAWASI | G49: Road base | I49: 16.65 | J49: 0 | Q49: 0
A50: 49 | C50: 40104 | E50: Cement Factory | F50: AL RAWASI | G50: Road base | I50: 16.65 | J50: 0 | Q50: 0
A51: 50 | C51: 40104 | E51: Cement Factory | F51: AL RAWASI | G51: Road base | I51: 16.65 | J51: 0 | Q51: 0
A52: 51 | C52: 40104 | E52: DUCON | F52: AL KAWTHER | G52: Road base | I52: 21.97 | J52: 0 | Q52: 0
A53: 52 | C53: 40104 | E53: Cement Factory | F53: AL RAWASI | G53: Road base | I53: 16.65 | J53: 0 | Q53: 0
A54: 53 | C54: 40104 | E54: DUBAI | F54: CENTRAL | G54: Road base | I54: 19 | J54: 0 | Q54: 0
A55: 54 | C55: 40104 | E55: DUCON | F55: AL KAWTHER | G55: Road base | I55: 21.97 | J55: 0 | Q55: 0
A56: 55 | C56: 40104 | E56: Cement Factory | F56: AL RAWASI | G56: Road base | I56: 16.65 | J56: 0 | Q56: 0
A57: 56 | C57: 40104 | E57: Cement Factory | F57: AL RAWASI | G57: Road base | I57: 16.65 | J57: 0 | Q57: 0
A58: 57 | C58: 40104 | E58: Cement Factory | F58: AL RAWASI | G58: Road base | I58: 16.65 | J58: 0 | Q58: 0
A59: 58 | C59: 40104 | E59: DUCON | F59: AL KAWTHER | G59: Road base | I59: 21.97 | J59: 0 | Q59: 0
A60: 59 | C60: 40104 | E60: DUCON | F60: AL KAWTHER | G60: Road base | I60: 21.97 | J60: 0 | Q60: 0
A61: 60 | C61: 40104 | E61: DUCON | F61: AL KAWTHER | G61: Road base | I61: 21.97 | J61: 0 | Q61: 0
A62: 61 | C62: 40104 | E62: DUCON | F62: AL KAWTHER | G62: Road base | I62: 21.97 | J62: 0 | Q62: 0
A63: 62 | C63: 40104 | E63: Cement Factory | F63: AL RAWASI | G63: Road base | I63: 16.65 | J63: 0 | Q63: 0
A64: 63 | C64: 40104 | E64: DUCON | F64: AL KAWTHER | G64: Road base | I64: 21.97 | J64: 0 | Q64: 0
A65: 64 | C65: 40104 | E65: Cement Factory | F65: AL RAWASI | G65: Road base | I65: 16.65 | J65: 0 | Q65: 0
A66: =ROW()-1 -> 65 | C66: 40104 | E66: Cement Factory | F66: AL RAWASI | G66: Road base | I66: =IF(AND(F66="RIDI SIDI"),"16.65",IF(AND(F66="CENTRAL",E66="DUBAI"),"19",IF(AND(F66="CENTRAL",E66="JEBEL ALI"),"21",IF(AND(F66="AL RAWASI"),"16.65",IF(AND(F66="AL NAKHEEL"),"16.65",IF(AND(F66="WB"),"22.60",IF(AND(F66="AL BARRAK",E66="DUCON"),"21.97",IF(AND(F66="AL KAWTHER",E66="DUCON"),"21.97",IF(AND(F66="AL KAWTHER"),"22.5",IF(AND(F66="AL FUTTAIM",E66="JEBEL ALI"),"8.75",IF(AND(F66="AL FUTTAIM",E66="MAFRAQ"),"16",IF(AND(F66="AL FUTTAIM",E66="AL QUOZ"),"7.70",IF(AND(F66="AL FUTTAIM",E66="MUSSAFAH"),"16.90",IF(AND(F66="AL FUTTAIM",E66="NAD AL SHEBA"),"8.50",IF(AND(F66="AL FUTTAIM",E66="MAHAWI"),"16.90",IF(AND(F66="AL RAWDA",E66="MADAM"),"24.50",)))))))))))))))) -> 16.65 | J66: =I66*H66 -> 0 | Q66: 0
A67: 66 | C67: 40104 | E67: DUCON | F67: AL KAWTHER | G67: Road base | I67: 21.97 | J67: 0 | Q67: 0
A68: 67 | C68: 40104 | E68: Cement Factory | F68: AL RAWASI | G68: Road base | I68: 16.65 | J68: 0 | Q68: 0
A69: 68 | C69: 40104 | E69: DUBAI | F69: CENTRAL | G69: Road base | I69: 19 | J69: 0 | Q69: 0
A70: 69 | C70: 40104 | E70: DUCON | F70: AL BARRAK | G70: Road base | I70: 21.97 | J70: 0 | Q70: 0
A71: 70 | C71: 40104 | E71: Cement Factory | F71: AL RAWASI | G71: Road base | I71: 16.65 | J71: 0 | Q71: 0
A72: 71 | C72: 40104 | E72: Cement Factory | F72: RIDI SIDI | G72: Road base | I72: 16.65 | J72: 0 | Q72: 0
A73: 72 | C73: 40104 | E73: Cement Factory | F73: RIDI SIDI | G73: Road base | I73: 16.65 | J73: 0 | Q73: 0
A74: 73 | C74: 40104 | E74: Cement Factory | F74: RIDI SIDI | G74: Road base | I74: 16.65 | J74: 0 | Q74: 0
A75: 74 | C75: 40104 | E75: Cement Factory | F75: RIDI SIDI | G75: Road base | I75: 16.65 | J75: 0 | Q75: 0
A76: 75 | C76: 40104 | E76: Cement Factory | F76: RIDI SIDI | G76: Road base | I76: 16.65 | J76: 0 | Q76: 0
A77: 76 | C77: 40104 | E77: Cement Factory | F77: RIDI SIDI | G77: Road base | I77: 16.65 | J77: 0 | Q77: 0
A78: 77 | C78: 40104 | E78: Cement Factory | F78: RIDI SIDI | G78: Road base | I78: 16.65 | J78: 0 | Q78: 0
A79: 78 | C79: 40104 | E79: Cement Factory | F79: RIDI SIDI | G79: Road base | I79: 16.65 | J79: 0 | Q79: 0
A80: 79 | C80: 40104 | E80: AL QUOZ | F80: AL FUTTAIM | G80: Road base | I80: 7.70 | J80: 0 | Q80: 0
A81: 80 | C81: 40104 | E81: MAFRAQ | F81: AL FUTTAIM | G81: Road base | I81: 16 | J81: 0 | Q81: 0
B82: =SUBTOTAL(2,B2:B81) -> 27 | H82: =SUBTOTAL(9,Table2[NETWET الوزن]) -> 2179.52 | I82: =SUBTOTAL(9,Table2[RATE سعر الطن]) -> 0 | J82: =SUBTOTAL(9,Table2[TOTAL الاجمالى]) -> 33773.0316 | K82: =SUBTOTAL(9,K2:K81) -> 1130 | L82: =SUBTOTAL(9,L2:L81) -> 4800 | M82: 7989.5 | N82: 0 | O82: 0 | P82: 4950 | Q82: 0 | R82: =SUBTOTAL(9,R2:R81) -> 3550
I84: فشل التجميع المطلوب كود تجميع هذا الصف لانه يحتوى على معادلات

Sheet 47912
A1: م | B1: DATE التاريخ | C1: NO TRUCK رقم السيارة | D1: NO TICKET رقم الفاتورة | E1: DESTINATION الموقع | F1: CRUCHER الكسارة | G1: MATERIAL المادة | H1: NETWET الوزن | I1: RATE سعر الطن | J1: TOTAL الاجمالى | K1: FUJ ت/فجيرة | L1: SAEEDY ت/ساعدي | M1: DHAID ت/الذيد | N1: ZUBAIR ت/الزبير | O1: ALGHAIL ت/الغيل | P1: KADRAA ت/كدرة | Q1: DIESEL الديزل | R1: SALARY الراتب | S1: NAME DRIVER اسم السائق | T1: NOTICE ملاحظات
A2: =ROW()-1 -> 1 | B2: 2019-03-01 | C2: 47912 | D2: 141335 | E2: AL QUOZ | F2: AL FUTTAIM | G2: Road base | H2: 75.76 | I2: =IF(AND(F2="RIDI SIDI"),"16.65",IF(AND(F2="CENTRAL",E2="DUBAI"),"19",IF(AND(F2="CENTRAL",E2="JEBEL ALI"),"21",IF(AND(F2="AL RAWASI"),"16.65",IF(AND(F2="AL NAKHEEL"),"16.65",IF(AND(F2="WB"),"22.60",IF(AND(F2="AL BARRAK",E2="DUCON"),"21.97",IF(AND(F2="AL KAWTHER",E2="DUCON"),"21.97",IF(AND(F2="AL KAWTHER"),"22.5",IF(AND(F2="AL FUTTAIM",E2="JEBEL ALI"),"8.75",IF(AND(F2="AL FUTTAIM",E2="MAFRAQ"),"16",IF(AND(F2="AL FUTTAIM",E2="AL QUOZ"),"7.70",IF(AND(F2="AL FUTTAIM",E2="MUSSAFAH"),"16.90",IF(AND(F2="AL FUTTAIM",E2="NAD AL SHEBA"),"8.50",IF(AND(F2="AL FUTTAIM",E2="MAHAWI"),"16.90",IF(AND(F2="AL RAWDA",E2="MADAM"),"24.50",)))))))))))))))) -> 7.70 | J2: =I2*H2 -> 583.352 | M2: 420.5 | P2: 550 | Q2: 0 | R2: 70 | S2: زاهد | T2: =IF(OR(R2=100,R2=115),"National","") -> 
A3: 2 | B3: 2019-03-02 | C3: 47912 | D3: 2213475 | E3: Cement Factory | F3: AL RAWASI | G3: Road base | H3: 78.88 | I3: 16.65 | J3: 1313.352 | L3: 300 | M3: 420.5 | Q3: 0 | R3: 75 | S3: زاهد
A4: 3 | B4: 2019-03-02 | C4: 47912 | D4: 141368 | E4: AL QUOZ | F4: AL FUTTAIM | G4: Road base | H4: 78.16 | I4: 7.70 | J4: 601.832 | M4: 420.5 | P4: 550 | Q4: 0 | R4: 70 | S4: زاهد
A5: 4 | B5: 2019-03-03 | C5: 47912 | D5: 2213628 | E5: Cement Factory | F5: AL RAWASI | G5: Road base | H5: 80.26 | I5: 16.65 | J5: 1336.329 | L5: 300 | Q5: 0 | R5: 100 | S5: زاهد | T5: National
A6: 5 | B6: 2019-03-03 | C6: 47912 | D6: 2213792 | E6: Cement Factory | F6: AL RAWASI | G6: Road base | H6: 79.14 | I6: 16.65 | J6: 1317.681 | L6: 300 | M6: 420.5 | Q6: 0 | R6: 75 | S6: زاهد
A7: 6 | B7: 2019-03-04 | C7: 47912 | D7: 2213937 | E7: Cement Factory | F7: AL RAWASI | G7: Road base | H7: 70.34 | I7: 16.65 | J7: 1171.161 | L7: 300 | M7: 420.5 | Q7: 0 | R7: 75 | S7: زاهد
A8: 7 | B8: 2019-03-04 | C8: 47912 | D8: 141605 | E8: JEBEL ALI | F8: AL FUTTAIM | G8: Road base | H8: 77.4 | I8: 8.75 | J8: 677.25 | M8: 420.5 | P8: 550 | Q8: 0 | R8: 80 | S8: زاهد
A9: 8 | B9: 2019-03-04 | C9: 47912 | D9: 2213874 | E9: Cement Factory | F9: AL RAWASI | G9: Road base | H9: 77.2 | I9: 16.65 | J9: 1285.38 | L9: 300 | Q9: 0 | R9: 100 | S9: زاهد | T9: National
A10: 9 | B10: 2019-03-05 | C10: 47912 | D10: 2214101 | E10: Cement Factory | F10: AL RAWASI | G10: Road base | H10: 74.32 | I10: 16.65 | J10: 1237.428 | L10: 300 | M10: 420.5 | Q10: 0 | R10: 75 | S10: زاهد
A11: 10 | B11: 2019-03-05 | C11: 47912 | D11: 141657 | E11: JEBEL ALI | F11: AL FUTTAIM | G11: Road base | H11: 73.94 | I11: 8.75 | J11: 646.975 | M11: 420.5 | P11: 550 | Q11: 0 | R11: 80 | S11: زاهد
A12: 11 | B12: 2019-03-06 | C12: 47912 | D12: 2214237 | E12: Cement Factory | F12: AL RAWASI | G12: Road base | H12: 77.08 | I12: 16.65 | J12: 1283.382 | L12: 300 | M12: 420.5 | Q12: 0 | R12: 75 | S12: زاهد
A13: 12 | B13: 2019-03-06 | C13: 47912 | D13: 2214136 | E13: Cement Factory | F13: AL RAWASI | G13: Road base | H13: 79.44 | I13: 16.65 | J13: 1322.676 | L13: 300 | Q13: 0 | R13: 100 | S13: زاهد | T13: National
A14: 13 | B14: 2019-03-07 | C14: 47912 | D14: 2214329 | E14: Cement Factory | F14: AL RAWASI | G14: Road base | H14: 79.76 | I14: 16.65 | J14: 1328.004 | L14: 300 | Q14: 0 | R14: 100 | S14: زاهد | T14: National
A15: 14 | B15: 2019-03-07 | C15: 47912 | D15: 2214358 | E15: Cement Factory | F15: AL RAWASI | G15: Road base | H15: 73.08 | I15: 16.65 | J15: 1216.782 | L15: 300 | M15: 420.5 | Q15: 0 | R15: 75 | S15: زاهد
A16: 15 | B16: 2019-03-07 | C16: 47912 | D16: 2214434 | E16: Cement Factory | F16: AL RAWASI | G16: Road base | H16: 80.16 | I16: 16.65 | J16: 1334.664 | L16: 300 | M16: 420.5 | Q16: 0 | R16: 75 | S16: زاهد
A17: 16 | B17: 2019-03-08 | C17: 47912 | D17: 2214560 | E17: Cement Factory | F17: AL RAWASI | G17: Road base | H17: 73.84 | I17: 16.65 | J17: 1229.436 | L17: 300 | Q17: 0 | R17: 100 | S17: زاهد | T17: National
A18: 17 | B18: 2019-03-08 | C18: 47912 | D18: 2214792 | E18: Cement Factory | F18: AL RAWASI | G18: Road base | H18: 79.32 | I18: 16.65 | J18: 1320.678 | L18: 300 | M18: 420.5 | Q18: 0 | R18: 75 | S18: زاهد
A19: 18 | B19: 2019-03-09 | C19: 47912 | D19: 2214894 | E19: Cement Factory | F19: AL RAWASI | G19: Road base | H19: 81.5 | I19: 16.65 | J19: 1356.975 | L19: 300 | Q19: 0 | R19: 100 | S19: زاهد | T19: National
A20: 19 | B20: 2019-03-09 | C20: 47912 | D20: 2215052 | E20: Cement Factory | F20: AL NAKHEEL | G20: Road base | H20: 71.36 | I20: 16.65 | J20: 1188.144 | L20: 300 | M20: 420.5 | Q20: 0 | R20: 75 | S20: زاهد
A21: 20 | B21: 2019-03-09 | C21: 47912 | D21: 2215103 | E21: Cement Factory | F21: AL RAWASI | G21: Road base | H21: 78.56 | I21: 16.65 | J21: 1308.024 | L21: 300 | M21: 420.5 | Q21: 0 | R21: 75 | S21: زاهد
A22: 21 | B22: 2019-03-10 | C22: 47912 | D22: 2215152 | E22: Cement Factory | F22: AL RAWASI | G22: Road base | H22: 76.32 | I22: 16.65 | J22: 1270.728 | L22: 300 | Q22: 0 | R22: 100 | S22: زاهد | T22: National
A23: 22 | B23: 2019-03-10 | C23: 47912 | D23: 2215209 | E23: Cement Factory | F23: AL NAKHEEL | G23: Road base | H23: 69.46 | I23: 16.65 | J23: 1156.509 | L23: 300 | M23: 420.5 | Q23: 0 | R23: 75 | S23: زاهد
A24: 23 | B24: 2019-03-10 | C24: 47912 | D24: 142188 | E24: JEBEL ALI | F24: AL FUTTAIM | G24: Road base | H24: 77.02 | I24: 8.75 | J24: 673.925 | M24: 420.5 | P24: 550 | Q24: 0 | R24: 80 | S24: زاهد
A25: 24 | B25: 2019-03-11 | C25: 47912 | D25: 2215282 | E25: Cement Factory | F25: AL RAWASI | G25: Road base | H25: 78.36 | I25: 16.65 | J25: 1304.694 | L25: 300 | Q25: 0 | R25: 100 | S25: زاهد | T25: National
A26: 25 | B26: 2019-03-11 | C26: 47912 | D26: 2215399 | E26: Cement Factory | F26: AL RAWASI | G26: Road base | H26: 79.5 | I26: 16.65 | J26: 1323.675 | L26: 300 | M26: 420.5 | Q26: 0 | R26: 75 | S26: زاهد
A27: 26 | B27: 2019-03-12 | C27: 47912 | D27: 2215473 | E27: Cement Factory | F27: AL RAWASI | G27: Road base | H27: 73.34 | I27: 16.65 | J27: 1221.111 | L27: 300 | Q27: 0 | R27: 100 | S27: زاهد | T27: National
A28: 27 | B28: 2019-03-12 | C28: 47912 | D28: 2217516 | E28: Cement Factory | F28: AL RAWASI | G28: Road base | H28: 74.58 | I28: 16.65 | J28: 1241.757 | L28: 300 | M28: 420.5 | Q28: 0 | R28: 75 | S28: زاهد
A29: 28 | B29: 2019-03-12 | C29: 47912 | D29: 2217571 | E29: Cement Factory | F29: AL RAWASI | G29: Road base | H29: 78.34 | I29: 16.65 | J29: 1304.361 | L29: 300 | M29: 420.5 | Q29: 0 | R29: 75 | S29: زاهد
A30: 29 | B30: 2019-03-13 | C30: 47912 | D30: 142639 | E30: AL QUOZ | F30: AL FUTTAIM | G30: Road base | H30: 77.6 | I30: 7.70 | J30: 597.52 | M30: 420.5 | P30: 550 | Q30: 0 | R30: 70 | S30: زاهد
A31: 30 | B31: 2019-03-13 | C31: 47912 | D31: 142556 | E31: AL QUOZ | F31: AL FUTTAIM | G31: Road base | H31: 75.84 | I31: 7.70 | J31: 583.968 | M31: 420.5 | P31: 550 | Q31: 0 | R31: 70 | S31: زاهد
A32: 31 | B32: 2019-03-14 | C32: 47912 | D32: 2215590 | E32: Cement Factory | F32: AL RAWASI | G32: Road base | H32: 80.36 | I32: 16.65 | J32: 1337.994 | L32: 300 | M32: 420.5 | Q32: 0 | R32: 75 | S32: زاهد
A33: 32 | B33: 2019-03-15 | C33: 47912 | D33: 2215743 | E33: Cement Factory | F33: AL RAWASI | G33: Road base | H33: 74.76 | I33: 16.65 | J33: 1244.754 | L33: 300 | Q33: 0 | R33: 100 | S33: زاهد | T33: National
A34: =ROW()-1 -> 33 | C34: 47912 | E34: Cement Factory | F34: AL NAKHEEL | G34: Road base | I34: =IF(AND(F34="RIDI SIDI"),"16.65",IF(AND(F34="CENTRAL",E34="DUBAI"),"19",IF(AND(F34="CENTRAL",E34="JEBEL ALI"),"21",IF(AND(F34="AL RAWASI"),"16.65",IF(AND(F34="AL NAKHEEL"),"16.65",IF(AND(F34="WB"),"22.60",IF(AND(F34="AL BARRAK",E34="DUCON"),"21.97",IF(AND(F34="AL KAWTHER",E34="DUCON"),"21.97",IF(AND(F34="AL KAWTHER"),"22.5",IF(AND(F34="AL FUTTAIM",E34="JEBEL ALI"),"8.75",IF(AND(F34="AL FUTTAIM",E34="MAFRAQ"),"16",IF(AND(F34="AL FUTTAIM",E34="AL QUOZ"),"7.70",IF(AND(F34="AL FUTTAIM",E34="MUSSAFAH"),"16.90",IF(AND(F34="AL FUTTAIM",E34="NAD AL SHEBA"),"8.50",IF(AND(F34="AL FUTTAIM",E34="MAHAWI"),"16.90",IF(AND(F34="AL RAWDA",E34="MADAM"),"24.50",)))))))))))))))) -> 16.65 | J34: =I34*H34 -> 0 | Q34: 0 | S34: زاهد | T34: =IF(OR(R34=100,R34=115),"National","") -> 
A35: 34 | C35: 47912 | E35: Cement Factory | F35: AL RAWASI | G35: Road base | I35: 16.65 | J35: 0 | Q35: 0 | S35: زاهد
A36: 35 | C36: 47912 | E36: Cement Factory | F36: AL RAWASI | G36: Road base | I36: 16.65 | J36: 0 | Q36: 0 | S36: زاهد
A37: 36 | C37: 47912 | E37: Cement Factory | F37: AL NAKHEEL | G37: Road base | I37: 16.65 | J37: 0 | Q37: 0 | S37: زاهد
A38: 37 | C38: 47912 | E38: Cement Factory | F38: AL RAWASI | G38: Road base | I38: 16.65 | J38: 0 | Q38: 0 | S38: زاهد
A39: 38 | C39: 47912 | E39: DUBAI | F39: CENTRAL | G39: Road base | I39: 19 | J39: 0 | Q39: 0 | S39: زاهد
A40: 39 | C40: 47912 | E40: DUBAI | F40: CENTRAL | G40: Road base | I40: 19 | J40: 0 | Q40: 0 | S40: زاهد
A41: 40 | C41: 47912 | E41: Cement Factory | F41: AL RAWASI | G41: Road base | I41: 16.65 | J41: 0 | Q41: 0 | S41: زاهد
A42: 41 | C42: 47912 | E42: Cement Factory | F42: AL RAWASI | G42: Road base | I42: 16.65 | J42: 0 | Q42: 0 | S42: زاهد
A43: 42 | C43: 47912 | E43: Cement Factory | F43: AL RAWASI | G43: Road base | I43: 16.65 | J43: 0 | Q43: 0 | S43: زاهد
A44: 43 | C44: 47912 | E44: Cement Factory | F44: AL RAWASI | G44: Road base | I44: 16.65 | J44: 0 | Q44: 0 | S44: زاهد
A45: 44 | C45: 47912 | E45: Cement Factory | F45: AL RAWASI | G45: Road base | I45: 16.65 | J45: 0 | Q45: 0 | S45: زاهد
A46: 45 | C46: 47912 | E46: Cement Factory | F46: AL RAWASI | G46: Road base | I46: 16.65 | J46: 0 | Q46: 0 | S46: زاهد
A47: 46 | C47: 47912 | E47: Cement Factory | F47: AL RAWASI | G47: Road base | I47: 16.65 | J47: 0 | Q47: 0 | S47: زاهد
A48: 47 | C48: 47912 | E48: Cement Factory | F48: AL RAWASI | G48: Road base | I48: 16.65 | J48: 0 | Q48: 0 | S48: زاهد
A49: 48 | C49: 47912 | E49: Cement Factory | F49: AL RAWASI | G49: Road base | I49: 16.65 | J49: 0 | Q49: 0 | S49: زاهد
A50: 49 | C50: 47895 | E50: DUBAI | F50: CENTRAL | G50: Road base | I50: 19 | J50: 0 | Q50: 0 | S50: زاهد
A51: 50 | C51: 47895 | E51: DUBAI | F51: CENTRAL | G51: Road base | I51: 19 | J51: 0 | Q51: 0 | S51: زاهد
A52: 51 | C52: 47895 | E52: DUCON | F52: AL BARRAK | G52: Road base | I52: 21.97 | J52: 0 | Q52: 0 | S52: زاهد
A53: 52 | C53: 47895 | E53: Cement Factory | F53: AL RAWASI | G53: Road base | I53: 16.65 | J53: 0 | Q53: 0 | S53: زاهد
A54: 53 | C54: 47895 | E54: Cement Factory | F54: AL RAWASI | G54: Road base | I54: 16.65 | J54: 0 | Q54: 0 | S54: زاهد
A55: 54 | C55: 47895 | E55: DUBAI | F55: CENTRAL | G55: Road base | I55: 19 | J55: 0 | Q55: 0 | S55: زاهد
A56: 55 | C56: 47895 | E56: DUBAI | F56: CENTRAL | G56: Road base | I56: 19 | J56: 0 | Q56: 0 | S56: زاهد
A57: 56 | C57: 47895 | E57: DUBAI | F57: CENTRAL | G57: Road base | I57: 19 | J57: 0 | Q57: 0 | S57: زاهد
A58: 57 | C58: 47895 | E58: Cement Factory | F58: AL NAKHEEL | G58: Road base | I58: 16.65 | J58: 0 | Q58: 0 | S58: زاهد
A59: 58 | C59: 47895 | E59: Cement Factory | F59: AL RAWASI | G59: Road base | I59: 16.65 | J59: 0 | Q59: 0 | S59: زاهد
A60: 59 | C60: 47895 | E60: Cement Factory | F60: AL RAWASI | G60: Road base | I60: 16.65 | J60: 0 | Q60: 0 | S60: زاهد
A61: 60 | C61: 47895 | E61: Cement Factory | F61: AL RAWASI | G61: Road base | I61: 16.65 | J61: 0 | Q61: 0 | S61: زاهد
A62: 61 | C62: 47895 | E62: Cement Factory | F62: AL RAWASI | G62: Road base | I62: 16.65 | J62: 0 | Q62: 0 | S62: زاهد
A63: 62 | C63: 47895 | E63: Cement Factory | F63: AL RAWASI | G63: Road base | I63: 16.65 | J63: 0 | Q63: 0 | S63: زاهد
A64: 63 | C64: 47895 | E64: Cement Factory | F64: AL RAWASI | G64: Road base | I64: 16.65 | J64: 0 | Q64: 0 | S64: زاهد
A65: 64 | C65: 47895 | E65: Cement Factory | F65: AL NAKHEEL | G65: Road base | I65: 16.65 | J65: 0 | Q65: 0 | S65: زاهد
A66: =ROW()-1 -> 65 | C66: 47895 | E66: Cement Factory | F66: AL RAWASI | G66: Road base | I66: =IF(AND(F66="RIDI SIDI"),"16.65",IF(AND(F66="CENTRAL",E66="DUBAI"),"19",IF(AND(F66="CENTRAL",E66="JEBEL ALI"),"21",IF(AND(F66="AL RAWASI"),"16.65",IF(AND(F66="AL NAKHEEL"),"16.65",IF(AND(F66="WB"),"22.60",IF(AND(F66="AL BARRAK",E66="DUCON"),"21.97",IF(AND(F66="AL KAWTHER",E66="DUCON"),"21.97",IF(AND(F66="AL KAWTHER"),"22.5",IF(AND(F66="AL FUTTAIM",E66="JEBEL ALI"),"8.75",IF(AND(F66="AL FUTTAIM",E66="MAFRAQ"),"16",IF(AND(F66="AL FUTTAIM",E66="AL QUOZ"),"7.70",IF(AND(F66="AL FUTTAIM",E66="MUSSAFAH"),"16.90",IF(AND(F66="AL FUTTAIM",E66="NAD AL SHEBA"),"8.50",IF(AND(F66="AL FUTTAIM",E66="MAHAWI"),"16.90",IF(AND(F66="AL RAWDA",E66="MADAM"),"24.50",)))))))))))))))) -> 16.65 | J66: =I66*H66 -> 0 | Q66: 0 | S66: زاهد | T66: =IF(OR(R66=100,R66=115),"National","") -> 
A67: 66 | C67: 47895 | E67: Cement Factory | F67: AL RAWASI | G67: Road base | I67: 16.65 | J67: 0 | Q67: 0 | S67: زاهد
A68: 67 | C68: 47895 | E68: Cement Factory | F68: AL RAWASI | G68: Road base | I68: 16.65 | J68: 0 | Q68: 0 | S68: زاهد
A69: 68 | C69: 47895 | E69: Cement Factory | F69: AL RAWASI | G69: Road base | I69: 16.65 | J69: 0 | Q69: 0 | S69: زاهد
A70: 69 | C70: 47895 | E70: Cement Factory | F70: AL RAWASI | G70: Road base | I70: 16.65 | J70: 0 | Q70: 0 | S70: زاهد
A71: 70 | C71: 47895 | E71: Cement Factory | F71: AL RAWASI | G71: Road base | I71: 16.65 | J71: 0 | Q71: 0 | S71: زاهد
A72: 71 | C72: 47895 | E72: Cement Factory | F72: RIDI SIDI | G72: Road base | I72: 16.65 | J72: 0 | Q72: 0 | S72: زاهد
A73: 72 | C73: 47895 | E73: Cement Factory | F73: RIDI SIDI | G73: Road base | I73: 16.65 | J73: 0 | Q73: 0 | S73: زاهد
A74: 73 | C74: 47895 | E74: Cement Factory | F74: RIDI SIDI | G74: Road base | I74: 16.65 | J74: 0 | Q74: 0 | S74: زاهد
A75: 74 | C75: 47895 | E75: Cement Factory | F75: RIDI SIDI | G75: Road base | I75: 16.65 | J75: 0 | Q75: 0 | S75: زاهد
A76: 75 | C76: 47895 | E76: Cement Factory | F76: RIDI SIDI | G76: Road base | I76: 16.65 | J76: 0 | Q76: 0 | S76: زاهد
A77: 76 | C77: 47895 | E77: Cement Factory | F77: RIDI SIDI | G77: Road base | I77: 16.65 | J77: 0 | Q77: 0 | S77: زاهد
A78: 77 | C78: 47895 | E78: Cement Factory | F78: RIDI SIDI | G78: Road base | I78: 16.65 | J78: 0 | Q78: 0 | S78: زاهد
A79: 78 | C79: 47895 | E79: Cement Factory | F79: RIDI SIDI | G79: Road base | I79: 16.65 | J79: 0 | Q79: 0 | S79: زاهد
A80: 79 | C80: 47895 | E80: AL QUOZ | F80: AL FUTTAIM | G80: Road base | I80: 7.70 | J80: 0 | Q80: 0 | S80: زاهد
A81: 80 | C81: 47895 | E81: MAFRAQ | F81: AL FUTTAIM | G81: Road base | I81: 16 | J81: 0 | Q81: 0 | S81: زاهد
B82: =SUBTOTAL(2,B2:B81) -> 32 | H82: =SUBTOTAL(9,H2:H81) -> 2454.98 | I82: =SUBTOTAL(9,I2:I81) -> 0 | J82: =SUBTOTAL(9,J2:J81) -> 36320.501 | K82: 0 | L82: 7500 | M82: 9251 | N82: 0 | O82: 0 | P82: 3850 | Q82: 0 | R82: =SUBTOTAL(9,R2:R81) -> 2645 | T82: =IF(R82=100,"National","") -> 

Sheet 40223
A1: م | B1: DATE التاريخ | C1: NO TRUCK رقم السيارة | D1: NO TICKET رقم الفاتورة | E1: DESTINATION الموقع | F1: CRUCHER الكسارة | G1: MATERIAL المادة | H1: NETWET الوزن | I1: RATE سعر الطن | J1: TOTAL الاجمالى | K1: FUJ ت/فجيرة | L1: SAEEDY ت/ساعدي | M1: DHAID ت/الذيد | N1: ZUBAIR ت/الزبير | O1: ALGHAIL ت/الغيل | P1: KADRAA ت/كدرة | Q1: DIESEL الديزل | R1: SALARY الراتب
A2: =ROW()-1 -> 1 | B2: 2019-03-01 | C2: 40223 | D2: 141343 | E2: MUSSAFAH | F2: AL FUTTAIM | G2: Road base | H2: 77.78 | I2: =IF(AND(F2="RIDI SIDI"),"16.65",IF(AND(F2="CENTRAL",E2="DUBAI"),"19",IF(AND(F2="CENTRAL",E2="JEBEL ALI"),"21",IF(AND(F2="AL RAWASI"),"16.65",IF(AND(F2="AL NAKHEEL"),"16.65",IF(AND(F2="WB"),"22.60",IF(AND(F2="AL BARRAK",E2="DUCON"),"21.97",IF(AND(F2="AL KAWTHER",E2="DUCON"),"21.97",IF(AND(F2="AL KAWTHER"),"22.5",IF(AND(F2="AL FUTTAIM",E2="JEBEL ALI"),"8.75",IF(AND(F2="AL FUTTAIM",E2="MAFRAQ"),"16",IF(AND(F2="AL FUTTAIM",E2="AL QUOZ"),"7.70",IF(AND(F2="AL FUTTAIM",E2="MUSSAFAH"),"16.90",IF(AND(F2="AL FUTTAIM",E2="NAD AL SHEBA"),"8.50",IF(AND(F2="AL FUTTAIM",E2="MAHAWI"),"16.90",IF(AND(F2="AL RAWDA",E2="MADAM"),"24.50",)))))))))))))))) -> 16.90 | J2: =I2*H2 -> 1314.482 | M2: 420.5 | P2: 550 | Q2: 0 | R2: 180
A3: 2 | B3: 2019-03-02 | C3: 40223 | D3: 141397 | E3: AL QUOZ | F3: AL FUTTAIM | G3: Road base | H3: 76.76 | I3: 7.70 | J3: 591.052 | M3: 420.5 | P3: 550 | Q3: 0 | R3: 70
A4: 3 | B4: 2019-03-03 | C4: 40223 | D4: 141485 | E4: AL QUOZ | F4: AL FUTTAIM | G4: Road base | H4: 75.32 | I4: 7.70 | J4: 579.964 | M4: 420.5 | P4: 550 | Q4: 0 | R4: 70
A5: 4 | B5: 2019-03-03 | C5: 40223 | D5: 141441 | E5: MUSSAFAH | F5: AL FUTTAIM | G5: Road base | H5: 80.52 | I5: 16.90 | J5: 1360.788 | M5: 420.5 | P5: 550 | Q5: 0 | R5: 180
A6: 5 | B6: 2019-03-04 | C6: 40223 | D6: 141536 | E6: MAFRAQ | F6: AL FUTTAIM | G6: Road base | H6: 76.02 | I6: 16 | J6: 1216.32 | M6: 420.5 | P6: 550 | Q6: 0 | R6: 160
A7: 6 | B7: 2019-03-04 | C7: 40223 | D7: 141576 | E7: AL QUOZ | F7: AL FUTTAIM | G7: Road base | H7: 75.16 | I7: 7.70 | J7: 578.732 | M7: 420.5 | P7: 550 | Q7: 0 | R7: 70
A8: 7 | B8: 2019-03-04 | C8: 40223 | D8: 141637 | E8: JEBEL ALI | F8: AL FUTTAIM | G8: Road base | H8: 76.94 | I8: 8.75 | J8: 673.225 | M8: 420.5 | P8: 550 | Q8: 0 | R8: 80
A9: 8 | B9: 2019-03-05 | C9: 40223 | D9: 141735 | E9: MAFRAQ | F9: AL FUTTAIM | G9: Road base | H9: 77.42 | I9: 16 | J9: 1238.72 | M9: 420.5 | P9: 550 | Q9: 0 | R9: 160
A10: 9 | B10: 2019-03-05 | C10: 40223 | D10: 141703 | E10: AL QUOZ | F10: AL FUTTAIM | G10: Road base | H10: 77.74 | I10: 7.70 | J10: 598.598 | M10: 420.5 | P10: 550 | Q10: 0 | R10: 70
A11: 10 | B11: 2019-03-05 | C11: 40223 | D11: 141670 | E11: JEBEL ALI | F11: AL FUTTAIM | G11: Road base | H11: 76.62 | I11: 8.75 | J11: 670.425 | M11: 420.5 | P11: 550 | Q11: 0 | R11: 80
A12: 11 | B12: 2019-03-06 | C12: 40223 | D12: 141781 | E12: AL QUOZ | F12: AL FUTTAIM | G12: Road base | H12: 75.62 | I12: 7.70 | J12: 582.274 | M12: 420.5 | P12: 550 | Q12: 0 | R12: 70
A13: 12 | B13: 2019-03-07 | C13: 40223 | D13: 2214604 | E13: Cement Factory | F13: AL RAWASI | G13: Road base | H13: 87.84 | I13: 16.65 | J13: 1462.536 | L13: 300 | Q13: 0 | R13: 100
A14: 13 | B14: 2019-03-07 | C14: 40223 | D14: 2214335 | E14: Cement Factory | F14: AL NAKHEEL | G14: Road base | H14: 74.48 | I14: 16.65 | J14: 1240.092 | L14: 300 | Q14: 0 | R14: 100
A15: 14 | B15: 2019-03-07 | C15: 40223 | D15: 141853 | E15: JEBEL ALI | F15: AL FUTTAIM | G15: Road base | H15: 78.26 | I15: 8.75 | J15: 684.775 | M15: 420.5 | P15: 550 | Q15: 0 | R15: 80
A16: 15 | B16: 2019-03-07 | C16: 40223 | D16: 900718 | E16: DUCON | F16: AL BARRAK | G16: Road base | H16: 71.76 | I16: 21.97 | J16: 1576.5672 | K16: 500 | M16: 420.5 | Q16: 0 | R16: 80
A17: 16 | B17: 2019-03-08 | C17: 40223 | D17: 2214861 | E17: Cement Factory | F17: AL RAWASI | G17: Road base | H17: 77.7 | I17: 16.65 | J17: 1293.705 | L17: 300 | M17: 420.5 | Q17: 0 | R17: 75
A18: 17 | B18: 2019-03-08 | C18: 40223 | D18: 141960 | E18: MAFRAQ | F18: AL FUTTAIM | G18: Road base | H18: 79.58 | I18: 16 | J18: 1273.28 | M18: 420.5 | P18: 550 | Q18: 0 | R18: 160
A19: 18 | B19: 2019-03-09 | C19: 40223 | D19: 142031 | E19: MUSSAFAH | F19: AL FUTTAIM | G19: Road base | H19: 78 | I19: 16.90 | J19: 1318.2 | M19: 420.5 | P19: 550 | Q19: 0 | R19: 180
A20: 19 | B20: 2019-03-09 | C20: 40223 | D20: 142108 | E20: AL QUOZ | F20: AL FUTTAIM | G20: Road base | H20: 77.6 | I20: 7.70 | J20: 597.52 | M20: 420.5 | P20: 550 | Q20: 0 | R20: 70
A21: 20 | B21: 2019-03-10 | C21: 40223 | D21: 142167 | E21: MUSSAFAH | F21: AL FUTTAIM | G21: Road base | H21: 76.74 | I21: 16.90 | J21: 1296.906 | M21: 420.5 | P21: 550 | Q21: 0 | R21: 180
A22: 21 | B22: 2019-03-11 | C22: 40223 | D22: 142303 | E22: MUSSAFAH | F22: AL FUTTAIM | G22: Road base | H22: 81.82 | I22: 16.90 | J22: 1382.758 | M22: 420.5 | P22: 550 | Q22: 0 | R22: 180
A23: 22 | B23: 2019-03-11 | C23: 40223 | D23: 142391 | E23: MAHAWI | F23: AL FUTTAIM | G23: Road base | H23: 82.7 | I23: 16.90 | J23: 1397.63 | M23: 420.5 | P23: 550 | Q23: 0 | R23: 180
A24: 23 | B24: 2019-03-11 | C24: 40223 | D24: 2215244 | E24: Cement Factory | F24: AL RAWASI | G24: Road base | H24: 75.76 | I24: 16.65 | J24: 1261.404 | L24: 300 | Q24: 0 | R24: 100
A25: 24 | B25: 2019-03-11 | C25: 40223 | D25: 2215422 | E25: Cement Factory | F25: AL RAWASI | G25: Road base | H25: 79.66 | I25: 16.65 | J25: 1326.339 | L25: 300 | M25: 420.5 | Q25: 0 | R25: 75
A26: 25 | B26: 2019-03-12 | C26: 40223 | D26: 142460 | E26: JEBEL ALI | F26: AL FUTTAIM | G26: Road base | H26: 77.8 | I26: 8.75 | J26: 680.75 | M26: 420.5 | P26: 550 | Q26: 0 | R26: 80
A27: 26 | B27: 2019-03-13 | C27: 40223 | D27: 142541 | E27: MUSSAFAH | F27: AL FUTTAIM | G27: Road base | H27: 78.38 | I27: 16.90 | J27: 1324.622 | M27: 420.5 | P27: 550 | Q27: 0 | R27: 180
A28: 27 | B28: 2019-03-13 | C28: 40223 | D28: 142599 | E28: AL QUOZ | F28: AL FUTTAIM | G28: Road base | H28: 76.4 | I28: 7.70 | J28: 588.28 | M28: 420.5 | P28: 550 | Q28: 0 | R28: 70
A29: 28 | B29: 2019-03-13 | C29: 40223 | D29: 142665 | E29: JEBEL ALI | F29: AL FUTTAIM | G29: Road base | H29: 77.36 | I29: 8.75 | J29: 676.9 | M29: 420.5 | P29: 550 | Q29: 0 | R29: 80
A30: 29 | B30: 2019-03-14 | C30: 40223 | D30: 2215674 | E30: Cement Factory | F30: AL RAWASI | G30: Road base | H30: 77.2 | I30: 16.65 | J30: 1285.38 | L30: 300 | M30: 420.5 | Q30: 0 | R30: 75
A31: 30 | B31: 2019-03-14 | C31: 40223 | D31: 142793 | E31: MAFRAQ | F31: AL FUTTAIM | G31: Road base | H31: 78.12 | I31: 16 | J31: 1249.92 | M31: 420.5 | P31: 550 | Q31: 0 | R31: 160
A32: 31 | B32: 2019-03-15 | C32: 40223 | D32: 142819 | E32: AL QUOZ | F32: AL FUTTAIM | G32: Road base | H32: 77.92 | I32: 7.70 | J32: 599.984 | M32: 420.5 | P32: 550 | Q32: 0 | R32: 70
A33: 32 | B33: 2019-03-16 | C33: 40223 | D33: 2216043 | E33: Cement Factory | F33: AL RAWASI | G33: Road base | H33: 82.44 | I33: 16.65 | J33: 1372.626 | L33: 300 | Q33: 0 | R33: 100
A34: =ROW()-1 -> 33 | B34: 2019-03-16 | C34: 40223 | D34: 142874 | E34: JEBEL ALI | F34: AL FUTTAIM | G34: Road base | H34: 74.86 | I34: =IF(AND(F34="RIDI SIDI"),"16.65",IF(AND(F34="CENTRAL",E34="DUBAI"),"19",IF(AND(F34="CENTRAL",E34="JEBEL ALI"),"21",IF(AND(F34="AL RAWASI"),"16.65",IF(AND(F34="AL NAKHEEL"),"16.65",IF(AND(F34="WB"),"22.60",IF(AND(F34="AL BARRAK",E34="DUCON"),"21.97",IF(AND(F34="AL KAWTHER",E34="DUCON"),"21.97",IF(AND(F34="AL KAWTHER"),"22.5",IF(AND(F34="AL FUTTAIM",E34="JEBEL ALI"),"8.75",IF(AND(F34="AL FUTTAIM",E34="MAFRAQ"),"16",IF(AND(F34="AL FUTTAIM",E34="AL QUOZ"),"7.70",IF(AND(F34="AL FUTTAIM",E34="MUSSAFAH"),"16.90",IF(AND(F34="AL FUTTAIM",E34="NAD AL SHEBA"),"8.50",IF(AND(F34="AL FUTTAIM",E34="MAHAWI"),"16.90",IF(AND(F34="AL RAWDA",E34="MADAM"),"24.50",)))))))))))))))) -> 8.75 | J34: =I34*H34 -> 655.025 | M34: 420.5 | P34: 550 | Q34: 0 | R34: 80
A35: 34 | C35: 40223 | E35: JEBEL ALI | F35: AL FUTTAIM | G35: Road base | I35: 8.75 | J35: 0 | Q35: 0 | R35: 80
A36: 35 | C36: 40223 | E36: AL QUOZ | F36: AL FUTTAIM | G36: Road base | I36: 7.70 | J36: 0 | Q36: 0 | R36: 70
A37: 36 | C37: 40223 | E37: AL QUOZ | F37: AL FUTTAIM | G37: Road base | I37: 7.70 | J37: 0 | Q37: 0 | R37: 70
A38: 37 | C38: 40223 | E38: MAFRAQ | F38: AL FUTTAIM | G38: Road base | I38: 16 | J38: 0 | Q38: 0 | R38: 160
A39: 38 | C39: 40223 | E39: AL QUOZ | F39: AL FUTTAIM | G39: Road base | I39: 7.70 | J39: 0 | Q39: 0 | R39: 70
A40: 39 | C40: 40223 | E40: MAFRAQ | F40: AL FUTTAIM | G40: Road base | I40: 16 | J40: 0 | Q40: 0 | R40: 160
A41: 40 | C41: 40223 | E41: AL QUOZ | F41: AL FUTTAIM | G41: Road base | I41: 7.70 | J41: 0 | Q41: 0 | R41: 70
A42: 41 | C42: 40223 | E42: MADAM | F42: AL RAWDA | G42: Road base | I42: 24.50 | J42: 0 | Q42: 0 | R42: 80
A43: 42 | C43: 40223 | E43: MADAM | F43: AL RAWDA | G43: Road base | I43: 24.50 | J43: 0 | Q43: 0 | R43: 80
A44: 43 | C44: 40223 | E44: DUBAI | F44: CENTRAL | G44: Road base | I44: 19 | J44: 0 | Q44: 0
A45: 44 | C45: 40223 | E45: Cement Factory | F45: AL RAWASI | G45: Road base | I45: 16.65 | J45: 0 | Q45: 0
A46: 45 | C46: 40223 | E46: Cement Factory | F46: AL RAWASI | G46: Road base | I46: 16.65 | J46: 0 | Q46: 0
A47: 46 | C47: 40223 | E47: Cement Factory | F47: AL RAWASI | G47: Road base | I47: 16.65 | J47: 0 | Q47: 0
A48: 47 | C48: 40223 | E48: DUCON | F48: AL KAWTHER | G48: Road base | I48: 21.97 | J48: 0 | Q48: 0
A49: 48 | C49: 40223 | E49: DUBAI | F49: CENTRAL | G49: Road base | I49: 19 | J49: 0 | Q49: 0
A50: 49 | C50: 40223 | E50: Cement Factory | F50: AL RAWASI | G50: Road base | I50: 16.65 | J50: 0 | Q50: 0
A51: 50 | C51: 40223 | E51: Cement Factory | F51: AL RAWASI | G51: Road base | I51: 16.65 | J51: 0 | Q51: 0
A52: 51 | C52: 40223 | E52: Cement Factory | F52: AL RAWASI | G52: Road base | I52: 16.65 | J52: 0 | Q52: 0
A53: 52 | C53: 40223 | E53: DUCON | F53: AL KAWTHER | G53: Road base | I53: 21.97 | J53: 0 | Q53: 0
A54: 53 | C54: 40223 | E54: Cement Factory | F54: AL RAWASI | G54: Road base | I54: 16.65 | J54: 0 | Q54: 0
A55: 54 | C55: 40223 | E55: Cement Factory | F55: AL RAWASI | G55: Road base | I55: 16.65 | J55: 0 | Q55: 0
A56: 55 | C56: 40223 | E56: DUCON | F56: AL KAWTHER | G56: Road base | I56: 21.97 | J56: 0 | Q56: 0
A57: 56 | C57: 40223 | E57: Cement Factory | F57: AL RAWASI | G57: Road base | I57: 16.65 | J57: 0 | Q57: 0
A58: 57 | C58: 40223 | E58: Cement Factory | F58: AL RAWASI | G58: Road base | I58: 16.65 | J58: 0 | Q58: 0
A59: 58 | C59: 40223 | E59: Cement Factory | F59: AL RAWASI | G59: Road base | I59: 16.65 | J59: 0 | Q59: 0
A60: 59 | C60: 40223 | E60: DUBAI | F60: CENTRAL | G60: Road base | I60: 19 | J60: 0 | Q60: 0
A61: 60 | C61: 40223 | E61: Cement Factory | F61: AL RAWASI | G61: Road base | I61: 16.65 | J61: 0 | Q61: 0
A62: 61 | C62: 40223 | E62: Cement Factory | F62: AL RAWASI | G62: Road base | I62: 16.65 | J62: 0 | Q62: 0
A63: 62 | C63: 40223 | E63: Cement Factory | F63: AL NAKHEEL | G63: Road base | I63: 16.65 | J63: 0 | Q63: 0
A64: 63 | C64: 40223 | E64: Cement Factory | F64: AL RAWASI | G64: Road base | I64: 16.65 | J64: 0 | Q64: 0
A65: 64 | C65: 40223 | E65: DUCON | F65: AL KAWTHER | G65: Road base | I65: 21.97 | J65: 0 | Q65: 0
A66: =ROW()-1 -> 65 | C66: 40223 | E66: DUCON | F66: AL KAWTHER | G66: Road base | I66: =IF(AND(F66="RIDI SIDI"),"16.65",IF(AND(F66="CENTRAL",E66="DUBAI"),"19",IF(AND(F66="CENTRAL",E66="JEBEL ALI"),"21",IF(AND(F66="AL RAWASI"),"16.65",IF(AND(F66="AL NAKHEEL"),"16.65",IF(AND(F66="WB"),"22.60",IF(AND(F66="AL BARRAK",E66="DUCON"),"21.97",IF(AND(F66="AL KAWTHER",E66="DUCON"),"21.97",IF(AND(F66="AL KAWTHER"),"22.5",IF(AND(F66="AL FUTTAIM",E66="JEBEL ALI"),"8.75",IF(AND(F66="AL FUTTAIM",E66="MAFRAQ"),"16",IF(AND(F66="AL FUTTAIM",E66="AL QUOZ"),"7.70",IF(AND(F66="AL FUTTAIM",E66="MUSSAFAH"),"16.90",IF(AND(F66="AL FUTTAIM",E66="NAD AL SHEBA"),"8.50",IF(AND(F66="AL FUTTAIM",E66="MAHAWI"),"16.90",IF(AND(F66="AL RAWDA",E66="MADAM"),"24.50",)))))))))))))))) -> 21.97 | J66: =I66*H66 -> 0 | Q66: 0
A67: 66 | C67: 40223 | E67: Cement Factory | F67: AL RAWASI | G67: Road base | I67: 16.65 | J67: 0 | Q67: 0
A68: 67 | C68: 40223 | E68: Cement Factory | F68: AL RAWASI | G68: Road base | I68: 16.65 | J68: 0 | Q68: 0
A69: 68 | C69: 40223 | E69: DUCON | F69: AL KAWTHER | G69: Road base | I69: 21.97 | J69: 0 | Q69: 0
A70: 69 | C70: 40223 | E70: Cement Factory | F70: AL RAWASI | G70: Road base | I70: 16.65 | J70: 0 | Q70: 0
A71: 70 | C71: 40223 | E71: DUBAI | F71: CENTRAL | G71: Road base | I71: 19 | J71: 0 | Q71: 0
A72: 71 | C72: 40223 | E72: Cement Factory | F72: AL RAWASI | G72: Road base | I72: 16.65 | J72: 0 | Q72: 0
A73: 72 | C73: 40223 | E73: Cement Factory | F73: AL RAWASI | G73: Road base | I73: 16.65 | J73: 0 | Q73: 0
A74: 73 | C74: 40223 | E74: Cement Factory | F74: AL RAWASI | G74: Road base | I74: 16.65 | J74: 0 | Q74: 0
A75: 74 | C75: 40223 | E75: Cement Factory | F75: AL RAWASI | G75: Road base | I75: 16.65 | J75: 0 | Q75: 0
A76: 75 | C76: 40223 | E76: DUBAI | F76: CENTRAL | G76: Road base | I76: 19 | J76: 0 | Q76: 0
A77: 76 | C77: 40223 | E77: DUCON | F77: AL BARRAK | G77: Road base | I77: 21.97 | J77: 0 | Q77: 0
A78: 77 | C78: 40223 | E78: Cement Factory | F78: RIDI SIDI | G78: Road base | I78: 16.65 | J78: 0 | Q78: 0
A79: 78 | C79: 40223 | E79: Cement Factory | F79: RIDI SIDI | G79: Road base | I79: 16.65 | J79: 0 | Q79: 0
A80: 79 | C80: 40223 | E80: AL QUOZ | F80: AL FUTTAIM | G80: Road base | I80: 7.70 | J80: 0 | Q80: 0
A81: 80 | C81: 40223 | E81: MAFRAQ | F81: AL FUTTAIM | G81: Road base | I81: 16 | J81: 0 | Q81: 0
B82: =SUBTOTAL(2,B2:B81) -> 33 | D82: =SUBTOTAL(2,B2:B81) -> 33 | H82: =SUBTOTAL(9,H2:H81) -> 2568.28 | I82: =SUBTOTAL(9,I2:I81) -> 0 | J82: 33949.7792 | K82: 500 | L82: 2100 | M82: 12194.5 | N82: 0 | O82: 0 | P82: 13750 | Q82: 0 | R82: =SUBTOTAL(9,R2:R81) -> 4485

Sheet 40224
A1: م | B1: DATE التاريخ | C1: NO TRUCK رقم السيارة | D1: NO TICKET رقم الفاتورة | E1: DESTINATION الموقع | F1: CRUCHER الكسارة | G1: MATERIAL المادة | H1: NETWET الوزن | I1: RATE سعر الطن | J1: TOTAL الاجمالى | K1: FUJ ت/فجيرة | L1: SAEEDY ت/ساعدي | M1: DHAID ت/الذيد | N1: ZUBAIR ت/الزبير | O1: ALGHAIL ت/الغيل | P1: KADRAA ت/كدرة | Q1: DIESEL الديزل | R1: SALARY الراتب
A2: =ROW()-1 -> 1 | B2: 2019-03-01 | C2: 40224 | D2: 141342 | E2: MUSSAFAH | F2: AL FUTTAIM | G2: Road base | H2: 81.04 | I2: =IF(AND(F2="RIDI SIDI"),"16.65",IF(AND(F2="CENTRAL",E2="DUBAI"),"19",IF(AND(F2="CENTRAL",E2="JEBEL ALI"),"21",IF(AND(F2="AL RAWASI"),"16.65",IF(AND(F2="AL NAKHEEL"),"16.65",IF(AND(F2="WB"),"22.60",IF(AND(F2="AL BARRAK",E2="DUCON"),"21.97",IF(AND(F2="AL KAWTHER",E2="DUCON"),"21.97",IF(AND(F2="AL KAWTHER"),"22.5",IF(AND(F2="AL FUTTAIM",E2="JEBEL ALI"),"8.75",IF(AND(F2="AL FUTTAIM",E2="MAFRAQ"),"16",IF(AND(F2="AL FUTTAIM",E2="AL QUOZ"),"7.70",IF(AND(F2="AL FUTTAIM",E2="MUSSAFAH"),"16.90",IF(AND(F2="AL FUTTAIM",E2="NAD AL SHEBA"),"8.50",IF(AND(F2="AL FUTTAIM",E2="MAHAWI"),"16.90",IF(AND(F2="AL RAWDA",E2="MADAM"),"24.50",)))))))))))))))) -> 16.90 | J2: =I2*H2 -> 1369.576 | M2: 420.5 | P2: 550 | Q2: 0 | R2: 180
A3: 2 | B3: 2019-03-02 | C3: 40224 | D3: 141415 | E3: MAFRAQ | F3: AL FUTTAIM | G3: Road base | H3: 77.92 | I3: 16 | J3: 1246.72 | M3: 420.5 | P3: 550 | Q3: 0 | R3: 160
A4: 3 | B4: 2019-03-02 | C4: 40224 | D4: 141381 | E4: AL QUOZ | F4: AL FUTTAIM | G4: Road base | H4: 77 | I4: 7.70 | J4: 592.9 | M4: 420.5 | P4: 550 | Q4: 0 | R4: 70
A5: 4 | B5: 2019-03-03 | C5: 40224 | D5: 141528 | E5: MAFRAQ | F5: AL FUTTAIM | G5: Road base | H5: 79.54 | I5: 16 | J5: 1272.64 | M5: 420.5 | P5: 550 | Q5: 0 | R5: 160
A6: 5 | B6: 2019-03-03 | C6: 40224 | D6: 899839 | E6: DUCON | F6: AL BARRAK | G6: Road base | H6: 71.48 | I6: 21.97 | J6: 1570.4156 | K6: 500 | M6: 420.5 | Q6: 0 | R6: 90
A7: 6 | B7: 2019-03-04 | C7: 40224 | D7: 141643 | E7: MAFRAQ | F7: AL FUTTAIM | G7: Road base | H7: 77.12 | I7: 16 | J7: 1233.92 | M7: 420.5 | P7: 550 | Q7: 0 | R7: 160
A8: 7 | B8: 2019-03-04 | C8: 40224 | D8: 141588 | E8: JEBEL ALI | F8: AL FUTTAIM | G8: Road base | H8: 78.24 | I8: 8.75 | J8: 684.6 | M8: 420.5 | P8: 550 | Q8: 0 | R8: 80
A9: 8 | B9: 2019-03-05 | C9: 40224 | D9: 141687 | E9: AL QUOZ | F9: AL FUTTAIM | G9: Road base | H9: 74.18 | I9: 7.70 | J9: 571.186 | M9: 420.5 | P9: 550 | Q9: 0 | R9: 70
A10: 9 | B10: 2019-03-06 | C10: 40224 | D10: 2214124 | E10: Cement Factory | F10: AL RAWASI | G10: Road base | H10: 83.74 | I10: 16.65 | J10: 1394.271 | L10: 300 | M10: 420.5 | Q10: 0 | R10: 75
A11: 10 | B11: 2019-03-06 | C11: 40224 | D11: 2214210 | E11: Cement Factory | F11: AL RAWASI | G11: Road base | H11: 82.82 | I11: 16.65 | J11: 1378.953 | L11: 300 | M11: 420.5 | Q11: 0 | R11: 75
A12: 11 | B12: 2019-03-06 | C12: 40224 | D12: 2214281 | E12: Cement Factory | F12: AL RAWASI | G12: Road base | H12: 85 | I12: 16.65 | J12: 1415.25 | L12: 300 | M12: 420.5 | Q12: 0 | R12: 75
A13: 12 | B13: 2019-03-07 | C13: 40224 | D13: 2214317 | E13: Cement Factory | F13: AL RAWASI | G13: Road base | H13: 84.46 | I13: 16.65 | J13: 1406.259 | L13: 300 | Q13: 0 | R13: 100
A14: 13 | B14: 2019-03-07 | C14: 40224 | D14: 141891 | E14: AL QUOZ | F14: AL FUTTAIM | G14: Road base | H14: 75.3 | I14: 7.70 | J14: 579.81 | M14: 420.5 | P14: 550 | Q14: 0 | R14: 70
A15: 14 | B15: 2019-03-07 | C15: 40224 | D15: 141843 | E15: JEBEL ALI | F15: AL FUTTAIM | G15: Road base | H15: 75.58 | I15: 8.75 | J15: 661.325 | M15: 420.5 | P15: 550 | Q15: 0 | R15: 80
A16: 15 | B16: 2019-03-08 | C16: 40224 | D16: 2214557 | E16: Cement Factory | F16: AL RAWASI | G16: Road base | H16: 87.64 | I16: 16.65 | J16: 1459.206 | L16: 300 | Q16: 0 | R16: 100
A17: 16 | B17: 2019-03-08 | C17: 40224 | D17: 2214765 | E17: Cement Factory | F17: AL RAWASI | G17: Road base | H17: 86.14 | I17: 16.65 | J17: 1434.231 | L17: 300 | M17: 420.5 | Q17: 0 | R17: 75
A18: 17 | B18: 2019-03-08 | C18: 40224 | D18: 2214684 | E18: Cement Factory | F18: AL RAWASI | G18: Road base | H18: 82.68 | I18: 16.65 | J18: 1376.622 | L18: 300 | M18: 420.5 | Q18: 0 | R18: 75
A19: 18 | B19: 2019-03-08 | C19: 40224 | D19: 141999 | E19: MAFRAQ | F19: AL FUTTAIM | G19: Road base | H19: 78.72 | I19: 16 | J19: 1259.52 | M19: 420.5 | P19: 550 | Q19: 0 | R19: 160
A20: 19 | B20: 2019-03-09 | C20: 40224 | D20: 142137 | E20: MUSSAFAH | F20: AL FUTTAIM | G20: Road base | H20: 79.3 | I20: 16.90 | J20: 1340.17 | M20: 420.5 | P20: 550 | Q20: 0 | R20: 180
A21: 20 | B21: 2019-03-09 | C21: 40224 | D21: 900991 | E21: DUCON | F21: AL BARRAK | G21: Road base | H21: 70.44 | I21: 21.97 | J21: 1547.5668 | K21: 490 | M21: 420.5 | Q21: 0 | R21: 90
A22: 21 | B22: 2019-03-10 | C22: 40224 | D22: 142216 | E22: AL QUOZ | F22: AL FUTTAIM | G22: Road base | H22: 76.06 | I22: 7.70 | J22: 585.662 | M22: 420.5 | P22: 550 | Q22: 0 | R22: 70
A23: 22 | B23: 2019-03-11 | C23: 40224 | D23: 2215256 | E23: Cement Factory | F23: AL RAWASI | G23: Road base | H23: 84.88 | I23: 16.65 | J23: 1413.252 | L23: 300 | Q23: 0 | R23: 100
A24: 23 | B24: 2019-03-11 | C24: 40224 | D24: 2215406 | E24: Cement Factory | F24: AL RAWASI | G24: Road base | H24: 84.44 | I24: 16.65 | J24: 1405.926 | L24: 300 | M24: 420.5 | Q24: 0 | R24: 75
A25: 24 | B25: 2019-03-11 | C25: 40224 | D25: 2215322 | E25: Cement Factory | F25: AL RAWASI | G25: Road base | H25: 82.14 | I25: 16.65 | J25: 1367.631 | L25: 300 | M25: 420.5 | Q25: 0 | R25: 75
A26: 25 | B26: 2019-03-12 | C26: 40224 | D26: 2215475 | E26: Cement Factory | F26: AL RAWASI | G26: Road base | H26: 81 | I26: 16.65 | J26: 1348.65 | L26: 300 | Q26: 0 | R26: 100
A27: 26 | B27: 2019-03-12 | C27: 40224 | D27: 142498 | E27: MAFRAQ | F27: AL FUTTAIM | G27: Road base | H27: 73.72 | I27: 16 | J27: 1179.52 | M27: 420.5 | P27: 550 | Q27: 0 | R27: 160
A28: 27 | B28: 2019-03-12 | C28: 40224 | D28: 142415 | E28: AL QUOZ | F28: AL FUTTAIM | G28: Road base | H28: 75.34 | I28: 7.70 | J28: 580.118 | M28: 420.5 | P28: 550 | Q28: 0 | R28: 70
A29: 28 | B29: 2019-03-13 | C29: 40224 | D29: 142643 | E29: JEBEL ALI | F29: AL FUTTAIM | G29: Road base | H29: 79.08 | I29: 8.75 | J29: 691.95 | M29: 420.5 | P29: 550 | Q29: 0 | R29: 80
A30: 29 | B30: 2019-03-13 | C30: 40224 | D30: 142572 | E30: AL QUOZ | F30: AL FUTTAIM | G30: Road base | H30: 76.14 | I30: 7.70 | J30: 586.278 | M30: 420.5 | P30: 550 | Q30: 0 | R30: 70
A31: 30 | B31: 2019-03-14 | C31: 40224 | D31: 2215682 | E31: Cement Factory | F31: AL RAWASI | G31: Road base | H31: 85.56 | I31: 16.65 | J31: 1424.574 | L31: 300 | M31: 420.5 | Q31: 0 | R31: 75
A32: 31 | B32: 2019-03-14 | C32: 40224 | D32: 142708 | E32: AL QUOZ | F32: AL FUTTAIM | G32: Road base | H32: 77.6 | I32: 7.70 | J32: 597.52 | M32: 420.5 | P32: 550 | Q32: 0 | R32: 70
A33: 32 | B33: 2019-03-15 | C33: 40224 | D33: 2215752 | E33: Cement Factory | F33: AL RAWASI | G33: Road base | H33: 81.86 | I33: 16.65 | J33: 1362.969 | L33: 300 | Q33: 0 | R33: 100
A34: =ROW()-1 -> 33 | B34: 2019-03-15 | C34: 40224 | D34: 142807 | E34: AL QUOZ | F34: AL FUTTAIM | G34: Road base | H34: 78.14 | I34: =IF(AND(F34="RIDI SIDI"),"16.65",IF(AND(F34="CENTRAL",E34="DUBAI"),"19",IF(AND(F34="CENTRAL",E34="JEBEL ALI"),"21",IF(AND(F34="AL RAWASI"),"16.65",IF(AND(F34="AL NAKHEEL"),"16.65",IF(AND(F34="WB"),"22.60",IF(AND(F34="AL BARRAK",E34="DUCON"),"21.97",IF(AND(F34="AL KAWTHER",E34="DUCON"),"21.97",IF(AND(F34="AL KAWTHER"),"22.5",IF(AND(F34="AL FUTTAIM",E34="JEBEL ALI"),"8.75",IF(AND(F34="AL FUTTAIM",E34="MAFRAQ"),"16",IF(AND(F34="AL FUTTAIM",E34="AL QUOZ"),"7.70",IF(AND(F34="AL FUTTAIM",E34="MUSSAFAH"),"16.90",IF(AND(F34="AL FUTTAIM",E34="NAD AL SHEBA"),"8.50",IF(AND(F34="AL FUTTAIM",E34="MAHAWI"),"16.90",IF(AND(F34="AL RAWDA",E34="MADAM"),"24.50",)))))))))))))))) -> 7.70 | J34: =I34*H34 -> 601.678 | M34: 420.5 | P34: 550 | Q34: 0 | R34: 70
A35: 34 | B35: 2019-03-16 | C35: 40224 | D35: 2216005 | E35: Cement Factory | F35: AL RAWASI | G35: Road base | H35: 84.52 | I35: 16.65 | J35: 1407.258 | L35: 300 | Q35: 0 | R35: 100
A36: 35 | C36: 40224 | E36: AL QUOZ | F36: AL FUTTAIM | G36: Road base | I36: 7.70 | J36: 0 | Q36: 0 | R36: 70
A37: 36 | C37: 40224 | E37: MUSSAFAH | F37: AL FUTTAIM | G37: Road base | I37: 16.90 | J37: 0 | Q37: 0 | R37: 180
A38: 37 | C38: 40224 | E38: AL QUOZ | F38: AL FUTTAIM | G38: Road base | I38: 7.70 | J38: 0 | Q38: 0 | R38: 70
A39: 38 | C39: 40224 | E39: AL QUOZ | F39: AL FUTTAIM | G39: Road base | I39: 7.70 | J39: 0 | Q39: 0 | R39: 70
A40: 39 | C40: 40224 | E40: MAFRAQ | F40: AL FUTTAIM | G40: Road base | I40: 16 | J40: 0 | Q40: 0 | R40: 160
A41: 40 | C41: 40224 | E41: MAFRAQ | F41: AL FUTTAIM | G41: Road base | I41: 16 | J41: 0 | Q41: 0 | R41: 160
A42: 41 | C42: 40224 | E42: MAFRAQ | F42: AL FUTTAIM | G42: Road base | I42: 16 | J42: 0 | Q42: 0 | R42: 160
A43: 42 | C43: 40224 | E43: AL QUOZ | F43: AL FUTTAIM | G43: Road base | I43: 7.70 | J43: 0 | Q43: 0 | R43: 70
A44: 43 | C44: 40224 | E44: MADAM | F44: AL RAWDA | G44: Road base | I44: 24.50 | J44: 0 | Q44: 0 | R44: 80
A45: 44 | C45: 40224 | E45: MADAM | F45: AL RAWDA | G45: Road base | I45: 24.50 | J45: 0 | Q45: 0 | R45: 80
A46: 45 | C46: 40224 | E46: Cement Factory | F46: AL RAWASI | G46: Road base | I46: 16.65 | J46: 0 | Q46: 0
A47: 46 | C47: 40224 | E47: Cement Factory | F47: AL RAWASI | G47: Road base | I47: 16.65 | J47: 0 | Q47: 0
A48: 47 | C48: 40224 | E48: DUCON | F48: AL KAWTHER | G48: Road base | I48: 21.97 | J48: 0 | Q48: 0
A49: 48 | C49: 40224 | E49: DUCON | F49: AL KAWTHER | G49: Road base | I49: 21.97 | J49: 0 | Q49: 0
A50: 49 | C50: 40224 | E50: DUCON | F50: AL KAWTHER | G50: Road base | I50: 21.97 | J50: 0 | Q50: 0
A51: 50 | C51: 40224 | E51: Cement Factory | F51: AL RAWASI | G51: Road base | I51: 16.65 | J51: 0 | Q51: 0
A52: 51 | C52: 40224 | E52: Cement Factory | F52: AL RAWASI | G52: Road base | I52: 16.65 | J52: 0 | Q52: 0
A53: 52 | C53: 40224 | E53: Cement Factory | F53: AL NAKHEEL | G53: Road base | I53: 16.65 | J53: 0 | Q53: 0
A54: 53 | C54: 40224 | E54: DUCON | F54: AL KAWTHER | G54: Road base | I54: 21.97 | J54: 0 | Q54: 0
A55: 54 | C55: 40224 | E55: Cement Factory | F55: AL RAWASI | G55: Road base | I55: 16.65 | J55: 0 | Q55: 0
A56: 55 | C56: 40224 | E56: Cement Factory | F56: AL NAKHEEL | G56: Road base | I56: 16.65 | J56: 0 | Q56: 0
A57: 56 | C57: 40224 | E57: DUCON | F57: AL KAWTHER | G57: Road base | I57: 21.97 | J57: 0 | Q57: 0
A58: 57 | C58: 40224 | E58: Cement Factory | F58: AL RAWASI | G58: Road base | I58: 16.65 | J58: 0 | Q58: 0
A59: 58 | C59: 40224 | E59: Cement Factory | F59: AL RAWASI | G59: Road base | I59: 16.65 | J59: 0 | Q59: 0
A60: 59 | C60: 40224 | E60: Cement Factory | F60: AL RAWASI | G60: Road base | I60: 16.65 | J60: 0 | Q60: 0
A61: 60 | C61: 40224 | E61: DUBAI | F61: CENTRAL | G61: Road base | I61: 19 | J61: 0 | Q61: 0
A62: 61 | C62: 40224 | E62: DUCON | F62: AL KAWTHER | G62: Road base | I62: 21.97 | J62: 0 | Q62: 0
A63: 62 | C63: 40224 | E63: Cement Factory | F63: AL RAWASI | G63: Road base | I63: 16.65 | J63: 0 | Q63: 0
A64: 63 | C64: 40224 | E64: Cement Factory | F64: AL RAWASI | G64: Road base | I64: 16.65 | J64: 0 | Q64: 0
A65: 64 | C65: 40224 | E65: Cement Factory | F65: AL RAWASI | G65: Road base | I65: 16.65 | J65: 0 | Q65: 0
A66: =ROW()-1 -> 65 | C66: 40224 | E66: DUCON | F66: AL KAWTHER | G66: Road base | I66: =IF(AND(F66="RIDI SIDI"),"16.65",IF(AND(F66="CENTRAL",E66="DUBAI"),"19",IF(AND(F66="CENTRAL",E66="JEBEL ALI"),"21",IF(AND(F66="AL RAWASI"),"16.65",IF(AND(F66="AL NAKHEEL"),"16.65",IF(AND(F66="WB"),"22.60",IF(AND(F66="AL BARRAK",E66="DUCON"),"21.97",IF(AND(F66="AL KAWTHER",E66="DUCON"),"21.97",IF(AND(F66="AL KAWTHER"),"22.5",IF(AND(F66="AL FUTTAIM",E66="JEBEL ALI"),"8.75",IF(AND(F66="AL FUTTAIM",E66="MAFRAQ"),"16",IF(AND(F66="AL FUTTAIM",E66="AL QUOZ"),"7.70",IF(AND(F66="AL FUTTAIM",E66="MUSSAFAH"),"16.90",IF(AND(F66="AL FUTTAIM",E66="NAD AL SHEBA"),"8.50",IF(AND(F66="AL FUTTAIM",E66="MAHAWI"),"16.90",IF(AND(F66="AL RAWDA",E66="MADAM"),"24.50",)))))))))))))))) -> 21.97 | J66: =I66*H66 -> 0 | Q66: 0
A67: 66 | C67: 40224 | E67: DUCON | F67: AL KAWTHER | G67: Road base | I67: 21.97 | J67: 0 | Q67: 0
A68: 67 | C68: 40224 | E68: Cement Factory | F68: AL RAWASI | G68: Road base | I68: 16.65 | J68: 0 | Q68: 0
A69: 68 | C69: 40224 | E69: DUBAI | F69: CENTRAL | G69: Road base | I69: 19 | J69: 0 | Q69: 0
A70: 69 | C70: 40224 | E70: Cement Factory | F70: AL RAWASI | G70: Road base | I70: 16.65 | J70: 0 | Q70: 0
A71: 70 | C71: 40224 | E71: Cement Factory | F71: AL RAWASI | G71: Road base | I71: 16.65 | J71: 0 | Q71: 0
A72: 71 | C72: 40224 | E72: DUCON | F72: AL KAWTHER | G72: Road base | I72: 21.97 | J72: 0 | Q72: 0
A73: 72 | C73: 40224 | E73: Cement Factory | F73: AL RAWASI | G73: Road base | I73: 16.65 | J73: 0 | Q73: 0
A74: 73 | C74: 40224 | E74: Cement Factory | F74: AL RAWASI | G74: Road base | I74: 16.65 | J74: 0 | Q74: 0
A75: 74 | C75: 40224 | E75: Cement Factory | F75: AL RAWASI | G75: Road base | I75: 16.65 | J75: 0 | Q75: 0
A76: 75 | C76: 40224 | E76: Cement Factory | F76: AL RAWASI | G76: Road base | I76: 16.65 | J76: 0 | Q76: 0
A77: 76 | C77: 40224 | E77: DUBAI | F77: CENTRAL | G77: Road base | I77: 19 | J77: 0 | Q77: 0
A78: 77 | C78: 40224 | E78: DUCON | F78: AL BARRAK | G78: Road base | I78: 21.97 | J78: 0 | Q78: 0
A79: 78 | C79: 40224 | E79: DUCON | F79: AL BARRAK | G79: Road base | I79: 21.97 | J79: 0 | Q79: 0
A80: 79 | C80: 40224 | E80: AL QUOZ | F80: AL FUTTAIM | G80: Road base | I80: 7.70 | J80: 0 | Q80: 0
A81: 80 | C81: 40224 | E81: MAFRAQ | F81: AL FUTTAIM | G81: Road base | I81: 16 | J81: 0 | Q81: 0
B82: =SUBTOTAL(2,B2:B81) -> 34 | H82: =SUBTOTAL(9,H2:H81) -> 2708.82 | I82: =SUBTOTAL(9,I2:I81) -> 0 | J82: =SUBTOTAL(9,J2:J81) -> 38348.1274 | K82: 990 | L82: 4200 | M82: 11774 | N82: 0 | O82: 0 | P82: 9900 | Q82: 0 | R82: 4440

Sheet 40225
A1: م | B1: DATE التاريخ | C1: NO TRUCK رقم السيارة | D1: NO TICKET رقم الفاتورة | E1: DESTINATION الموقع | F1: CRUCHER الكسارة | G1: MATERIAL المادة | H1: NETWET الوزن | I1: RATE سعر الطن | J1: TOTAL الاجمالى | K1: FUJ ت/فجيرة | L1: SAEEDY ت/ساعدي | M1: DHAID ت/الذيد | N1: ZUBAIR ت/الزبير | O1: ALGHAIL ت/الغيل | P1: KADRAA ت/كدرة | Q1: DIESEL الديزل | R1: SALARY الراتب
A2: =ROW()-1 -> 1 | B2: 2019-03-01 | C2: 40225 | D2: 141339 | E2: MUSSAFAH | F2: AL FUTTAIM | G2: Road base | H2: 75.54 | I2: =IF(AND(F2="RIDI SIDI"),"16.65",IF(AND(F2="CENTRAL",E2="DUBAI"),"19",IF(AND(F2="CENTRAL",E2="JEBEL ALI"),"21",IF(AND(F2="AL RAWASI"),"16.65",IF(AND(F2="AL NAKHEEL"),"16.65",IF(AND(F2="WB"),"22.60",IF(AND(F2="AL BARRAK",E2="DUCON"),"21.97",IF(AND(F2="AL KAWTHER",E2="DUCON"),"21.97",IF(AND(F2="AL KAWTHER"),"22.5",IF(AND(F2="AL FUTTAIM",E2="JEBEL ALI"),"8.75",IF(AND(F2="AL FUTTAIM",E2="MAFRAQ"),"16",IF(AND(F2="AL FUTTAIM",E2="AL QUOZ"),"7.70",IF(AND(F2="AL FUTTAIM",E2="MUSSAFAH"),"16.90",IF(AND(F2="AL FUTTAIM",E2="NAD AL SHEBA"),"8.50",IF(AND(F2="AL FUTTAIM",E2="MAHAWI"),"16.90",IF(AND(F2="AL RAWDA",E2="MADAM"),"24.50",)))))))))))))))) -> 16.90 | J2: =I2*H2 -> 1276.626 | M2: 420.5 | P2: 550 | Q2: 0 | R2: 180
A3: 2 | B3: 2019-03-02 | C3: 40225 | D3: 141398 | E3: AL QUOZ | F3: AL FUTTAIM | G3: Road base | H3: 76.18 | I3: 7.70 | J3: 586.586 | M3: 420.5 | P3: 550 | Q3: 0 | R3: 70
A4: 3 | B4: 2019-03-03 | C4: 40225 | D4: 141484 | E4: AL QUOZ | F4: AL FUTTAIM | G4: Road base | H4: 73.1 | I4: 7.70 | J4: 562.87 | M4: 420.5 | P4: 550 | Q4: 0 | R4: 70
A5: 4 | B5: 2019-03-03 | C5: 40225 | D5: 141442 | E5: MUSSAFAH | F5: AL FUTTAIM | G5: Road base | H5: 80.86 | I5: 16.90 | J5: 1366.534 | M5: 420.5 | P5: 550 | Q5: 0 | R5: 180
A6: 5 | B6: 2019-03-04 | C6: 40225 | D6: 141560 | E6: AL QUOZ | F6: AL FUTTAIM | G6: Road base | H6: 75.34 | I6: 7.70 | J6: 580.118 | M6: 420.5 | P6: 550 | Q6: 0 | R6: 70
A7: 6 | B7: 2019-03-04 | C7: 40225 | D7: 141545 | E7: JEBEL ALI | F7: AL FUTTAIM | G7: Road base | H7: 79.18 | I7: 8.75 | J7: 692.825 | M7: 420.5 | P7: 550 | Q7: 0 | R7: 80
A8: 7 | B8: 2019-03-04 | C8: 40225 | D8: 141612 | E8: JEBEL ALI | F8: AL FUTTAIM | G8: Road base | H8: 75.74 | I8: 8.75 | J8: 662.725 | M8: 420.5 | P8: 550 | Q8: 0 | R8: 80
A9: 8 | B9: 2019-03-05 | C9: 40225 | D9: 141695 | E9: AL QUOZ | F9: AL FUTTAIM | G9: Road base | H9: 75.96 | I9: 7.70 | J9: 584.892 | M9: 420.5 | P9: 550 | Q9: 0 | R9: 70
A10: 9 | B10: 2019-03-05 | C10: 40225 | D10: 141654 | E10: MAFRAQ | F10: AL FUTTAIM | G10: Road base | H10: 77.66 | I10: 16 | J10: 1242.56 | M10: 420.5 | P10: 550 | Q10: 0 | R10: 160
A11: 10 | B11: 2019-03-06 | C11: 40225 | D11: 141745 | E11: MUSSAFAH | F11: AL FUTTAIM | G11: Road base | H11: 77.44 | I11: 16.90 | J11: 1308.736 | M11: 420.5 | P11: 550 | Q11: 0 | R11: 180
A12: 11 | B12: 2019-03-06 | C12: 40225 | D12: 141788 | E12: AL QUOZ | F12: AL FUTTAIM | G12: Road base | H12: 76.36 | I12: 7.70 | J12: 587.972 | M12: 420.5 | P12: 550 | Q12: 0 | R12: 70
A13: 12 | B13: 2019-03-07 | C13: 40225 | D13: 141838 | E13: MAFRAQ | F13: AL FUTTAIM | G13: Road base | H13: 73.92 | I13: 16 | J13: 1182.72 | M13: 420.5 | P13: 550 | Q13: 0 | R13: 160
A14: 13 | B14: 2019-03-07 | C14: 40225 | D14: 141894 | E14: AL QUOZ | F14: AL FUTTAIM | G14: Road base | H14: 74.48 | I14: 7.70 | J14: 573.496 | M14: 420.5 | P14: 550 | Q14: 0 | R14: 70
A15: 14 | B15: 2019-03-08 | C15: 40225 | D15: 2214600 | E15: Cement Factory | F15: AL RAWASI | G15: Road base | H15: 88.34 | I15: 16.65 | J15: 1470.861 | L15: 300 | Q15: 0 | R15: 100
A16: 15 | B16: 2019-03-08 | C16: 40225 | D16: 141956 | E16: MAFRAQ | F16: AL FUTTAIM | G16: Road base | H16: 78.5 | I16: 16 | J16: 1256 | M16: 420.5 | P16: 550 | Q16: 0 | R16: 160
A17: 16 | B17: 2019-03-09 | C17: 40225 | D17: 2214868 | E17: Cement Factory | F17: AL RAWASI | G17: Road base | H17: 78.48 | I17: 16.65 | J17: 1306.692 | L17: 300 | M17: 420.5 | Q17: 0 | R17: 75
A18: 17 | B18: 2019-03-09 | C18: 40225 | D18: 142034 | E18: MUSSAFAH | F18: AL FUTTAIM | G18: Road base | H18: 79.5 | I18: 16.90 | J18: 1343.55 | M18: 420.5 | P18: 550 | Q18: 0 | R18: 180
A19: 18 | B19: 2019-03-09 | C19: 40225 | D19: 142090 | E19: AL QUOZ | F19: AL FUTTAIM | G19: Road base | H19: 78.04 | I19: 7.70 | J19: 600.908 | M19: 420.5 | P19: 550 | Q19: 0 | R19: 70
A20: 19 | B20: 2019-03-10 | C20: 40225 | D20: 2215216 | E20: Cement Factory | F20: AL RAWASI | G20: Road base | H20: 78.08 | I20: 16.65 | J20: 1300.032 | L20: 300 | M20: 420.5 | Q20: 0 | R20: 75
A21: 20 | B21: 2019-03-10 | C21: 40225 | D21: 142166 | E21: MUSSAFAH | F21: AL FUTTAIM | G21: Road base | H21: 75.14 | I21: 16.90 | J21: 1269.866 | M21: 420.5 | P21: 550 | Q21: 0 | R21: 180
A22: 21 | B22: 2019-03-10 | C22: 40225 | D22: 142269 | E22: MUSSAFAH | F22: AL FUTTAIM | G22: Road base | H22: 76.28 | I22: 16.90 | J22: 1289.132 | M22: 420.5 | P22: 550 | Q22: 0 | R22: 180
A23: 22 | B23: 2019-03-11 | C23: 40225 | D23: 901356 | E23: DUCON | F23: AL BARRAK | G23: Road base | H23: 73.9 | I23: 21.97 | J23: 1623.583 | K23: 520 | M23: 420.5 | Q23: 0 | R23: 90
A24: 23 | B24: 2019-03-12 | C24: 40225 | D24: 2215472 | E24: Cement Factory | F24: AL RAWASI | G24: Road base | H24: 81.2 | I24: 16.65 | J24: 1351.98 | L24: 300 | Q24: 0 | R24: 100
A25: 24 | B25: 2019-03-12 | C25: 40225 | D25: 142473 | E25: AL QUOZ | F25: AL FUTTAIM | G25: Road base | H25: 78.9 | I25: 7.70 | J25: 607.53 | M25: 420.5 | P25: 550 | Q25: 0 | R25: 70
A26: 25 | B26: 2019-03-13 | C26: 40225 | D26: 142629 | E26: AL QUOZ | F26: AL FUTTAIM | G26: Road base | H26: 76.6 | I26: 7.70 | J26: 589.82 | M26: 420.5 | P26: 550 | Q26: 0 | R26: 70
A27: 26 | B27: 2019-03-13 | C27: 40225 | D27: 142539 | E27: MUSSAFAH | F27: AL FUTTAIM | G27: Road base | H27: 78.48 | I27: 16.90 | J27: 1326.312 | M27: 420.5 | P27: 550 | Q27: 0 | R27: 180
A28: 27 | B28: 2019-03-14 | C28: 40225 | D28: 2215690 | E28: Cement Factory | F28: AL RAWASI | G28: Road base | H28: 85.84 | I28: 16.65 | J28: 1429.236 | L28: 300 | M28: 420.5 | Q28: 0 | R28: 75
A29: 28 | B29: 2019-03-14 | C29: 40225 | D29: 142717 | E29: AL QUOZ | F29: AL FUTTAIM | G29: Road base | H29: 76.3 | I29: 7.70 | J29: 587.51 | M29: 420.5 | P29: 550 | Q29: 0 | R29: 70
A30: 29 | B30: 2019-03-15 | C30: 40225 | D30: 142817 | E30: AL QUOZ | F30: AL FUTTAIM | G30: Road base | H30: 77.86 | I30: 7.70 | J30: 599.522 | M30: 420.5 | P30: 550 | Q30: 0 | R30: 70
A31: 30 | B31: 2019-03-15 | C31: 40225 | D31: 142802 | E31: MAFRAQ | F31: AL FUTTAIM | G31: Road base | H31: 80.8 | I31: 16 | J31: 1292.8 | M31: 420.5 | P31: 550 | Q31: 0 | R31: 160
A32: 31 | B32: 2019-03-16 | C32: 40225 | D32: 2216038 | E32: Cement Factory | F32: AL RAWASI | G32: Road base | H32: 87.08 | I32: 16.65 | J32: 1449.882 | L32: 300 | Q32: 0 | R32: 100
A33: 32 | B33: 2019-03-16 | C33: 40225 | D33: 142876 | E33: JEBEL ALI | F33: AL FUTTAIM | G33: Road base | H33: 75.9 | I33: 8.75 | J33: 664.125 | M33: 420.5 | P33: 550 | Q33: 0 | R33: 80
A34: =ROW()-1 -> 33 | C34: 40225 | E34: MAFRAQ | F34: AL FUTTAIM | G34: Road base | I34: =IF(AND(F34="RIDI SIDI"),"16.65",IF(AND(F34="CENTRAL",E34="DUBAI"),"19",IF(AND(F34="CENTRAL",E34="JEBEL ALI"),"21",IF(AND(F34="AL RAWASI"),"16.65",IF(AND(F34="AL NAKHEEL"),"16.65",IF(AND(F34="WB"),"22.60",IF(AND(F34="AL BARRAK",E34="DUCON"),"21.97",IF(AND(F34="AL KAWTHER",E34="DUCON"),"21.97",IF(AND(F34="AL KAWTHER"),"22.5",IF(AND(F34="AL FUTTAIM",E34="JEBEL ALI"),"8.75",IF(AND(F34="AL FUTTAIM",E34="MAFRAQ"),"16",IF(AND(F34="AL FUTTAIM",E34="AL QUOZ"),"7.70",IF(AND(F34="AL FUTTAIM",E34="MUSSAFAH"),"16.90",IF(AND(F34="AL FUTTAIM",E34="NAD AL SHEBA"),"8.50",IF(AND(F34="AL FUTTAIM",E34="MAHAWI"),"16.90",IF(AND(F34="AL RAWDA",E34="MADAM"),"24.50",)))))))))))))))) -> 16 | J34: =I34*H34 -> 0 | Q34: 0 | R34: 160
A35: 34 | C35: 40225 | E35: JEBEL ALI | F35: AL FUTTAIM | G35: Road base | I35: 8.75 | J35: 0 | Q35: 0 | R35: 80
A36: 35 | C36: 40225 | E36: JEBEL ALI | F36: AL FUTTAIM | G36: Road base | I36: 8.75 | J36: 0 | Q36: 0 | R36: 80
A37: 36 | C37: 40225 | E37: AL QUOZ | F37: AL FUTTAIM | G37: Road base | I37: 7.70 | J37: 0 | Q37: 0 | R37: 70
A38: 37 | C38: 40225 | E38: AL QUOZ | F38: AL FUTTAIM | G38: Road base | I38: 7.70 | J38: 0 | Q38: 0 | R38: 70
A39: 38 | C39: 40225 | E39: MAFRAQ | F39: AL FUTTAIM | G39: Road base | I39: 16 | J39: 0 | Q39: 0 | R39: 160
A40: 39 | C40: 40225 | E40: AL QUOZ | F40: AL FUTTAIM | G40: Road base | I40: 7.70 | J40: 0 | Q40: 0 | R40: 70
A41: 40 | C41: 40225 | E41: MAFRAQ | F41: AL FUTTAIM | G41: Road base | I41: 16 | J41: 0 | Q41: 0 | R41: 160
A42: 41 | C42: 40225 | E42: AL QUOZ | F42: AL FUTTAIM | G42: Road base | I42: 7.70 | J42: 0 | Q42: 0 | R42: 70
A43: 42 | C43: 40225 | E43: MADAM | F43: AL RAWDA | G43: Road base | I43: 24.50 | J43: 0 | Q43: 0 | R43: 80
A44: 43 | C44: 40225 | E44: MADAM | F44: AL RAWDA | G44: Road base | I44: 24.50 | J44: 0 | Q44: 0 | R44: 80
A45: 44 | C45: 40225 | E45: DUBAI | F45: CENTRAL | G45: Road base | I45: 19 | J45: 0 | Q45: 0
A46: 45 | C46: 40225 | E46: Cement Factory | F46: AL RAWASI | G46: Road base | I46: 16.65 | J46: 0 | Q46: 0
A47: 46 | C47: 40225 | E47: DUBAI | F47: CENTRAL | G47: Road base | I47: 19 | J47: 0 | Q47: 0
A48: 47 | C48: 40225 | E48: Cement Factory | F48: AL RAWASI | G48: Road base | I48: 16.65 | J48: 0 | Q48: 0
A49: 48 | C49: 40225 | E49: Cement Factory | F49: AL RAWASI | G49: Road base | I49: 16.65 | J49: 0 | Q49: 0
A50: 49 | C50: 40225 | E50: Cement Factory | F50: AL RAWASI | G50: Road base | I50: 16.65 | J50: 0 | Q50: 0
A51: 50 | C51: 40225 | E51: Cement Factory | F51: AL RAWASI | G51: Road base | I51: 16.65 | J51: 0 | Q51: 0
A52: 51 | C52: 40225 | E52: DUCON | F52: AL KAWTHER | G52: Road base | I52: 21.97 | J52: 0 | Q52: 0
A53: 52 | C53: 40225 | E53: DUBAI | F53: CENTRAL | G53: Road base | I53: 19 | J53: 0 | Q53: 0
A54: 53 | C54: 40225 | E54: Cement Factory | F54: AL RAWASI | G54: Road base | I54: 16.65 | J54: 0 | Q54: 0
A55: 54 | C55: 40225 | E55: Cement Factory | F55: AL RAWASI | G55: Road base | I55: 16.65 | J55: 0 | Q55: 0
A56: 55 | C56: 40225 | E56: Cement Factory | F56: AL RAWASI | G56: Road base | I56: 16.65 | J56: 0 | Q56: 0
A57: 56 | C57: 40225 | E57: DUCON | F57: AL KAWTHER | G57: Road base | I57: 21.97 | J57: 0 | Q57: 0
A58: 57 | C58: 40225 | E58: MADAM | F58: AL RAWDA | G58: Road base | I58: 24.50 | J58: 0 | Q58: 0
A59: 58 | C59: 40225 | E59: Cement Factory | F59: AL RAWASI | G59: Road base | I59: 16.65 | J59: 0 | Q59: 0
A60: 59 | C60: 40225 | E60: Cement Factory | F60: AL RAWASI | G60: Road base | I60: 16.65 | J60: 0 | Q60: 0
A61: 60 | C61: 40225 | E61: DUCON | F61: AL KAWTHER | G61: Road base | I61: 21.97 | J61: 0 | Q61: 0
A62: 61 | C62: 40225 | E62: Cement Factory | F62: AL RAWASI | G62: Road base | I62: 16.65 | J62: 0 | Q62: 0
A63: 62 | C63: 40225 | E63: Cement Factory | F63: AL RAWASI | G63: Road base | I63: 16.65 | J63: 0 | Q63: 0
A64: 63 | C64: 40225 | E64: Cement Factory | F64: AL RAWASI | G64: Road base | I64: 16.65 | J64: 0 | Q64: 0
A65: 64 | C65: 40225 | E65: DUBAI | F65: CENTRAL | G65: Road base | I65: 19 | J65: 0 | Q65: 0
A66: =ROW()-1 -> 65 | C66: 40225 | E66: Cement Factory | F66: AL RAWASI | G66: Road base | I66: =IF(AND(F66="RIDI SIDI"),"16.65",IF(AND(F66="CENTRAL",E66="DUBAI"),"19",IF(AND(F66="CENTRAL",E66="JEBEL ALI"),"21",IF(AND(F66="AL RAWASI"),"16.65",IF(AND(F66="AL NAKHEEL"),"16.65",IF(AND(F66="WB"),"22.60",IF(AND(F66="AL BARRAK",E66="DUCON"),"21.97",IF(AND(F66="AL KAWTHER",E66="DUCON"),"21.97",IF(AND(F66="AL KAWTHER"),"22.5",IF(AND(F66="AL FUTTAIM",E66="JEBEL ALI"),"8.75",IF(AND(F66="AL FUTTAIM",E66="MAFRAQ"),"16",IF(AND(F66="AL FUTTAIM",E66="AL QUOZ"),"7.70",IF(AND(F66="AL FUTTAIM",E66="MUSSAFAH"),"16.90",IF(AND(F66="AL FUTTAIM",E66="NAD AL SHEBA"),"8.50",IF(AND(F66="AL FUTTAIM",E66="MAHAWI"),"16.90",IF(AND(F66="AL RAWDA",E66="MADAM"),"24.50",)))))))))))))))) -> 16.65 | J66: =I66*H66 -> 0 | Q66: 0
A67: 66 | C67: 40225 | E67: Cement Factory | F67: AL RAWASI | G67: Road base | I67: 16.65 | J67: 0 | Q67: 0
A68: 67 | C68: 40225 | E68: Cement Factory | F68: AL RAWASI | G68: Road base | I68: 16.65 | J68: 0 | Q68: 0
A69: 68 | C69: 40225 | E69: Cement Factory | F69: AL RAWASI | G69: Road base | I69: 16.65 | J69: 0 | Q69: 0
A70: 69 | C70: 40225 | E70: DUCON | F70: AL KAWTHER | G70: Road base | I70: 21.97 | J70: 0 | Q70: 0
A71: 70 | C71: 40225 | E71: DUCON | F71: AL KAWTHER | G71: Road base | I71: 21.97 | J71: 0 | Q71: 0
A72: 71 | C72: 40225 | E72: Cement Factory | F72: AL RAWASI | G72: Road base | I72: 16.65 | J72: 0 | Q72: 0
A73: 72 | C73: 40225 | E73: Cement Factory | F73: AL RAWASI | G73: Road base | I73: 16.65 | J73: 0 | Q73: 0
A74: 73 | C74: 40225 | E74: DUCON | F74: AL KAWTHER | G74: Road base | I74: 21.97 | J74: 0 | Q74: 0
A75: 74 | C75: 40225 | E75: DUCON | F75: AL BARRAK | G75: Road base | I75: 21.97 | J75: 0
A76: 75 | C76: 40225 | E76: Cement Factory | F76: AL RAWASI | G76: Road base | I76: 16.65 | J76: 0 | Q76: 0
A77: 76 | C77: 40225 | E77: DUCON | F77: AL KAWTHER | G77: Road base | I77: 21.97 | J77: 0 | Q77: 0
A78: 77 | C78: 40225 | E78: DUCON | F78: AL KAWTHER | G78: Road base | I78: 21.97 | J78: 0
A79: 78 | C79: 40225 | E79: Cement Factory | F79: AL RAWASI | G79: Road base | I79: 16.65 | J79: 0 | Q79: 0
A80: 79 | C80: 40225 | E80: Cement Factory | F80: AL RAWASI | G80: Road base | I80: 16.65 | J80: 0 | Q80: 0
A81: 80 | C81: 40225 | E81: DUCON | F81: AL KAWTHER | G81: Road base | I81: 21.97 | J81: 0
A82: 81 | C82: 40225 | E82: Cement Factory | F82: AL RAWASI | G82: Road base | I82: 16.65 | J82: 0 | Q82: 0
A83: 82 | C83: 40225 | E83: AL QUOZ | F83: AL FUTTAIM | G83: Road base | I83: 7.70 | J83: 0 | Q83: 0
A84: 83 | C84: 40225 | E84: MAFRAQ | F84: AL FUTTAIM | G84: Road base | I84: 16 | J84: 0 | Q84: 0
A85: 84 | I85: 0 | J85: 0
B86: =SUBTOTAL(2,B2:B85) -> 32 | H86: =SUBTOTAL(9,H2:H85) -> 2496.98 | I86: =SUBTOTAL(9,I2:I85) -> 0 | J86: =SUBTOTAL(9,J2:J85) -> 32568.001 | K86: =SUBTOTAL(9,K2:K85) -> 520 | L86: =SUBTOTAL(9,L2:L85) -> 1800 | M86: =SUBTOTAL(9,M2:M85) -> 12194.5 | N86: 0 | O86: 0 | P86: =SUBTOTAL(9,P2:P85) -> 13750 | Q86: 0 | R86: 4605

Sheet 40109
A1: م | B1: DATE التاريخ | C1: NO TRUCK رقم السيارة | D1: NO TICKET رقم الفاتورة | E1: DESTINATION الموقع | F1: CRUCHER الكسارة | G1: MATERIAL المادة | H1: NETWET الوزن | I1: RATE سعر الطن | J1: TOTAL الاجمالى | K1: FUJ ت/فجيرة | L1: SAEEDY ت/ساعدي | M1: DHAID ت/الذيد | N1: ZUBAIR ت/الزبير | O1: ALGHAIL ت/الغيل | P1: KADRAA ت/كدرة | Q1: DIESEL الديزل | R1: SALARY الراتب
A2: =ROW()-1 -> 1 | B2: 2019-03-01 | C2: 40109 | D2: 141338 | E2: MUSSAFAH | F2: AL FUTTAIM | G2: Road base | H2: 79.32 | I2: =IF(AND(F2="RIDI SIDI"),"16.65",IF(AND(F2="CENTRAL",E2="DUBAI"),"19",IF(AND(F2="CENTRAL",E2="JEBEL ALI"),"21",IF(AND(F2="AL RAWASI"),"16.65",IF(AND(F2="AL NAKHEEL"),"16.65",IF(AND(F2="WB"),"22.60",IF(AND(F2="AL BARRAK",E2="DUCON"),"21.97",IF(AND(F2="AL KAWTHER",E2="DUCON"),"21.97",IF(AND(F2="AL KAWTHER"),"22.5",IF(AND(F2="AL FUTTAIM",E2="JEBEL ALI"),"8.75",IF(AND(F2="AL FUTTAIM",E2="MAFRAQ"),"16",IF(AND(F2="AL FUTTAIM",E2="AL QUOZ"),"7.70",IF(AND(F2="AL FUTTAIM",E2="MUSSAFAH"),"16.90",IF(AND(F2="AL FUTTAIM",E2="NAD AL SHEBA"),"8.50",IF(AND(F2="AL FUTTAIM",E2="MAHAWI"),"16.90",IF(AND(F2="AL RAWDA",E2="MADAM"),"24.50",)))))))))))))))) -> 16.90 | J2: =I2*H2 -> 1340.508 | M2: 420.5 | P2: 550 | Q2: 0 | R2: 180
A3: 2 | B3: 2019-03-02 | C3: 40109 | D3: 141384 | E3: AL QUOZ | F3: AL FUTTAIM | G3: Road base | H3: 76.32 | I3: 7.70 | J3: 587.664 | M3: 420.5 | P3: 550 | Q3: 0 | R3: 70
A4: 3 | B4: 2019-03-02 | C4: 40109 | D4: 141431 | E4: MAFRAQ | F4: AL FUTTAIM | G4: Road base | H4: 77.42 | I4: 16 | J4: 1238.72 | M4: 420.5 | P4: 550 | Q4: 0 | R4: 160
A5: 4 | B5: 2019-03-03 | C5: 40109 | D5: 141451 | E5: AL QUOZ | F5: AL FUTTAIM | G5: Road base | H5: 77.5 | I5: 7.70 | J5: 596.75 | M5: 420.5 | P5: 550 | Q5: 0 | R5: 70
A6: 5 | B6: 2019-03-03 | C6: 40109 | D6: 141496 | E6: JEBEL ALI | F6: AL FUTTAIM | G6: Road base | H6: 78.78 | I6: 8.75 | J6: 689.325 | M6: 420.5 | P6: 550 | Q6: 0 | R6: 80
A7: 6 | B7: 2019-03-04 | C7: 40109 | D7: 141561 | E7: AL QUOZ | F7: AL FUTTAIM | G7: Road base | H7: 76.12 | I7: 7.70 | J7: 586.124 | M7: 420.5 | P7: 550 | Q7: 0 | R7: 70
A8: 7 | B8: 2019-03-04 | C8: 40109 | D8: 141604 | E8: JEBEL ALI | F8: AL FUTTAIM | G8: Road base | H8: 76.86 | I8: 8.75 | J8: 672.525 | M8: 420.5 | P8: 550 | Q8: 0 | R8: 80
A9: 8 | B9: 2019-03-05 | C9: 40109 | D9: 141738 | E9: MUSSAFAH | F9: AL FUTTAIM | G9: Road base | H9: 77.22 | I9: 16.90 | J9: 1305.018 | M9: 420.5 | P9: 550 | Q9: 0 | R9: 180
A10: 9 | B10: 2019-03-05 | C10: 40109 | D10: 141696 | E10: AL QUOZ | F10: AL FUTTAIM | G10: Road base | H10: 76.28 | I10: 7.70 | J10: 587.356 | M10: 420.5 | P10: 550 | Q10: 0 | R10: 70
A11: 10 | B11: 2019-03-05 | C11: 40109 | D11: 141653 | E11: MAFRAQ | F11: AL FUTTAIM | G11: Road base | H11: 78.32 | I11: 16 | J11: 1253.12 | M11: 420.5 | P11: 550 | Q11: 0 | R11: 160
A12: 11 | B12: 2019-03-06 | C12: 40109 | D12: 141784 | E12: AL QUOZ | F12: AL FUTTAIM | G12: Road base | H12: 77.32 | I12: 7.70 | J12: 595.364 | M12: 420.5 | P12: 550 | Q12: 0 | R12: 70
A13: 12 | B13: 2019-03-07 | C13: 40109 | D13: 2214334 | E13: Cement Factory | F13: AL NAKHEEL | G13: Road base | H13: 76.86 | I13: 16.65 | J13: 1279.719 | L13: 300 | Q13: 0 | R13: 100
A14: 13 | B14: 2019-03-07 | C14: 40109 | D14: 2214447 | E14: Cement Factory | F14: AL RAWASI | G14: Road base | H14: 74.78 | I14: 16.65 | J14: 1245.087 | L14: 300 | M14: 420.5 | Q14: 0 | R14: 75
A15: 14 | B15: 2019-03-07 | C15: 40109 | D15: 141851 | E15: JEBEL ALI | F15: AL FUTTAIM | G15: Road base | H15: 79.76 | I15: 8.75 | J15: 697.9 | M15: 420.5 | P15: 550 | Q15: 0 | R15: 80
A16: 15 | B16: 2019-03-08 | C16: 40109 | D16: 2214571 | E16: Cement Factory | F16: AL RAWASI | G16: Road base | H16: 78.08 | I16: 16.65 | J16: 1300.032 | L16: 300 | Q16: 0 | R16: 100
A17: 16 | B17: 2019-03-08 | C17: 40109 | D17: 141950 | E17: MAFRAQ | F17: AL FUTTAIM | G17: Road base | H17: 80.2 | I17: 16 | J17: 1283.2 | M17: 420.5 | P17: 550 | Q17: 0 | R17: 160
A18: 17 | B18: 2019-03-09 | C18: 40109 | D18: 2214862 | E18: Cement Factory | F18: AL RAWASI | G18: Road base | H18: 78.44 | I18: 16.65 | J18: 1306.026 | L18: 300 | M18: 420.5 | Q18: 0 | R18: 75
A19: 18 | B19: 2019-03-09 | C19: 40109 | D19: 142086 | E19: AL QUOZ | F19: AL FUTTAIM | G19: Road base | H19: 76.9 | I19: 7.70 | J19: 592.13 | M19: 420.5 | P19: 550 | Q19: 0 | R19: 70
A20: 19 | B20: 2019-03-09 | C20: 40109 | D20: 142032 | E20: MUSSAFAH | F20: AL FUTTAIM | G20: Road base | H20: 77.44 | I20: 16.90 | J20: 1308.736 | M20: 420.5 | P20: 550 | Q20: 0 | R20: 180
A21: 20 | B21: 2019-03-09 | C21: 40109 | D21: 142142 | E21: MUSSAFAH | F21: AL FUTTAIM | G21: Road base | H21: 77.64 | I21: 16.90 | J21: 1312.116 | M21: 420.5 | P21: 550 | Q21: 0 | R21: 180
A22: 21 | B22: 2019-03-10 | C22: 40109 | D22: 2215219 | E22: Cement Factory | F22: AL RAWASI | G22: Road base | H22: 71.36 | I22: 16.65 | J22: 1188.144 | L22: 300 | M22: 420.5 | Q22: 0 | R22: 75
A23: 22 | B23: 2019-03-10 | C23: 40109 | D23: 142279 | E23: MUSSAFAH | F23: AL FUTTAIM | G23: Road base | H23: 79.06 | I23: 16.90 | J23: 1336.114 | M23: 420.5 | P23: 550 | Q23: 0 | R23: 180
A24: 23 | B24: 2019-03-11 | C24: 40109 | D24: 2215375 | E24: Cement Factory | F24: AL RAWASI | G24: Road base | H24: 80.46 | I24: 16.65 | J24: 1339.659 | L24: 300 | M24: 420.5 | Q24: 0 | R24: 75
A25: 24 | B25: 2019-03-11 | C25: 40109 | D25: 142372 | E25: MUSSAFAH | F25: AL FUTTAIM | G25: Road base | H25: 81.96 | I25: 16.90 | J25: 1385.124 | M25: 420.5 | P25: 550 | Q25: 0 | R25: 180
A26: 25 | B26: 2019-03-12 | C26: 40109 | D26: 142462 | E26: JEBEL ALI | F26: AL FUTTAIM | G26: Road base | H26: 76.58 | I26: 8.75 | J26: 670.075 | M26: 420.5 | P26: 550 | Q26: 0 | R26: 80
A27: 26 | B27: 2019-03-13 | C27: 40109 | D27: 142615 | E27: AL QUOZ | F27: AL FUTTAIM | G27: Road base | H27: 76.3 | I27: 7.70 | J27: 587.51 | M27: 420.5 | P27: 550 | Q27: 0 | R27: 70
A28: 27 | B28: 2019-03-13 | C28: 40109 | D28: 142526 | E28: MUSSAFAH | F28: AL FUTTAIM | G28: Road base | H28: 80.06 | I28: 16.90 | J28: 1353.014 | M28: 420.5 | P28: 550 | Q28: 0 | R28: 180
A29: 28 | B29: 2019-03-14 | C29: 40109 | D29: 142671 | E29: AL QUOZ | F29: AL FUTTAIM | G29: Road base | H29: 81.78 | I29: 7.70 | J29: 629.706 | M29: 420.5 | P29: 550 | Q29: 0 | R29: 70
A30: 29 | B30: 2019-03-14 | C30: 40109 | D30: 2215678 | E30: Cement Factory | F30: AL RAWASI | G30: Road base | H30: 79.9 | I30: 16.65 | J30: 1330.335 | L30: 300 | M30: 420.5 | Q30: 0 | R30: 75
A31: 30 | B31: 2019-03-14 | C31: 40109 | D31: 142797 | E31: MAFRAQ | F31: AL FUTTAIM | G31: Road base | H31: 78.78 | I31: 16 | J31: 1260.48 | M31: 420.5 | P31: 550 | Q31: 0 | R31: 160
A32: 31 | B32: 2019-03-15 | C32: 40109 | D32: 142816 | E32: AL QUOZ | F32: AL FUTTAIM | G32: Road base | H32: 79.74 | I32: 7.70 | J32: 613.998 | M32: 420.5 | P32: 550 | Q32: 0 | R32: 70
A33: 32 | B33: 2019-03-16 | C33: 40109 | D33: 2216035 | E33: Cement Factory | F33: AL RAWASI | G33: Road base | H33: 84.4 | I33: 16.65 | J33: 1405.26 | L33: 300 | Q33: 0 | R33: 100
A34: =ROW()-1 -> 33 | B34: 2019-03-16 | C34: 40109 | D34: 142872 | E34: JEBEL ALI | F34: AL FUTTAIM | G34: Road base | H34: 76.74 | I34: =IF(AND(F34="RIDI SIDI"),"16.65",IF(AND(F34="CENTRAL",E34="DUBAI"),"19",IF(AND(F34="CENTRAL",E34="JEBEL ALI"),"21",IF(AND(F34="AL RAWASI"),"16.65",IF(AND(F34="AL NAKHEEL"),"16.65",IF(AND(F34="WB"),"22.60",IF(AND(F34="AL BARRAK",E34="DUCON"),"21.97",IF(AND(F34="AL KAWTHER",E34="DUCON"),"21.97",IF(AND(F34="AL KAWTHER"),"22.5",IF(AND(F34="AL FUTTAIM",E34="JEBEL ALI"),"8.75",IF(AND(F34="AL FUTTAIM",E34="MAFRAQ"),"16",IF(AND(F34="AL FUTTAIM",E34="AL QUOZ"),"7.70",IF(AND(F34="AL FUTTAIM",E34="MUSSAFAH"),"16.90",IF(AND(F34="AL FUTTAIM",E34="NAD AL SHEBA"),"8.50",IF(AND(F34="AL FUTTAIM",E34="MAHAWI"),"16.90",IF(AND(F34="AL RAWDA",E34="MADAM"),"24.50",)))))))))))))))) -> 8.75 | J34: =I34*H34 -> 671.475 | M34: 420.5 | P34: 550 | Q34: 0 | R34: 80
A35: 34 | C35: 40109 | E35: MUSSAFAH | F35: AL FUTTAIM | G35: Road base | I35: 16.90 | J35: 0 | Q35: 0 | R35: 180
A36: 35 | C36: 40109 | E36: JEBEL ALI | F36: AL FUTTAIM | G36: Road base | I36: 8.75 | J36: 0 | Q36: 0 | R36: 80
A37: 36 | C37: 40109 | E37: MUSSAFAH | F37: AL FUTTAIM | G37: Road base | I37: 16.90 | J37: 0 | Q37: 0 | R37: 180
A38: 37 | C38: 40109 | E38: AL QUOZ | F38: AL FUTTAIM | G38: Road base | I38: 7.70 | J38: 0 | Q38: 0 | R38: 70
A39: 38 | C39: 40109 | E39: DUCON | F39: AL BARRAK | G39: Road base | I39: 21.97 | J39: 0 | Q39: 0 | R39: 90
A40: 39 | C40: 40109 | E40: AL QUOZ | F40: AL FUTTAIM | G40: Road base | I40: 7.70 | J40: 0 | Q40: 0 | R40: 70
A41: 40 | C41: 40109 | E41: AL QUOZ | F41: AL FUTTAIM | G41: Road base | I41: 7.70 | J41: 0 | Q41: 0 | R41: 70
A42: 41 | C42: 40109 | E42: AL QUOZ | F42: AL FUTTAIM | G42: Road base | I42: 7.70 | J42: 0 | Q42: 0 | R42: 70
A43: 42 | C43: 40109 | E43: MAFRAQ | F43: AL FUTTAIM | G43: Road base | I43: 16 | J43: 0 | Q43: 0 | R43: 160
A44: 43 | C44: 40109 | E44: AL QUOZ | F44: AL FUTTAIM | G44: Road base | I44: 7.70 | J44: 0 | Q44: 0 | R44: 70
A45: 44 | C45: 40109 | E45: DUCON | F45: AL BARRAK | G45: Road base | I45: 21.97 | J45: 0 | Q45: 0 | R45: 90
A46: 45 | C46: 40109 | E46: AL QUOZ | F46: AL FUTTAIM | G46: Road base | I46: 7.70 | J46: 0 | Q46: 0 | R46: 70
A47: 46 | C47: 40109 | E47: MAFRAQ | F47: AL FUTTAIM | G47: Road base | I47: 16 | J47: 0 | Q47: 0 | R47: 160
A48: 47 | C48: 40109 | E48: DUCON | F48: AL KAWTHER | G48: Road base | I48: 21.97 | J48: 0 | Q48: 0
A49: 48 | C49: 40109 | E49: Cement Factory | F49: AL RAWASI | G49: Road base | I49: 16.65 | J49: 0 | Q49: 0
A50: 49 | C50: 40109 | E50: DUCON | F50: AL KAWTHER | G50: Road base | I50: 21.97 | J50: 0 | Q50: 0
A51: 50 | C51: 40109 | E51: DUCON | F51: AL KAWTHER | G51: Road base | I51: 21.97 | J51: 0 | Q51: 0
A52: 51 | C52: 40109 | E52: Cement Factory | F52: AL RAWASI | G52: Road base | I52: 16.65 | J52: 0 | Q52: 0
A53: 52 | C53: 40109 | E53: Cement Factory | F53: AL RAWASI | G53: Road base | I53: 16.65 | J53: 0 | Q53: 0
A54: 53 | C54: 40109 | E54: DUCON | F54: AL KAWTHER | G54: Road base | I54: 21.97 | J54: 0 | Q54: 0
A55: 54 | C55: 40109 | E55: Cement Factory | F55: AL RAWASI | G55: Road base | I55: 16.65 | J55: 0 | Q55: 0
A56: 55 | C56: 40109 | E56: Cement Factory | F56: AL RAWASI | G56: Road base | I56: 16.65 | J56: 0 | Q56: 0
A57: 56 | C57: 40225 | E57: MADAM | F57: AL RAWDA | G57: Road base | I57: 24.50 | J57: 0 | Q57: 0
A58: 57 | C58: 40109 | E58: DUCON | F58: AL KAWTHER | G58: Road base | I58: 21.97 | J58: 0 | Q58: 0
A59: 58 | C59: 40109 | E59: Cement Factory | F59: AL RAWASI | G59: Road base | I59: 16.65 | J59: 0 | Q59: 0
A60: 59 | C60: 40109 | E60: Cement Factory | F60: AL RAWASI | G60: Road base | I60: 16.65 | J60: 0 | Q60: 0
A61: 60 | C61: 40109 | E61: Cement Factory | F61: AL RAWASI | G61: Road base | I61: 16.65 | J61: 0 | Q61: 0
A62: 61 | C62: 40109 | E62: DUBAI | F62: CENTRAL | G62: Road base | I62: 19 | J62: 0 | Q62: 0
A63: 62 | C63: 40109 | E63: Cement Factory | F63: AL RAWASI | G63: Road base | I63: 16.65 | J63: 0 | Q63: 0
A64: 63 | C64: 40109 | E64: Cement Factory | F64: AL RAWASI | G64: Road base | I64: 16.65 | J64: 0 | Q64: 0
A65: 64 | C65: 40109 | E65: Cement Factory | F65: AL RAWASI | G65: Road base | I65: 16.65 | J65: 0 | Q65: 0
A66: =ROW()-1 -> 65 | C66: 40109 | E66: Cement Factory | F66: AL RAWASI | G66: Road base | I66: =IF(AND(F66="RIDI SIDI"),"16.65",IF(AND(F66="CENTRAL",E66="DUBAI"),"19",IF(AND(F66="CENTRAL",E66="JEBEL ALI"),"21",IF(AND(F66="AL RAWASI"),"16.65",IF(AND(F66="AL NAKHEEL"),"16.65",IF(AND(F66="WB"),"22.60",IF(AND(F66="AL BARRAK",E66="DUCON"),"21.97",IF(AND(F66="AL KAWTHER",E66="DUCON"),"21.97",IF(AND(F66="AL KAWTHER"),"22.5",IF(AND(F66="AL FUTTAIM",E66="JEBEL ALI"),"8.75",IF(AND(F66="AL FUTTAIM",E66="MAFRAQ"),"16",IF(AND(F66="AL FUTTAIM",E66="AL QUOZ"),"7.70",IF(AND(F66="AL FUTTAIM",E66="MUSSAFAH"),"16.90",IF(AND(F66="AL FUTTAIM",E66="NAD AL SHEBA"),"8.50",IF(AND(F66="AL FUTTAIM",E66="MAHAWI"),"16.90",IF(AND(F66="AL RAWDA",E66="MADAM"),"24.50",)))))))))))))))) -> 16.65 | J66: =I66*H66 -> 0 | Q66: 0
A67: 66 | C67: 40109 | E67: DUCON | F67: AL KAWTHER | G67: Road base | I67: 21.97 | J67: 0 | Q67: 0
A68: 67 | C68: 40109 | E68: DUCON | F68: AL KAWTHER | G68: Road base | I68: 21.97 | J68: 0 | Q68: 0
A69: 68 | C69: 40109 | E69: Cement Factory | F69: AL RAWASI | G69: Road base | I69: 16.65 | J69: 0 | Q69: 0
A70: 69 | C70: 40109 | E70: Cement Factory | F70: AL RAWASI | G70: Road base | I70: 16.65 | J70: 0 | Q70: 0
A71: 70 | C71: 40109 | E71: DUCON | F71: AL KAWTHER | G71: Road base | I71: 21.97 | J71: 0 | Q71: 0
A72: 71 | C72: 40109 | E72: Cement Factory | F72: AL RAWASI | G72: Road base | I72: 16.65 | J72: 0 | Q72: 0
A73: 72 | C73: 40109 | E73: DUCON | F73: AL KAWTHER | G73: Road base | I73: 21.97 | J73: 0 | Q73: 0
A74: 73 | C74: 40109 | E74: Cement Factory | F74: AL RAWASI | G74: Road base | I74: 16.65 | J74: 0 | Q74: 0
A75: 74 | C75: 40109 | E75: Cement Factory | F75: AL RAWASI | G75: Road base | I75: 16.65 | J75: 0 | Q75: 0
A76: 75 | C76: 40109 | E76: Cement Factory | F76: AL RAWASI | G76: Road base | I76: 16.65 | J76: 0 | Q76: 0
A77: 76 | C77: 40109 | E77: Cement Factory | F77: AL RAWASI | G77: Road base | I77: 16.65 | J77: 0 | Q77: 0
A78: 77 | C78: 40109 | E78: Cement Factory | F78: AL RAWASI | G78: Road base | I78: 16.65 | J78: 0 | Q78: 0
A79: 78 | C79: 40109 | E79: DUBAI | F79: CENTRAL | G79: Road base | I79: 19 | J79: 0 | Q79: 0
A80: 79 | C80: 40109 | E80: AL QUOZ | F80: AL FUTTAIM | G80: Road base | I80: 7.70 | J80: 0 | Q80: 0
A81: 80 | C81: 40109 | E81: MAFRAQ | F81: AL FUTTAIM | G81: Road base | I81: 16 | J81: 0 | Q81: 0
B82: =SUBTOTAL(2,B2:B81) -> 33 | H82: =SUBTOTAL(9,H2:H81) -> 2578.68 | I82: =SUBTOTAL(9,I2:I81) -> 0 | J82: =SUBTOTAL(9,J2:J81) -> 33548.314 | K82: 0 | L82: =SUBTOTAL(9,L2:L81) -> 2400 | M82: =SUBTOTAL(9,M2:M81) -> 12615 | N82: 0 | O82: 0 | P82: 13750 | Q82: 0 | R82: 4965

Sheet 52152
A1: م | B1: DATE التاريخ | C1: NO TRUCK رقم السيارة | D1: NO TICKET رقم الفاتورة | E1: DESTINATION الموقع | F1: CRUCHER الكسارة | G1: MATERIAL المادة | H1: NETWET الوزن | I1: RATE سعر الطن | J1: TOTAL الاجمالى | K1: FUJ ت/فجيرة | L1: SAEEDY ت/ساعدي | M1: DHAID ت/الذيد | N1: ZUBAIR ت/الزبير | O1: ALGHAIL ت/الغيل | P1: KADRAA ت/كدرة | Q1: DIESEL الديزل | R1: SALARY الراتب
A2: =ROW()-1 -> 1 | B2: 2019-03-01 | C2: 52152 | D2: 141341 | E2: MUSSAFAH | F2: AL FUTTAIM | G2: Road base | H2: 76.72 | I2: =IF(AND(F2="RIDI SIDI"),"16.65",IF(AND(F2="CENTRAL",E2="DUBAI"),"19",IF(AND(F2="CENTRAL",E2="JEBEL ALI"),"21",IF(AND(F2="AL RAWASI"),"16.65",IF(AND(F2="AL NAKHEEL"),"16.65",IF(AND(F2="WB"),"22.60",IF(AND(F2="AL BARRAK",E2="DUCON"),"21.97",IF(AND(F2="AL KAWTHER",E2="DUCON"),"21.97",IF(AND(F2="AL KAWTHER"),"22.5",IF(AND(F2="AL FUTTAIM",E2="JEBEL ALI"),"8.75",IF(AND(F2="AL FUTTAIM",E2="MAFRAQ"),"16",IF(AND(F2="AL FUTTAIM",E2="AL QUOZ"),"7.70",IF(AND(F2="AL FUTTAIM",E2="MUSSAFAH"),"16.90",IF(AND(F2="AL FUTTAIM",E2="NAD AL SHEBA"),"8.50",IF(AND(F2="AL FUTTAIM",E2="MAHAWI"),"16.90",IF(AND(F2="AL RAWDA",E2="MADAM"),"24.50",)))))))))))))))) -> 16.90 | J2: =I2*H2 -> 1296.568 | M2: 420.5 | P2: 550 | Q2: 0 | R2: 180
A3: 2 | B3: 2019-03-02 | C3: 52152 | D3: 141382 | E3: AL QUOZ | F3: AL FUTTAIM | G3: Road base | H3: 76.44 | I3: 7.70 | J3: 588.588 | M3: 420.5 | P3: 550 | Q3: 0 | R3: 70
A4: 3 | B4: 2019-03-02 | C4: 52152 | D4: 141414 | E4: MAFRAQ | F4: AL FUTTAIM | G4: Road base | H4: 78.56 | I4: 16 | J4: 1256.96 | M4: 420.5 | P4: 550 | Q4: 0 | R4: 160
A5: 4 | B5: 2019-03-03 | C5: 52152 | D5: 141527 | E5: MAFRAQ | F5: AL FUTTAIM | G5: Road base | H5: 76.66 | I5: 16 | J5: 1226.56 | M5: 420.5 | P5: 550 | Q5: 0 | R5: 160
A6: 5 | B6: 2019-03-03 | C6: 52152 | D6: 899834 | E6: DUCON | F6: AL BARRAK | G6: Road base | H6: 72.42 | I6: 21.97 | J6: 1591.0674 | K6: 510 | M6: 420.5 | Q6: 0 | R6: 90
A7: 6 | B7: 2019-03-04 | C7: 52152 | D7: 141577 | E7: AL QUOZ | F7: AL FUTTAIM | G7: Road base | H7: 77.6 | I7: 7.70 | J7: 597.52 | M7: 420.5 | P7: 550 | Q7: 0 | R7: 70
A8: 7 | B8: 2019-03-04 | C8: 52152 | D8: 141639 | E8: JEBEL ALI | F8: AL FUTTAIM | G8: Road base | H8: 78.42 | I8: 8.75 | J8: 686.175 | M8: 420.5 | P8: 550 | Q8: 0 | R8: 80
A9: 8 | B9: 2019-03-05 | C9: 52152 | D9: 141694 | E9: AL QUOZ | F9: AL FUTTAIM | G9: Road base | H9: 76.84 | I9: 7.70 | J9: 591.668 | M9: 420.5 | P9: 550 | Q9: 0 | R9: 70
A10: 9 | B10: 2019-03-05 | C10: 52152 | D10: 141665 | E10: JEBEL ALI | F10: AL FUTTAIM | G10: Road base | H10: 77.06 | I10: 8.75 | J10: 674.275 | M10: 420.5 | P10: 550 | Q10: 0 | R10: 80
A11: 10 | B11: 2019-03-06 | C11: 52152 | D11: 2214226 | E11: Cement Factory | F11: AL RAWASI | G11: Road base | H11: 84.2 | I11: 16.65 | J11: 1401.93 | L11: 300 | M11: 420.5 | Q11: 0 | R11: 75
A12: 11 | B12: 2019-03-06 | C12: 52152 | D12: 2214288 | E12: Cement Factory | F12: AL RAWASI | G12: Road base | H12: 87.78 | I12: 16.65 | J12: 1461.537 | L12: 300 | M12: 420.5 | Q12: 0 | R12: 75
A13: 12 | B13: 2019-03-06 | C13: 52152 | D13: 2214132 | E13: Cement Factory | F13: AL RAWASI | G13: Road base | H13: 84.24 | I13: 16.65 | J13: 1402.596 | L13: 300 | Q13: 0 | R13: 100
A14: 13 | B14: 2019-03-07 | C14: 52152 | D14: 2214324 | E14: Cement Factory | F14: AL RAWASI | G14: Road base | H14: 80.6 | I14: 16.65 | J14: 1341.99 | L14: 300 | M14: 420.5 | Q14: 0 | R14: 100
A15: 14 | B15: 2019-03-07 | C15: 52152 | D15: 141890 | E15: AL QUOZ | F15: AL FUTTAIM | G15: Road base | H15: 75.96 | I15: 7.70 | J15: 584.892 | M15: 420.5 | P15: 550 | Q15: 0 | R15: 70
A16: 15 | B16: 2019-03-07 | C16: 52152 | D16: 141846 | E16: JEBEL ALI | F16: AL FUTTAIM | G16: Road base | H16: 74 | I16: 8.75 | J16: 647.5 | M16: 420.5 | P16: 550 | Q16: 0 | R16: 80
A17: 16 | B17: 2019-03-08 | C17: 52152 | D17: 2214556 | E17: Cement Factory | F17: AL RAWASI | G17: Road base | H17: 85.22 | I17: 16.65 | J17: 1418.913 | L17: 300 | Q17: 0 | R17: 100
A18: 17 | B18: 2019-03-08 | C18: 52152 | D18: 2214762 | E18: Cement Factory | F18: AL NAKHEEL | G18: Road base | H18: 80.72 | I18: 16.65 | J18: 1343.988 | L18: 300 | M18: 420.5 | Q18: 0 | R18: 75
A19: 18 | B19: 2019-03-08 | C19: 52152 | D19: 2214694 | E19: Cement Factory | F19: AL RAWASI | G19: Road base | H19: 83.46 | I19: 16.65 | J19: 1389.609 | L19: 300 | M19: 420.5 | Q19: 0 | R19: 75
A20: 19 | B20: 2019-03-08 | C20: 52152 | D20: 141998 | E20: MAFRAQ | F20: AL FUTTAIM | G20: Road base | H20: 78.8 | I20: 16 | J20: 1260.8 | M20: 420.5 | P20: 550 | Q20: 0 | R20: 160
A21: 20 | B21: 2019-03-09 | C21: 52152 | D21: 142130 | E21: MUSSAFAH | F21: AL FUTTAIM | G21: Road base | H21: 77.38 | I21: 16.90 | J21: 1307.722 | M21: 420.5 | P21: 550 | Q21: 0 | R21: 180
A22: 21 | B22: 2019-03-09 | C22: 52152 | D22: 900986 | E22: DUCON | F22: AL BARRAK | G22: Road base | H22: 71.02 | I22: 21.97 | J22: 1560.3094 | K22: 500 | M22: 420.5 | Q22: 0 | R22: 90
A23: 22 | B23: 2019-03-10 | C23: 52152 | D23: 142215 | E23: AL QUOZ | F23: AL FUTTAIM | G23: Road base | H23: 77.12 | I23: 7.70 | J23: 593.824 | M23: 420.5 | P23: 550 | Q23: 0 | R23: 70
A24: 23 | B24: 2019-03-10 | C24: 52152 | D24: 142263 | E24: MUSSAFAH | F24: AL FUTTAIM | G24: Road base | H24: 78.84 | I24: 16.90 | J24: 1332.396 | M24: 420.5 | P24: 550 | Q24: 0 | R24: 180
A25: 24 | B25: 2019-03-11 | C25: 52152 | D25: 2215395 | E25: Cement Factory | F25: AL RAWASI | G25: Road base | H25: 81.84 | I25: 16.65 | J25: 1362.636 | L25: 300 | M25: 420.5 | Q25: 0 | R25: 75
A26: 25 | B26: 2019-03-11 | C26: 52152 | D26: 142381 | E26: MUSSAFAH | F26: AL FUTTAIM | G26: Road base | H26: 77.96 | I26: 16.90 | J26: 1317.524 | M26: 420.5 | P26: 550 | Q26: 0 | R26: 180
A27: 26 | B27: 2019-03-12 | C27: 52152 | D27: 142503 | E27: MAFRAQ | F27: AL FUTTAIM | G27: Road base | H27: 77.34 | I27: 16 | J27: 1237.44 | M27: 420.5 | P27: 550 | Q27: 0 | R27: 160
A28: 27 | B28: 2019-03-12 | C28: 52152 | D28: 901594 | E28: DUCON | F28: AL BARRAK | G28: Road base | H28: 73.36 | I28: 21.97 | J28: 1611.7192 | K28: 520 | M28: 420.5 | Q28: 0 | R28: 90
A29: 28 | B29: 2019-03-13 | C29: 52152 | D29: 142578 | E29: AL QUOZ | F29: AL FUTTAIM | G29: Road base | H29: 78.82 | I29: 7.70 | J29: 606.914 | M29: 420.5 | P29: 550 | Q29: 0 | R29: 70
A30: 29 | B30: 2019-03-13 | C30: 52152 | D30: 142660 | E30: JEBEL ALI | F30: AL FUTTAIM | G30: Road base | H30: 79.02 | I30: 8.75 | J30: 691.425 | M30: 420.5 | P30: 550 | Q30: 0 | R30: 80
A31: 30 | B31: 2019-03-14 | C31: 52152 | D31: 2215681 | E31: Cement Factory | F31: AL RAWASI | G31: Road base | H31: 75.92 | I31: 16.65 | J31: 1264.068 | L31: 300 | M31: 420.5 | Q31: 0 | R31: 75
A32: 31 | B32: 2019-03-14 | C32: 52152 | D32: 142707 | E32: AL QUOZ | F32: AL FUTTAIM | G32: Road base | H32: 78.06 | I32: 7.70 | J32: 601.062 | M32: 420.5 | P32: 550 | Q32: 0 | R32: 70
A33: 32 | B33: 2019-03-15 | C33: 52152 | D33: 2215751 | E33: Cement Factory | F33: AL RAWASI | G33: Road base | H33: 77.82 | I33: 16.65 | J33: 1295.703 | L33: 300 | Q33: 0 | R33: 100
A34: =ROW()-1 -> 33 | B34: 2019-03-15 | C34: 52152 | D34: 142806 | E34: AL QUOZ | F34: AL FUTTAIM | G34: Road base | H34: 78.86 | I34: =IF(AND(F34="RIDI SIDI"),"16.65",IF(AND(F34="CENTRAL",E34="DUBAI"),"19",IF(AND(F34="CENTRAL",E34="JEBEL ALI"),"21",IF(AND(F34="AL RAWASI"),"16.65",IF(AND(F34="AL NAKHEEL"),"16.65",IF(AND(F34="WB"),"22.60",IF(AND(F34="AL BARRAK",E34="DUCON"),"21.97",IF(AND(F34="AL KAWTHER",E34="DUCON"),"21.97",IF(AND(F34="AL KAWTHER"),"22.5",IF(AND(F34="AL FUTTAIM",E34="JEBEL ALI"),"8.75",IF(AND(F34="AL FUTTAIM",E34="MAFRAQ"),"16",IF(AND(F34="AL FUTTAIM",E34="AL QUOZ"),"7.70",IF(AND(F34="AL FUTTAIM",E34="MUSSAFAH"),"16.90",IF(AND(F34="AL FUTTAIM",E34="NAD AL SHEBA"),"8.50",IF(AND(F34="AL FUTTAIM",E34="MAHAWI"),"16.90",IF(AND(F34="AL RAWDA",E34="MADAM"),"24.50",)))))))))))))))) -> 7.70 | J34: =I34*H34 -> 607.222 | M34: 420.5 | P34: 550 | Q34: 0 | R34: 70
A35: 34 | B35: 2019-03-16 | C35: 52152 | D35: 2216002 | E35: Cement Factory | F35: AL RAWASI | G35: Road base | H35: 87.84 | I35: 16.65 | J35: 1462.536 | L35: 300 | Q35: 0 | R35: 100
A36: 35 | C36: 52152 | E36: MADAM | F36: AL RAWDA | G36: Road base | I36: 24.50 | J36: 0 | Q36: 0 | R36: 80
A37: 36 | C37: 52152 | E37: MADAM | F37: AL RAWDA | G37: Road base | I37: 24.50 | J37: 0 | Q37: 0 | R37: 80
A38: 37 | C38: 52152 | E38: JEBEL ALI | F38: AL FUTTAIM | G38: Road base | I38: 8.75 | J38: 0 | Q38: 0 | R38: 80
A39: 38 | C39: 52152 | E39: MAFRAQ | F39: AL FUTTAIM | G39: Road base | I39: 16 | J39: 0 | Q39: 0 | R39: 160
A40: 39 | C40: 52152 | E40: MAFRAQ | F40: AL FUTTAIM | G40: Road base | I40: 16 | J40: 0 | Q40: 0 | R40: 160
A41: 40 | C41: 52152 | E41: AL QUOZ | F41: AL FUTTAIM | G41: Road base | I41: 7.70 | J41: 0 | Q41: 0 | R41: 70
A42: 41 | C42: 52152 | E42: AL QUOZ | F42: AL FUTTAIM | G42: Road base | H42: 77.36 | I42: 7.70 | J42: 595.672 | Q42: 0 | R42: 70
A43: 42 | C43: 52152 | E43: DUCON | F43: AL BARRAK | G43: Road base | H43: 73.14 | I43: 21.97 | J43: 1606.8858 | Q43: 0 | R43: 90
A44: 43 | C44: 52152 | E44: DUCON | F44: AL KAWTHER | G44: Road base | I44: 21.97 | J44: 0 | Q44: 0
A45: 44 | C45: 52152 | E45: Cement Factory | F45: AL RAWASI | G45: Road base | I45: 16.65 | J45: 0 | Q45: 0
A46: 45 | C46: 52152 | E46: Cement Factory | F46: AL RAWASI | G46: Road base | I46: 16.65 | J46: 0 | Q46: 0
A47: 46 | C47: 52152 | E47: DUCON | F47: AL KAWTHER | G47: Road base | I47: 21.97 | J47: 0 | Q47: 0
A48: 47 | C48: 52152 | E48: Cement Factory | F48: AL RAWASI | G48: Road base | I48: 16.65 | J48: 0 | Q48: 0
A49: 48 | C49: 52152 | E49: DUCON | F49: AL KAWTHER | G49: Road base | I49: 21.97 | J49: 0 | Q49: 0
A50: 49 | C50: 52152 | E50: Cement Factory | F50: AL RAWASI | G50: Road base | I50: 16.65 | J50: 0 | Q50: 0
A51: 50 | C51: 52152 | E51: Cement Factory | F51: AL RAWASI | G51: Road base | I51: 16.65 | J51: 0 | Q51: 0
A52: 51 | C52: 52152 | E52: DUCON | F52: AL KAWTHER | G52: Road base | I52: 21.97 | J52: 0 | Q52: 0
A53: 52 | C53: 52152 | E53: MADAM | F53: AL RAWDA | G53: Road base | I53: 24.50 | J53: 0 | Q53: 0
A54: 53 | C54: 52152 | E54: Cement Factory | F54: AL RAWASI | G54: Road base | I54: 16.65 | J54: 0 | Q54: 0
A55: 54 | C55: 52152 | E55: DUCON | F55: AL KAWTHER | G55: Road base | I55: 21.97 | J55: 0 | Q55: 0
A56: 55 | C56: 52152 | E56: Cement Factory | F56: AL RAWASI | G56: Road base | I56: 16.65 | J56: 0 | Q56: 0
A57: 56 | C57: 52152 | E57: Cement Factory | F57: AL RAWASI | G57: Road base | I57: 16.65 | J57: 0 | Q57: 0
A58: 57 | C58: 52152 | E58: Cement Factory | F58: AL RAWASI | G58: Road base | I58: 16.65 | J58: 0 | Q58: 0
A59: 58 | C59: 52152 | E59: DUBAI | F59: CENTRAL | G59: Road base | I59: 19 | J59: 0 | Q59: 0
A60: 59 | C60: 52152 | E60: DUCON | F60: AL KAWTHER | G60: Road base | I60: 21.97 | J60: 0 | Q60: 0
A61: 60 | C61: 52152 | E61: Cement Factory | F61: AL RAWASI | G61: Road base | I61: 16.65 | J61: 0 | Q61: 0
A62: 61 | C62: 52152 | E62: Cement Factory | F62: AL RAWASI | G62: Road base | I62: 16.65 | J62: 0 | Q62: 0
A63: 62 | C63: 52152 | E63: Cement Factory | F63: AL RAWASI | G63: Road base | I63: 16.65 | J63: 0 | Q63: 0
A64: 63 | C64: 52152 | E64: DUCON | F64: AL KAWTHER | G64: Road base | I64: 21.97 | J64: 0 | Q64: 0
A65: 64 | C65: 52152 | E65: DUCON | F65: AL KAWTHER | G65: Road base | I65: 21.97 | J65: 0 | Q65: 0
A66: =ROW()-1 -> 65 | C66: 52152 | E66: Cement Factory | F66: AL RAWASI | G66: Road base | I66: =IF(AND(F66="RIDI SIDI"),"16.65",IF(AND(F66="CENTRAL",E66="DUBAI"),"19",IF(AND(F66="CENTRAL",E66="JEBEL ALI"),"21",IF(AND(F66="AL RAWASI"),"16.65",IF(AND(F66="AL NAKHEEL"),"16.65",IF(AND(F66="WB"),"22.60",IF(AND(F66="AL BARRAK",E66="DUCON"),"21.97",IF(AND(F66="AL KAWTHER",E66="DUCON"),"21.97",IF(AND(F66="AL KAWTHER"),"22.5",IF(AND(F66="AL FUTTAIM",E66="JEBEL ALI"),"8.75",IF(AND(F66="AL FUTTAIM",E66="MAFRAQ"),"16",IF(AND(F66="AL FUTTAIM",E66="AL QUOZ"),"7.70",IF(AND(F66="AL FUTTAIM",E66="MUSSAFAH"),"16.90",IF(AND(F66="AL FUTTAIM",E66="NAD AL SHEBA"),"8.50",IF(AND(F66="AL FUTTAIM",E66="MAHAWI"),"16.90",IF(AND(F66="AL RAWDA",E66="MADAM"),"24.50",)))))))))))))))) -> 16.65 | J66: =I66*H66 -> 0 | Q66: 0
A67: 66 | C67: 52152 | E67: DUBAI | F67: CENTRAL | G67: Road base | I67: 19 | J67: 0 | Q67: 0
A68: 67 | C68: 52152 | E68: Cement Factory | F68: AL RAWASI | G68: Road base | I68: 16.65 | J68: 0 | Q68: 0
A69: 68 | C69: 52152 | E69: DUCON | F69: AL KAWTHER | G69: Road base | I69: 21.97 | J69: 0 | Q69: 0
A70: 69 | C70: 52152 | E70: Cement Factory | F70: AL RAWASI | G70: Road base | I70: 16.65 | J70: 0 | Q70: 0
A71: 70 | C71: 52152 | E71: Cement Factory | F71: AL RAWASI | G71: Road base | I71: 16.65 | J71: 0 | Q71: 0
A72: 71 | C72: 52152 | E72: Cement Factory | F72: AL RAWASI | G72: Road base | I72: 16.65 | J72: 0 | Q72: 0
A73: 72 | C73: 52152 | E73: DUCON | F73: AL BARRAK | G73: Road base | I73: 21.97 | J73: 0 | Q73: 0
A74: 73 | C74: 52152 | E74: Cement Factory | F74: AL RAWASI | G74: Road base | I74: 16.65 | J74: 0 | Q74: 0
A75: 74 | C75: 52152 | E75: DUCON | F75: AL BARRAK | G75: Road base | I75: 21.97 | J75: 0 | Q75: 0
A76: 75 | C76: 52152 | E76: DUBAI | F76: CENTRAL | G76: Road base | I76: 19 | J76: 0 | Q76: 0
A77: 76 | C77: 52152 | E77: DUCON | F77: AL BARRAK | G77: Road base | I77: 21.97 | J77: 0 | Q77: 0
A78: 77 | C78: 52152 | E78: Cement Factory | F78: RIDI SIDI | G78: Road base | I78: 16.65 | J78: 0 | Q78: 0
A79: 78 | C79: 52152 | E79: Cement Factory | F79: RIDI SIDI | G79: Road base | I79: 16.65 | J79: 0 | Q79: 0
A80: 79 | C80: 52152 | E80: AL QUOZ | F80: AL FUTTAIM | G80: Road base | I80: 7.70 | J80: 0 | Q80: 0
A81: 80 | C81: 52152 | E81: MAFRAQ | F81: AL FUTTAIM | G81: Road base | I81: 16 | J81: 0 | Q81: 0
B82: =SUBTOTAL(2,B2:B81) -> 34 | H82: =SUBTOTAL(9,H2:H81) -> 2827.4 | I82: =SUBTOTAL(9,I2:I81) -> 0 | J82: =SUBTOTAL(9,J2:J81) -> 39818.1948 | K82: 1530 | L82: 3300 | M82: 12615 | N82: 0 | O82: 0 | P82: =SUBTOTAL(9,P2:P81) -> 11000 | Q82: =SUBTOTAL(9,Q2:Q81) -> 0 | R82: =SUBTOTAL(9,R2:R81) -> 4250

Sheet 40229
A1: م | B1: DATE التاريخ | C1: NO TRUCK رقم السيارة | D1: NO TICKET رقم الفاتورة | E1: DESTINATION الموقع | F1: CRUCHER الكسارة | G1: MATERIAL المادة | H1: NETWET الوزن | I1: RATE سعر الطن | J1: TOTAL الاجمالى | K1: FUJ ت/فجيرة | L1: SAEEDY ت/ساعدي | M1: DHAID ت/الذيد | N1: ZUBAIR ت/الزبير | O1: ALGHAIL ت/الغيل | P1: KADRAA ت/كدرة | Q1: DIESEL الديزل | R1: SALARY الراتب
A2: =ROW()-1 -> 1 | B2: 2019-03-01 | C2: 40229 | D2: 141340 | E2: AL QUOZ | F2: AL FUTTAIM | G2: Road base | H2: 71.9 | I2: =IF(AND(F2="RIDI SIDI"),"16.65",IF(AND(F2="CENTRAL",E2="DUBAI"),"19",IF(AND(F2="CENTRAL",E2="JEBEL ALI"),"21",IF(AND(F2="AL RAWASI"),"16.65",IF(AND(F2="AL NAKHEEL"),"16.65",IF(AND(F2="WB"),"22.60",IF(AND(F2="AL BARRAK",E2="DUCON"),"21.97",IF(AND(F2="AL KAWTHER",E2="DUCON"),"21.97",IF(AND(F2="AL KAWTHER"),"22.5",IF(AND(F2="AL FUTTAIM",E2="JEBEL ALI"),"8.75",IF(AND(F2="AL FUTTAIM",E2="MAFRAQ"),"16",IF(AND(F2="AL FUTTAIM",E2="AL QUOZ"),"7.70",IF(AND(F2="AL FUTTAIM",E2="MUSSAFAH"),"16.90",IF(AND(F2="AL FUTTAIM",E2="NAD AL SHEBA"),"8.50",IF(AND(F2="AL FUTTAIM",E2="MAHAWI"),"16.90",IF(AND(F2="AL RAWDA",E2="MADAM"),"24.50",)))))))))))))))) -> 7.70 | J2: =I2*H2 -> 553.63 | M2: 420.5 | P2: 550 | Q2: 0 | R2: 70
A3: 2 | B3: 2019-03-01 | C3: 40229 | D3: 141363 | E3: AL QUOZ | F3: AL FUTTAIM | G3: Road base | H3: 76.98 | I3: 7.70 | J3: 592.746 | M3: 420.5 | P3: 550 | Q3: 0 | R3: 70
A4: 3 | B4: 2019-03-02 | C4: 40229 | D4: 899558 | E4: DUCON | F4: AL BARRAK | G4: Road base | H4: 72.34 | I4: 21.97 | J4: 1589.3098 | K4: 510 | M4: 420.5 | Q4: 0 | R4: 90
A5: 4 | B5: 2019-03-02 | C5: 40229 | D5: 2213550 | E5: Cement Factory | F5: AL NAKHEEL | G5: Road base | H5: 77.4 | I5: 16.65 | J5: 1288.71 | L5: 300 | M5: 420.5 | Q5: 0 | R5: 75
A6: 5 | B6: 2019-03-03 | C6: 40229 | D6: 2213622 | E6: Cement Factory | F6: AL NAKHEEL | G6: Road base | H6: 72.24 | I6: 16.65 | J6: 1202.796 | L6: 300 | Q6: 0 | R6: 100
A7: 6 | B7: 2019-03-03 | C7: 40229 | D7: 2213839 | E7: Cement Factory | F7: AL NAKHEEL | G7: Road base | H7: 73.86 | I7: 16.65 | J7: 1229.769 | L7: 300 | M7: 420.5 | Q7: 0 | R7: 75
A8: 7 | B8: 2019-03-03 | C8: 40229 | D8: 141446 | E8: JEBEL ALI | F8: AL FUTTAIM | G8: Road base | H8: 74 | I8: 8.75 | J8: 647.5 | M8: 420.5 | P8: 550 | Q8: 0 | R8: 80
A9: 8 | B9: 2019-03-04 | C9: 40229 | D9: 2213866 | E9: Cement Factory | F9: AL NAKHEEL | G9: Road base | H9: 74.52 | I9: 16.65 | J9: 1240.758 | L9: 300 | Q9: 0 | R9: 100
A10: 9 | B10: 2019-03-04 | C10: 40229 | D10: 2213907 | E10: Cement Factory | F10: AL RAWASI | G10: Road base | H10: 76.34 | I10: 16.65 | J10: 1271.061 | L10: 300 | M10: 420.5 | Q10: 0 | R10: 75
A11: 10 | B11: 2019-03-04 | C11: 40229 | D11: 2213953 | E11: Cement Factory | F11: AL RAWASI | G11: Road base | H11: 76.38 | I11: 16.65 | J11: 1271.727 | L11: 300 | M11: 420.5 | Q11: 0 | R11: 75
A12: 11 | B12: 2019-03-04 | C12: 40229 | D12: 141622 | E12: JEBEL ALI | F12: AL FUTTAIM | G12: Road base | H12: 77.32 | I12: 8.75 | J12: 676.55 | M12: 420.5 | P12: 550 | Q12: 0 | R12: 80
A13: 12 | B13: 2019-03-05 | C13: 40229 | D13: 2214077 | E13: Cement Factory | F13: AL RAWASI | G13: Road base | H13: 76.68 | I13: 16.65 | J13: 1276.722 | L13: 300 | M13: 420.5 | Q13: 0 | R13: 75
A14: 13 | B14: 2019-03-06 | C14: 40229 | D14: 2214150 | E14: Cement Factory | F14: AL RAWASI | G14: Road base | H14: 80.04 | I14: 16.65 | J14: 1332.666 | L14: 300 | Q14: 0 | R14: 100
A15: 14 | B15: 2019-03-06 | C15: 40229 | D15: 2214211 | E15: Cement Factory | F15: AL RAWASI | G15: Road base | H15: 77.76 | I15: 16.65 | J15: 1294.704 | L15: 300 | M15: 420.5 | Q15: 0 | R15: 75
A16: 15 | B16: 2019-03-06 | C16: 40229 | D16: 2214268 | E16: Cement Factory | F16: AL RAWASI | G16: Road base | H16: 77.6 | I16: 16.65 | J16: 1292.04 | L16: 300 | M16: 420.5 | Q16: 0 | R16: 75
A17: 16 | B17: 2019-03-07 | C17: 40229 | D17: 2214325 | E17: Cement Factory | F17: AL RAWASI | G17: Road base | H17: 76.28 | I17: 16.65 | J17: 1270.062 | L17: 300 | Q17: 0 | R17: 100
A18: 17 | B18: 2019-03-07 | C18: 40229 | D18: 2214492 | E18: Cement Factory | F18: AL RAWASI | G18: Road base | H18: 73.74 | I18: 16.65 | J18: 1227.771 | L18: 300 | M18: 420.5 | Q18: 0 | R18: 75
A19: 18 | B19: 2019-03-07 | C19: 40229 | D19: 141848 | E19: JEBEL ALI | F19: AL FUTTAIM | G19: Road base | H19: 74.46 | I19: 8.75 | J19: 651.525 | M19: 420.5 | P19: 550 | Q19: 0 | R19: 80
A20: 19 | B20: 2019-03-08 | C20: 40229 | D20: 2214596 | E20: Cement Factory | F20: AL RAWASI | G20: Road base | H20: 79.36 | I20: 16.65 | J20: 1321.344 | L20: 300 | Q20: 0 | R20: 100
A21: 20 | B21: 2019-03-08 | C21: 40229 | D21: 2214749 | E21: Cement Factory | F21: AL NAKHEEL | G21: Road base | H21: 76.2 | I21: 16.65 | J21: 1268.73 | L21: 300 | M21: 420.5 | Q21: 0 | R21: 75
A22: 21 | B22: 2019-03-08 | C22: 40229 | D22: 2214823 | E22: Cement Factory | F22: AL RAWASI | G22: Road base | H22: 80.5 | I22: 16.65 | J22: 1340.325 | L22: 300 | M22: 420.5 | Q22: 0 | R22: 75
A23: 22 | B23: 2019-03-08 | C23: 40229 | D23: 2214685 | E23: Cement Factory | F23: AL RAWASI | G23: Road base | H23: 73.96 | I23: 16.65 | J23: 1231.434 | L23: 300 | M23: 420.5 | Q23: 0 | R23: 75
A24: 23 | B24: 2019-03-09 | C24: 40229 | D24: 2214907 | E24: Cement Factory | F24: AL RAWASI | G24: Road base | H24: 76.12 | I24: 16.65 | J24: 1267.398 | L24: 300 | Q24: 0 | R24: 100
A25: 24 | B25: 2019-03-09 | C25: 40229 | D25: 2215086 | E25: Cement Factory | F25: AL RAWASI | G25: Road base | H25: 83.86 | I25: 16.65 | J25: 1396.269 | L25: 300 | M25: 420.5 | Q25: 0 | R25: 75
A26: 25 | B26: 2019-03-10 | C26: 40229 | D26: 2215144 | E26: Cement Factory | F26: AL RAWASI | G26: Road base | H26: 77.02 | I26: 16.65 | J26: 1282.383 | L26: 300 | Q26: 0 | R26: 100
A27: 26 | B27: 2019-03-10 | C27: 40229 | D27: 142178 | E27: JEBEL ALI | F27: AL FUTTAIM | G27: Road base | H27: 77.82 | I27: 8.75 | J27: 680.925 | M27: 420.5 | P27: 550 | Q27: 0 | R27: 80
A28: 27 | B28: 2019-03-11 | C28: 40229 | D28: 2215281 | E28: Cement Factory | F28: AL RAWASI | G28: Road base | H28: 75.48 | I28: 16.65 | J28: 1256.742 | L28: 300 | Q28: 0 | R28: 100
A29: 28 | B29: 2019-03-11 | C29: 40229 | D29: 2215225 | E29: Cement Factory | F29: AL NAKHEEL | G29: Road base | H29: 68.36 | I29: 16.65 | J29: 1138.194 | L29: 300 | M29: 420.5 | Q29: 0 | R29: 75
A30: 29 | B30: 2019-03-11 | C30: 40229 | D30: 2215380 | E30: Cement Factory | F30: AL RAWASI | G30: Road base | H30: 74.96 | I30: 16.65 | J30: 1248.084 | L30: 300 | M30: 420.5 | Q30: 0 | R30: 75
A31: 30 | B31: 2019-03-12 | C31: 40229 | D31: 2215451 | E31: Cement Factory | F31: AL RAWASI | G31: Road base | H31: 76.5 | I31: 16.65 | J31: 1273.725 | L31: 300 | Q31: 0 | R31: 100
A32: 31 | B32: 2019-03-12 | C32: 40229 | D32: 2217510 | E32: Cement Factory | F32: AL RAWASI | G32: Road base | H32: 76.44 | I32: 16.65 | J32: 1272.726 | L32: 300 | M32: 420.5 | Q32: 0 | R32: 75
A33: 32 | B33: 2019-03-12 | C33: 40229 | D33: 2217597 | E33: Cement Factory | F33: AL RAWASI | G33: Road base | H33: 73.5 | I33: 16.65 | J33: 1223.775 | L33: 300 | M33: 420.5 | Q33: 0 | R33: 75
A34: =ROW()-1 -> 33 | B34: 2019-03-13 | C34: 40229 | D34: 142648 | E34: JEBEL ALI | F34: AL FUTTAIM | G34: Road base | H34: 70.24 | I34: =IF(AND(F34="RIDI SIDI"),"16.65",IF(AND(F34="CENTRAL",E34="DUBAI"),"19",IF(AND(F34="CENTRAL",E34="JEBEL ALI"),"21",IF(AND(F34="AL RAWASI"),"16.65",IF(AND(F34="AL NAKHEEL"),"16.65",IF(AND(F34="WB"),"22.60",IF(AND(F34="AL BARRAK",E34="DUCON"),"21.97",IF(AND(F34="AL KAWTHER",E34="DUCON"),"21.97",IF(AND(F34="AL KAWTHER"),"22.5",IF(AND(F34="AL FUTTAIM",E34="JEBEL ALI"),"8.75",IF(AND(F34="AL FUTTAIM",E34="MAFRAQ"),"16",IF(AND(F34="AL FUTTAIM",E34="AL QUOZ"),"7.70",IF(AND(F34="AL FUTTAIM",E34="MUSSAFAH"),"16.90",IF(AND(F34="AL FUTTAIM",E34="NAD AL SHEBA"),"8.50",IF(AND(F34="AL FUTTAIM",E34="MAHAWI"),"16.90",IF(AND(F34="AL RAWDA",E34="MADAM"),"24.50",)))))))))))))))) -> 8.75 | J34: =I34*H34 -> 614.6 | M34: 420.5 | P34: 550 | Q34: 0 | R34: 80
A35: 34 | B35: 2019-03-13 | C35: 40229 | D35: 2217656 | E35: Cement Factory | F35: AL NAKHEEL | G35: Road base | H35: 73.64 | I35: 16.65 | J35: 1226.106 | L35: 300 | Q35: 0 | R35: 100
A36: 35 | B36: 2019-03-13 | C36: 40229 | D36: 2217728 | E36: Cement Factory | F36: AL RAWASI | G36: Road base | H36: 72.2 | I36: 16.65 | J36: 1202.13 | L36: 300 | M36: 420.5 | R36: 75
A37: 36 | B37: 2019-03-13 | C37: 40229 | D37: 2217818 | E37: Cement Factory | F37: AL RAWASI | G37: Road base | H37: 76.06 | I37: 16.65 | J37: 1266.399 | L37: 300 | M37: 420.5 | Q37: 0 | R37: 75
A38: 37 | B38: 2019-03-14 | C38: 40229 | D38: 2215657 | E38: Cement Factory | F38: AL RAWASI | G38: Road base | H38: 75.2 | I38: 16.65 | J38: 1252.08 | L38: 300 | M38: 420.5 | Q38: 0 | R38: 75
A39: 38 | B39: 2019-03-14 | C39: 40229 | D39: 142680 | E39: AL QUOZ | F39: AL FUTTAIM | G39: Road base | H39: 70.54 | I39: 7.70 | J39: 543.158 | M39: 420.5 | P39: 550 | Q39: 0 | R39: 70
A40: 39 | B40: 2019-03-15 | C40: 40229 | D40: 2215736 | E40: Cement Factory | F40: AL RAWASI | G40: Road base | H40: 73.68 | I40: 16.65 | J40: 1226.772 | L40: 300 | Q40: 0 | R40: 100
A41: 40 | B41: 2019-03-15 | C41: 40229 | D41: 142805 | E41: AL QUOZ | F41: AL FUTTAIM | G41: Road base | H41: 79.02 | I41: 7.70 | J41: 608.454 | M41: 420.5 | P41: 550 | Q41: 0 | R41: 70
A42: 41 | B42: 2019-03-16 | C42: 40229 | D42: 2216036 | E42: Cement Factory | F42: AL RAWASI | G42: Road base | H42: 78.52 | I42: 16.65 | J42: 1307.358 | L42: 300 | Q42: 0 | R42: 100
A43: 42 | C43: 40229 | E43: Cement Factory | F43: AL RAWASI | G43: Road base | I43: 16.65 | J43: 0 | Q43: 0
A44: 43 | C44: 40229 | E44: Cement Factory | F44: AL RAWASI | G44: Road base | I44: 16.65 | J44: 0 | Q44: 0
A45: 44 | C45: 40229 | E45: Cement Factory | F45: AL RAWASI | G45: Road base | I45: 16.65 | J45: 0 | Q45: 0
A46: 45 | C46: 40229 | E46: Cement Factory | F46: AL RAWASI | G46: Road base | I46: 16.65 | J46: 0 | Q46: 0
A47: 46 | C47: 40229 | E47: Cement Factory | F47: AL RAWASI | G47: Road base | I47: 16.65 | J47: 0 | Q47: 0
A48: 47 | C48: 40229 | E48: Cement Factory | F48: AL RAWASI | G48: Road base | I48: 16.65 | J48: 0 | Q48: 0
A49: 48 | C49: 40229 | E49: Cement Factory | F49: AL RAWASI | G49: Road base | I49: 16.65 | J49: 0 | Q49: 0
A50: 49 | C50: 40229 | E50: Cement Factory | F50: AL RAWASI | G50: Road base | I50: 16.65 | J50: 0 | Q50: 0
A51: 50 | C51: 40229 | E51: Cement Factory | F51: AL RAWASI | G51: Road base | I51: 16.65 | J51: 0 | Q51: 0
A52: 51 | C52: 40229 | E52: Cement Factory | F52: AL RAWASI | G52: Road base | I52: 16.65 | J52: 0 | Q52: 0
A53: 52 | C53: 40229 | E53: Cement Factory | F53: AL RAWASI | G53: Road base | I53: 16.65 | J53: 0 | Q53: 0
A54: 53 | C54: 40229 | E54: Cement Factory | F54: AL RAWASI | G54: Road base | I54: 16.65 | J54: 0 | Q54: 0
A55: 54 | C55: 40229 | E55: Cement Factory | F55: AL RAWASI | G55: Road base | I55: 16.65 | J55: 0 | Q55: 0
A56: 55 | C56: 40229 | E56: Cement Factory | F56: AL RAWASI | G56: Road base | I56: 16.65 | J56: 0 | Q56: 0
A57: 56 | C57: 40229 | E57: Cement Factory | F57: AL RAWASI | G57: Road base | I57: 16.65 | J57: 0 | Q57: 0
A58: 57 | C58: 40229 | E58: Cement Factory | F58: AL RAWASI | G58: Road base | I58: 16.65 | J58: 0 | Q58: 0
A59: 58 | C59: 40229 | E59: Cement Factory | F59: AL RAWASI | G59: Road base | I59: 16.65 | J59: 0 | Q59: 0
A60: 59 | C60: 40229 | E60: Cement Factory | F60: AL RAWASI | G60: Road base | I60: 16.65 | J60: 0 | Q60: 0
A61: 60 | C61: 40229 | E61: Cement Factory | F61: AL RAWASI | G61: Road base | I61: 16.65 | J61: 0 | Q61: 0
A62: 61 | C62: 40229 | E62: Cement Factory | F62: AL RAWASI | G62: Road base | I62: 16.65 | J62: 0 | Q62: 0
A63: 62 | C63: 40229 | E63: Cement Factory | F63: AL RAWASI | G63: Road base | I63: 16.65 | J63: 0 | Q63: 0
A64: 63 | C64: 40229 | E64: Cement Factory | F64: AL RAWASI | G64: Road base | I64: 16.65 | J64: 0 | Q64: 0
A65: 64 | C65: 40229 | E65: Cement Factory | F65: AL RAWASI | G65: Road base | I65: 16.65 | J65: 0 | Q65: 0
A66: =ROW()-1 -> 65 | C66: 40229 | E66: Cement Factory | F66: AL RAWASI | G66: Road base | I66: =IF(AND(F66="RIDI SIDI"),"16.65",IF(AND(F66="CENTRAL",E66="DUBAI"),"19",IF(AND(F66="CENTRAL",E66="JEBEL ALI"),"21",IF(AND(F66="AL RAWASI"),"16.65",IF(AND(F66="AL NAKHEEL"),"16.65",IF(AND(F66="WB"),"22.60",IF(AND(F66="AL BARRAK",E66="DUCON"),"21.97",IF(AND(F66="AL KAWTHER",E66="DUCON"),"21.97",IF(AND(F66="AL KAWTHER"),"22.5",IF(AND(F66="AL FUTTAIM",E66="JEBEL ALI"),"8.75",IF(AND(F66="AL FUTTAIM",E66="MAFRAQ"),"16",IF(AND(F66="AL FUTTAIM",E66="AL QUOZ"),"7.70",IF(AND(F66="AL FUTTAIM",E66="MUSSAFAH"),"16.90",IF(AND(F66="AL FUTTAIM",E66="NAD AL SHEBA"),"8.50",IF(AND(F66="AL FUTTAIM",E66="MAHAWI"),"16.90",IF(AND(F66="AL RAWDA",E66="MADAM"),"24.50",)))))))))))))))) -> 16.65 | J66: =I66*H66 -> 0 | Q66: 0
A67: 66 | C67: 40229 | E67: Cement Factory | F67: AL RAWASI | G67: Road base | I67: 16.65 | J67: 0 | Q67: 0
A68: 67 | C68: 40229 | E68: Cement Factory | F68: AL RAWASI | G68: Road base | I68: 16.65 | J68: 0 | Q68: 0
A69: 68 | C69: 40229 | E69: Cement Factory | F69: AL RAWASI | G69: Road base | I69: 16.65 | J69: 0 | Q69: 0
A70: 69 | C70: 40229 | E70: Cement Factory | F70: AL RAWASI | G70: Road base | I70: 16.65 | J70: 0 | Q70: 0
A71: 70 | C71: 40229 | E71: Cement Factory | F71: AL BARRAK | G71: Road base | I71: 0 | J71: 0 | Q71: 0
A72: 71 | C72: 40229 | E72: Cement Factory | F72: RIDI SIDI | G72: Road base | I72: 16.65 | J72: 0 | Q72: 0
A73: 72 | C73: 40229 | E73: Cement Factory | F73: RIDI SIDI | G73: Road base | I73: 16.65 | J73: 0 | Q73: 0
A74: 73 | C74: 40229 | E74: Cement Factory | F74: RIDI SIDI | G74: Road base | I74: 16.65 | J74: 0 | Q74: 0
A75: 74 | C75: 40229 | E75: Cement Factory | F75: RIDI SIDI | G75: Road base | I75: 16.65 | J75: 0 | Q75: 0
A76: 75 | C76: 40229 | E76: Cement Factory | F76: RIDI SIDI | G76: Road base | I76: 16.65 | J76: 0 | Q76: 0
A77: 76 | C77: 40229 | E77: Cement Factory | F77: RIDI SIDI | G77: Road base | I77: 16.65 | J77: 0 | Q77: 0
A78: 77 | C78: 40229 | E78: Cement Factory | F78: RIDI SIDI | G78: Road base | I78: 16.65 | J78: 0 | Q78: 0
A79: 78 | C79: 40229 | E79: Cement Factory | F79: RIDI SIDI | G79: Road base | I79: 16.65 | J79: 0 | Q79: 0
A80: 79 | C80: 40229 | E80: AL QUOZ | F80: AL FUTTAIM | G80: Road base | I80: 7.70 | J80: 0 | Q80: 0
A81: 80 | C81: 40229 | E81: MAFRAQ | F81: AL FUTTAIM | G81: Road base | I81: 16 | J81: 0 | Q81: 0
B82: =SUBTOTAL(2,B2:B81) -> 41 | H82: =SUBTOTAL(9,H2:H81) -> 3099.02 | I82: =SUBTOTAL(9,I2:I81) -> 0 | J82: =SUBTOTAL(9,J2:J81) -> 46359.1578 | K82: =SUBTOTAL(9,K2:K81) -> 510 | L82: =SUBTOTAL(9,L2:L81) -> 9300 | M82: 12194.5 | N82: 0 | O82: 0 | P82: 4950 | Q82: 0 | R82: 3395

Sheet 25905
A1: م | B1: DATE التاريخ | C1: NO TRUCK رقم السيارة | D1: NO TICKET رقم الفاتورة | E1: DESTINATION الموقع | F1: CRUCHER الكسارة | G1: MATERIAL المادة | H1: NETWET الوزن | I1: RATE سعر الطن | J1: TOTAL الاجمالى | K1: FUJ ت/فجيرة | L1: SAEEDY ت/ساعدي | M1: DHAID ت/الذيد | N1: ZUBAIR ت/الزبير | O1: ALGHAIL ت/الغيل | P1: KADRAA ت/كدرة | Q1: DIESEL الديزل | R1: SALARY الراتب
A2: =ROW()-1 -> 1 | B2: 2019-03-01 | C2: 25905 | D2: 141336 | E2: MUSSAFAH | F2: AL FUTTAIM | G2: Road base | H2: 78.54 | I2: =IF(AND(F2="RIDI SIDI"),"16.65",IF(AND(F2="CENTRAL",E2="DUBAI"),"19",IF(AND(F2="CENTRAL",E2="JEBEL ALI"),"21",IF(AND(F2="AL RAWASI"),"16.65",IF(AND(F2="AL NAKHEEL"),"16.65",IF(AND(F2="WB"),"22.60",IF(AND(F2="AL BARRAK",E2="DUCON"),"21.97",IF(AND(F2="AL KAWTHER",E2="DUCON"),"21.97",IF(AND(F2="AL KAWTHER"),"22.5",IF(AND(F2="AL FUTTAIM",E2="JEBEL ALI"),"8.75",IF(AND(F2="AL FUTTAIM",E2="MAFRAQ"),"16",IF(AND(F2="AL FUTTAIM",E2="AL QUOZ"),"7.70",IF(AND(F2="AL FUTTAIM",E2="MUSSAFAH"),"16.90",IF(AND(F2="AL FUTTAIM",E2="NAD AL SHEBA"),"8.50",IF(AND(F2="AL FUTTAIM",E2="MAHAWI"),"16.90",IF(AND(F2="AL RAWDA",E2="MADAM"),"24.50",)))))))))))))))) -> 16.90 | J2: =I2*H2 -> 1327.326 | M2: 420.5 | P2: 550 | Q2: 0 | R2: 180
A3: 2 | B3: 2019-03-02 | C3: 25905 | D3: 141432 | E3: JEBEL ALI | F3: AL FUTTAIM | G3: Road base | H3: 75.94 | I3: 8.75 | J3: 664.475 | M3: 420.5 | P3: 550 | Q3: 0 | R3: 80
A4: 3 | B4: 2019-03-02 | C4: 25905 | D4: 141383 | E4: AL QUOZ | F4: AL FUTTAIM | G4: Road base | H4: 76.58 | I4: 7.70 | J4: 589.666 | M4: 420.5 | P4: 550 | Q4: 0 | R4: 70
A5: 4 | B5: 2019-03-03 | C5: 25905 | D5: 141489 | E5: MAFRAQ | F5: AL FUTTAIM | G5: Road base | H5: 77.2 | I5: 16 | J5: 1235.2 | M5: 420.5 | P5: 550 | Q5: 0 | R5: 160
A6: 5 | B6: 2019-03-03 | C6: 25905 | D6: 141448 | E6: AL QUOZ | F6: AL FUTTAIM | G6: Road base | H6: 76.54 | I6: 7.70 | J6: 589.358 | M6: 420.5 | P6: 550 | Q6: 0 | R6: 70
A7: 6 | B7: 2019-03-04 | C7: 25905 | D7: 141619 | E7: JEBEL ALI | F7: AL FUTTAIM | G7: Road base | H7: 78.48 | I7: 8.75 | J7: 686.7 | M7: 420.5 | P7: 550 | Q7: 0 | R7: 80
A8: 7 | B8: 2019-03-04 | C8: 25905 | D8: 141566 | E8: AL QUOZ | F8: AL FUTTAIM | G8: Road base | H8: 75.38 | I8: 7.70 | J8: 580.426 | M8: 420.5 | P8: 550 | Q8: 0 | R8: 70
A9: 8 | B9: 2019-03-05 | C9: 25905 | D9: 141733 | E9: MAFRAQ | F9: AL FUTTAIM | G9: Road base | H9: 74.9 | I9: 16 | J9: 1198.4 | M9: 420.5 | P9: 550 | Q9: 0 | R9: 160
A10: 9 | B10: 2019-03-05 | C10: 25905 | D10: 141667 | E10: JEBEL ALI | F10: AL FUTTAIM | G10: Road base | H10: 76.9 | I10: 8.75 | J10: 672.875 | M10: 420.5 | P10: 550 | Q10: 0 | R10: 80
A11: 10 | B11: 2019-03-05 | C11: 25905 | D11: 141700 | E11: AL QUOZ | F11: AL FUTTAIM | G11: Road base | H11: 74.88 | I11: 7.70 | J11: 576.576 | M11: 420.5 | P11: 550 | Q11: 0 | R11: 70
A12: 11 | B12: 2019-03-05 | C12: 25905 | D12: 141666 | E12: JEBEL ALI | F12: AL FUTTAIM | G12: Road base | H12: 76.92 | I12: 8.75 | J12: 673.05 | M12: 420.5 | P12: 550 | Q12: 0 | R12: 80
A13: 12 | B13: 2019-03-06 | C13: 25905 | D13: 2214219 | E13: Cement Factory | F13: AL RAWASI | G13: Road base | H13: 82.64 | I13: 16.65 | J13: 1375.956 | L13: 300 | M13: 420.5 | Q13: 0 | R13: 75
A14: 13 | B14: 2019-03-06 | C14: 25905 | D14: 2214293 | E14: Cement Factory | F14: AL RAWASI | G14: Road base | H14: 86.96 | I14: 16.65 | J14: 1447.884 | L14: 300 | M14: 420.5 | Q14: 0 | R14: 75
A15: 14 | B15: 2019-03-07 | C15: 25905 | D15: 2214336 | E15: Cement Factory | F15: AL NAKHEEL | G15: Road base | H15: 75.92 | I15: 16.65 | J15: 1264.068 | L15: 300 | Q15: 0 | R15: 100
A16: 15 | B16: 2019-03-07 | C16: 25905 | D16: 2214392 | E16: Cement Factory | F16: AL RAWASI | G16: Road base | H16: 82.76 | I16: 16.65 | J16: 1377.954 | L16: 300 | M16: 420.5 | Q16: 0 | R16: 75
A17: 16 | B17: 2019-03-08 | C17: 25905 | D17: 2214574 | E17: Cement Factory | F17: AL RAWASI | G17: Road base | H17: 84.7 | I17: 16.65 | J17: 1410.255 | L17: 300 | Q17: 0 | R17: 100
A18: 17 | B18: 2019-03-08 | C18: 25905 | D18: 141951 | E18: MAFRAQ | F18: AL FUTTAIM | G18: Road base | H18: 77.56 | I18: 16 | J18: 1240.96 | M18: 420.5 | P18: 550 | Q18: 0 | R18: 160
A19: 18 | B19: 2019-03-09 | C19: 25905 | D19: 2214865 | E19: Cement Factory | F19: AL RAWASI | G19: Road base | H19: 85.08 | I19: 16.65 | J19: 1416.582 | L19: 300 | M19: 420.5 | Q19: 0 | R19: 75
A20: 19 | B20: 2019-03-09 | C20: 25905 | D20: 142033 | E20: MUSSAFAH | F20: AL FUTTAIM | G20: Road base | H20: 79.52 | I20: 16.90 | J20: 1343.888 | M20: 420.5 | P20: 550 | Q20: 0 | R20: 180
A21: 20 | B21: 2019-03-09 | C21: 25905 | D21: 142150 | E21: MUSSAFAH | F21: AL FUTTAIM | G21: Road base | H21: 76.6 | I21: 16.90 | J21: 1294.54 | M21: 420.5 | P21: 550 | Q21: 0 | R21: 180
A22: 21 | B22: 2019-03-09 | C22: 25905 | D22: 142095 | E22: JEBEL ALI | F22: AL FUTTAIM | G22: Road base | H22: 79.12 | I22: 8.75 | J22: 692.3 | M22: 420.5 | P22: 550 | Q22: 0 | R22: 80
A23: 22 | B23: 2019-03-11 | C23: 25905 | D23: 2215384 | E23: Cement Factory | F23: AL RAWASI | G23: Road base | H23: 81.6 | I23: 16.65 | J23: 1358.64 | L23: 300 | M23: 420.5 | Q23: 0 | R23: 75
A24: 23 | B24: 2019-03-11 | C24: 25905 | D24: 2215226 | E24: Cement Factory | F24: AL RAWASI | G24: Road base | H24: 73.36 | I24: 16.65 | J24: 1221.444 | L24: 300 | M24: 420.5 | Q24: 0 | R24: 75
A25: 24 | B25: 2019-03-11 | C25: 25905 | D25: 142380 | E25: MUSSAFAH | F25: AL FUTTAIM | G25: Road base | H25: 80.76 | I25: 16.90 | J25: 1364.844 | M25: 420.5 | P25: 550 | Q25: 0 | R25: 180
A26: 25 | B26: 2019-03-11 | C26: 25905 | D26: 142299 | E26: MUSSAFAH | F26: AL FUTTAIM | G26: Road base | H26: 80.2 | I26: 16.90 | J26: 1355.38 | M26: 420.5 | P26: 550 | Q26: 0 | R26: 180
A27: 26 | B27: 2019-03-12 | C27: 25905 | D27: 142459 | E27: JEBEL ALI | F27: AL FUTTAIM | G27: Road base | H27: 78.08 | I27: 8.75 | J27: 683.2 | M27: 420.5 | P27: 550 | Q27: 0 | R27: 80
A28: 27 | B28: 2019-03-13 | C28: 25905 | D28: 142617 | E28: AL QUOZ | F28: AL FUTTAIM | G28: Road base | H28: 78.1 | I28: 7.70 | J28: 601.37 | M28: 420.5 | P28: 550 | Q28: 0 | R28: 70
A29: 28 | B29: 2019-03-13 | C29: 25905 | D29: 142529 | E29: JEBEL ALI | F29: AL FUTTAIM | G29: Road base | H29: 80.32 | I29: 8.75 | J29: 702.8 | M29: 420.5 | P29: 550 | Q29: 0 | R29: 80
A30: 29 | B30: 2019-03-14 | C30: 25905 | D30: 142672 | E30: AL QUOZ | F30: AL FUTTAIM | G30: Road base | H30: 72.12 | I30: 7.70 | J30: 555.324 | M30: 420.5 | P30: 550 | Q30: 0 | R30: 70
A31: 30 | B31: 2019-03-14 | C31: 25905 | D31: 2215676 | E31: Cement Factory | F31: AL RAWASI | G31: Road base | H31: 78 | I31: 16.65 | J31: 1298.7 | L31: 300 | M31: 420.5 | Q31: 0 | R31: 75
A32: 31 | B32: 2019-03-14 | C32: 25905 | D32: 142796 | E32: MAFRAQ | F32: AL FUTTAIM | G32: Road base | H32: 79.14 | I32: 16 | J32: 1266.24 | M32: 420.5 | P32: 550 | Q32: 0 | R32: 160
A33: 32 | B33: 2019-03-15 | C33: 25905 | D33: 142820 | E33: AL QUOZ | F33: AL FUTTAIM | G33: Road base | H33: 79.56 | I33: 7.70 | J33: 612.612 | M33: 420.5 | P33: 550 | Q33: 0 | R33: 70
A34: =ROW()-1 -> 33 | B34: 2019-03-16 | C34: 25905 | D34: 2216041 | E34: Cement Factory | F34: AL RAWASI | G34: Road base | H34: 85 | I34: =IF(AND(F34="RIDI SIDI"),"16.65",IF(AND(F34="CENTRAL",E34="DUBAI"),"19",IF(AND(F34="CENTRAL",E34="JEBEL ALI"),"21",IF(AND(F34="AL RAWASI"),"16.65",IF(AND(F34="AL NAKHEEL"),"16.65",IF(AND(F34="WB"),"22.60",IF(AND(F34="AL BARRAK",E34="DUCON"),"21.97",IF(AND(F34="AL KAWTHER",E34="DUCON"),"21.97",IF(AND(F34="AL KAWTHER"),"22.5",IF(AND(F34="AL FUTTAIM",E34="JEBEL ALI"),"8.75",IF(AND(F34="AL FUTTAIM",E34="MAFRAQ"),"16",IF(AND(F34="AL FUTTAIM",E34="AL QUOZ"),"7.70",IF(AND(F34="AL FUTTAIM",E34="MUSSAFAH"),"16.90",IF(AND(F34="AL FUTTAIM",E34="NAD AL SHEBA"),"8.50",IF(AND(F34="AL FUTTAIM",E34="MAHAWI"),"16.90",IF(AND(F34="AL RAWDA",E34="MADAM"),"24.50",)))))))))))))))) -> 16.65 | J34: =I34*H34 -> 1415.25 | L34: 300 | Q34: 0 | R34: 100
A35: 34 | B35: 2019-03-16 | C35: 25905 | D35: 142873 | E35: JEBEL ALI | F35: AL FUTTAIM | G35: Road base | H35: 78.54 | I35: 8.75 | J35: 687.225 | M35: 420.5 | P35: 550 | Q35: 0 | R35: 80
A36: 35 | C36: 25905 | E36: AL QUOZ | F36: AL FUTTAIM | G36: Road base | I36: 7.70 | J36: 0 | Q36: 0 | R36: 70
A37: 36 | C37: 25905 | E37: JEBEL ALI | F37: AL FUTTAIM | G37: Road base | I37: 8.75 | J37: 0 | Q37: 0 | R37: 80
A38: 37 | C38: 25905 | E38: MAFRAQ | F38: AL FUTTAIM | G38: Road base | I38: 16 | J38: 0 | Q38: 0 | R38: 160
A39: 38 | C39: 25905 | E39: AL QUOZ | F39: AL FUTTAIM | G39: Road base | I39: 7.70 | J39: 0 | Q39: 0 | R39: 70
A40: 39 | C40: 25905 | E40: AL QUOZ | F40: AL FUTTAIM | G40: Road base | I40: 7.70 | J40: 0 | Q40: 0 | R40: 70
A41: 40 | C41: 25905 | E41: JEBEL ALI | F41: AL FUTTAIM | G41: Road base | I41: 8.75 | J41: 0 | Q41: 0 | R41: 80
A42: 41 | C42: 25905 | E42: AL QUOZ | F42: AL FUTTAIM | G42: Road base | I42: 7.70 | J42: 0 | Q42: 0 | R42: 70
A43: 42 | C43: 25905 | E43: AL QUOZ | F43: AL FUTTAIM | G43: Road base | I43: 7.70 | J43: 0 | Q43: 0 | R43: 70
A44: 43 | C44: 25905 | E44: Cement Factory | F44: AL RAWASI | G44: Road base | I44: 16.65 | J44: 0 | Q44: 0
A45: 44 | C45: 25905 | E45: DUBAI | F45: CENTRAL | G45: Road base | I45: 19 | J45: 0 | Q45: 0
A46: 45 | C46: 25905 | E46: Cement Factory | F46: AL RAWASI | G46: Road base | I46: 16.65 | J46: 0 | Q46: 0
A47: 46 | C47: 25905 | E47: Cement Factory | F47: AL RAWASI | G47: Road base | I47: 16.65 | J47: 0 | Q47: 0
A48: 47 | C48: 25905 | E48: DUCON | F48: AL KAWTHER | G48: Road base | I48: 21.97 | J48: 0 | Q48: 0
A49: 48 | C49: 25905 | E49: Cement Factory | F49: AL RAWASI | G49: Road base | I49: 16.65 | J49: 0 | Q49: 0
A50: 49 | C50: 25905 | E50: DUCON | F50: AL KAWTHER | G50: Road base | I50: 21.97 | J50: 0 | Q50: 0
A51: 50 | C51: 25905 | E51: Cement Factory | F51: AL RAWASI | G51: Road base | I51: 16.65 | J51: 0 | Q51: 0
A52: 51 | C52: 25905 | E52: DUCON | F52: AL KAWTHER | G52: Road base | I52: 21.97 | J52: 0 | Q52: 0
A53: 52 | C53: 25905 | E53: DUCON | F53: AL KAWTHER | G53: Road base | I53: 21.97 | J53: 0 | Q53: 0
A54: 53 | C54: 25905 | E54: Cement Factory | F54: AL RAWASI | G54: Road base | I54: 16.65 | J54: 0 | Q54: 0
A55: 54 | C55: 25905 | E55: Cement Factory | F55: AL RAWASI | G55: Road base | I55: 16.65 | J55: 0 | Q55: 0
A56: 55 | C56: 25905 | E56: DUCON | F56: AL KAWTHER | G56: Road base | I56: 21.97 | J56: 0 | Q56: 0
A57: 56 | C57: 25905 | E57: Cement Factory | F57: AL RAWASI | G57: Road base | I57: 16.65 | J57: 0 | Q57: 0
A58: 57 | C58: 25905 | E58: MADAM | F58: AL RAWDA | G58: Road base | I58: 24.50 | J58: 0 | Q58: 0
A59: 58 | C59: 25905 | E59: DUCON | F59: AL KAWTHER | G59: Road base | I59: 21.97 | J59: 0 | Q59: 0
A60: 59 | C60: 25905 | E60: Cement Factory | F60: AL RAWASI | G60: Road base | I60: 16.65 | J60: 0 | Q60: 0
A61: 60 | C61: 25905 | E61: Cement Factory | F61: AL RAWASI | G61: Road base | I61: 16.65 | J61: 0 | Q61: 0
A62: 61 | C62: 25905 | E62: DUBAI | F62: CENTRAL | G62: Road base | I62: 19 | J62: 0 | Q62: 0
A63: 62 | C63: 25905 | E63: Cement Factory | F63: AL RAWASI | G63: Road base | I63: 16.65 | J63: 0 | Q63: 0
A64: 63 | C64: 25905 | E64: Cement Factory | F64: AL RAWASI | G64: Road base | I64: 16.65 | J64: 0 | Q64: 0
A65: 64 | C65: 25905 | E65: Cement Factory | F65: AL RAWASI | G65: Road base | I65: 16.65 | J65: 0 | Q65: 0
A66: =ROW()-1 -> 65 | C66: 25905 | E66: Cement Factory | F66: AL RAWASI | G66: Road base | I66: =IF(AND(F66="RIDI SIDI"),"16.65",IF(AND(F66="CENTRAL",E66="DUBAI"),"19",IF(AND(F66="CENTRAL",E66="JEBEL ALI"),"21",IF(AND(F66="AL RAWASI"),"16.65",IF(AND(F66="AL NAKHEEL"),"16.65",IF(AND(F66="WB"),"22.60",IF(AND(F66="AL BARRAK",E66="DUCON"),"21.97",IF(AND(F66="AL KAWTHER",E66="DUCON"),"21.97",IF(AND(F66="AL KAWTHER"),"22.5",IF(AND(F66="AL FUTTAIM",E66="JEBEL ALI"),"8.75",IF(AND(F66="AL FUTTAIM",E66="MAFRAQ"),"16",IF(AND(F66="AL FUTTAIM",E66="AL QUOZ"),"7.70",IF(AND(F66="AL FUTTAIM",E66="MUSSAFAH"),"16.90",IF(AND(F66="AL FUTTAIM",E66="NAD AL SHEBA"),"8.50",IF(AND(F66="AL FUTTAIM",E66="MAHAWI"),"16.90",IF(AND(F66="AL RAWDA",E66="MADAM"),"24.50",)))))))))))))))) -> 16.65 | J66: =I66*H66 -> 0 | Q66: 0
A67: 66 | C67: 25905 | E67: DUCON | F67: AL KAWTHER | G67: Road base | I67: 21.97 | J67: 0 | Q67: 0
A68: 67 | C68: 25905 | E68: DUCON | F68: AL KAWTHER | G68: Road base | I68: 21.97 | J68: 0 | Q68: 0
A69: 68 | C69: 25905 | E69: Cement Factory | F69: AL RAWASI | G69: Road base | I69: 16.65 | J69: 0 | Q69: 0
A70: 69 | C70: 25905 | E70: Cement Factory | F70: AL RAWASI | G70: Road base | I70: 16.65 | J70: 0 | Q70: 0
A71: 70 | C71: 25905 | E71: Cement Factory | F71: AL RAWASI | G71: Road base | I71: 16.65 | J71: 0 | Q71: 0
A72: 71 | C72: 25905 | E72: DUCON | F72: AL KAWTHER | G72: Road base | I72: 21.97 | J72: 0 | Q72: 0
A73: 72 | C73: 25905 | E73: DUCON | F73: AL KAWTHER | G73: Road base | I73: 21.97 | J73: 0 | Q73: 0
A74: 73 | C74: 25905 | E74: Cement Factory | F74: AL RAWASI | G74: Road base | I74: 16.65 | J74: 0 | Q74: 0
A75: 74 | C75: 25905 | E75: DUCON | F75: AL KAWTHER | G75: Road base | I75: 21.97 | J75: 0 | Q75: 0
A76: 75 | C76: 25905 | E76: DUCON | F76: AL KAWTHER | G76: Road base | I76: 21.97 | J76: 0 | Q76: 0
A77: 76 | C77: 25905 | E77: Cement Factory | F77: AL RAWASI | G77: Road base | I77: 16.65 | J77: 0 | Q77: 0
A78: 77 | C78: 25905 | E78: Cement Factory | F78: AL RAWASI | G78: Road base | I78: 16.65 | J78: 0 | Q78: 0
A79: 78 | C79: 25905 | E79: DUCON | F79: AL KAWTHER | G79: Road base | I79: 21.97 | J79: 0 | Q79: 0
A80: 79 | C80: 25905 | E80: Cement Factory | F80: AL RAWASI | G80: Road base | I80: 16.65 | J80: 0 | Q80: 0
A81: 80 | C81: 25905 | E81: DUBAI | F81: CENTRAL | G81: Road base | I81: 19 | J81: 0 | Q81: 0
A82: 81 | C82: 25905 | E82: DUCON | F82: AL BARRAK | G82: Road base | I82: 21.97 | J82: 0 | Q82: 0
A83: 82 | C83: 25905 | E83: DUCON | F83: AL BARRAK | G83: Road base | I83: 21.97 | J83: 0
B84: =SUBTOTAL(2,B2:B83) -> 34 | H84: =SUBTOTAL(9,H2:H83) -> 2677.9 | I84: =SUBTOTAL(9,I2:I83) -> 0 | J84: =SUBTOTAL(9,J2:J81) -> 34781.468 | K84: =SUBTOTAL(9,K2:K83) -> 0 | L84: =SUBTOTAL(9,L2:L83) -> 3000 | M84: =SUBTOTAL(9,M2:M83) -> 13035.5 | N84: =SUBTOTAL(9,N2:N83) -> 0 | O84: 0 | P84: =SUBTOTAL(9,P2:P83) -> 13200 | Q84: 0 | R84: 4165

Sheet 47895
A1: م | B1: DATE التاريخ | C1: NO TRUCK رقم السيارة | D1: NO TICKET رقم الفاتورة | E1: DESTINATION الموقع | F1: CRUCHER الكسارة | G1: MATERIAL المادة | H1: NETWET الوزن | I1: RATE سعر الطن | J1: TOTAL الاجمالى | K1: FUJ ت/فجيرة | L1: SAEEDY ت/ساعدي | M1: DHAID ت/الذيد | N1: ZUBAIR ت/الزبير | O1: ALGHAIL ت/الغيل | P1: KADRAA ت/كدرة | Q1: DIESEL الديزل | R1: SALARY الراتب
A2: =ROW()-1 -> 1 | B2: 2019-03-01 | C2: 47895 | D2: 141334 | E2: MUSSAFAH | F2: AL FUTTAIM | G2: Road base | H2: 77.8 | I2: =IF(AND(F2="RIDI SIDI"),"16.65",IF(AND(F2="CENTRAL",E2="DUBAI"),"19",IF(AND(F2="CENTRAL",E2="JEBEL ALI"),"21",IF(AND(F2="AL RAWASI"),"16.65",IF(AND(F2="AL NAKHEEL"),"16.65",IF(AND(F2="WB"),"22.60",IF(AND(F2="AL BARRAK",E2="DUCON"),"21.97",IF(AND(F2="AL KAWTHER",E2="DUCON"),"21.97",IF(AND(F2="AL KAWTHER"),"22.5",IF(AND(F2="AL FUTTAIM",E2="JEBEL ALI"),"8.75",IF(AND(F2="AL FUTTAIM",E2="MAFRAQ"),"16",IF(AND(F2="AL FUTTAIM",E2="AL QUOZ"),"7.70",IF(AND(F2="AL FUTTAIM",E2="MUSSAFAH"),"16.90",IF(AND(F2="AL FUTTAIM",E2="NAD AL SHEBA"),"8.50",IF(AND(F2="AL FUTTAIM",E2="MAHAWI"),"16.90",IF(AND(F2="AL RAWDA",E2="MADAM"),"24.50",)))))))))))))))) -> 16.90 | J2: =I2*H2 -> 1314.82 | M2: 420.5 | P2: 550 | Q2: 0 | R2: 180
A3: =ROW()-1 -> 2 | B3: 2019-03-02 | C3: 47895 | D3: 141426 | E3: MAFRAQ | F3: AL FUTTAIM | G3: Road base | H3: 76.78 | I3: 16 | J3: 1228.48 | M3: 420.5 | P3: 550 | Q3: 0 | R3: 160
A4: =ROW()-1 -> 3 | B4: 2019-03-02 | C4: 47895 | D4: 141380 | E4: AL QUOZ | F4: AL FUTTAIM | G4: Road base | H4: 76.24 | I4: 7.70 | J4: 587.048 | M4: 420.5 | P4: 550 | Q4: 0 | R4: 70
B5: 2019-03-03 | C5: 47895 | D5: 141532 | E5: MAFRAQ | F5: AL FUTTAIM | G5: Road base | H5: 77 | I5: 16 | J5: 1232 | M5: 420.5 | P5: 550 | Q5: 0 | R5: 160
A6: =ROW()-1 -> 5 | B6: 2019-03-03 | C6: 47895 | D6: 141470 | E6: AL QUOZ | F6: AL FUTTAIM | G6: Road base | H6: 75 | I6: 7.70 | J6: 577.5 | M6: 420.5 | P6: 550 | Q6: 0 | R6: 70
A7: 6 | B7: 2019-03-04 | C7: 47895 | D7: 141647 | E7: MAFRAQ | F7: AL FUTTAIM | G7: Road base | H7: 76.84 | I7: 16 | J7: 1229.44 | M7: 420.5 | P7: 550 | Q7: 0 | R7: 160
A8: 7 | B8: 2019-03-04 | C8: 47895 | D8: 141596 | E8: JEBEL ALI | F8: AL FUTTAIM | G8: Road base | H8: 76.84 | I8: 8.75 | J8: 672.35 | M8: 420.5 | P8: 550 | Q8: 0 | R8: 80
A9: 8 | B9: 2019-03-05 | C9: 47895 | D9: 141816 | E9: MUSSAFAH | F9: AL FUTTAIM | G9: Road base | H9: 77.82 | I9: 16.90 | J9: 1315.158 | M9: 420.5 | P9: 550 | Q9: 0 | R9: 180
A10: 9 | B10: 2019-03-05 | C10: 47895 | D10: 141688 | E10: AL QUOZ | F10: AL FUTTAIM | G10: Road base | H10: 74.16 | I10: 7.70 | J10: 571.032 | M10: 420.5 | P10: 550 | Q10: 0 | R10: 70
A11: 10 | B11: 2019-03-06 | C11: 47895 | D11: 141782 | E11: AL QUOZ | F11: AL FUTTAIM | G11: Road base | H11: 76.38 | I11: 7.70 | J11: 588.126 | M11: 420.5 | P11: 550 | Q11: 0 | R11: 70
A12: 11 | B12: 2019-03-06 | C12: 47895 | D12: 141832 | E12: MAFRAQ | F12: AL FUTTAIM | G12: Road base | H12: 75.36 | I12: 16 | J12: 1205.76 | M12: 420.5 | P12: 550 | Q12: 0 | R12: 160
A13: 12 | B13: 2019-03-07 | C13: 47895 | D13: 141897 | E13: AL QUOZ | F13: AL FUTTAIM | G13: Road base | H13: 76.26 | I13: 7.70 | J13: 587.202 | M13: 420.5 | P13: 550 | Q13: 0 | R13: 70
A14: 13 | B14: 2019-03-08 | C14: 47895 | D14: 2214588 | E14: Cement Factory | F14: AL RAWASI | G14: Road base | H14: 82.28 | I14: 16.65 | J14: 1369.962 | L14: 300 | Q14: 0 | R14: 100
A15: 14 | B15: 2019-03-08 | C15: 47895 | D15: 141995 | E15: MUSSAFAH | F15: AL FUTTAIM | G15: Road base | H15: 79.82 | I15: 16.90 | J15: 1348.958 | M15: 420.5 | P15: 550 | Q15: 0 | R15: 180
A16: 15 | B16: 2019-03-08 | C16: 47895 | D16: 141953 | E16: MAFRAQ | F16: AL FUTTAIM | G16: Road base | H16: 78.72 | I16: 16 | J16: 1259.52 | M16: 420.5 | P16: 550 | Q16: 0 | R16: 160
A17: 16 | B17: 2019-03-09 | C17: 47895 | D17: 142073 | E17: AL QUOZ | F17: AL FUTTAIM | G17: Road base | H17: 76.1 | I17: 7.70 | J17: 585.97 | M17: 420.5 | P17: 550 | Q17: 0 | R17: 70
A18: 17 | B18: 2019-03-09 | C18: 47895 | D18: 142116 | E18: MUSSAFAH | F18: AL FUTTAIM | G18: Road base | H18: 77.4 | I18: 16.90 | J18: 1308.06 | M18: 420.5 | P18: 550 | Q18: 0 | R18: 180
A19: 18 | B19: 2019-03-10 | C19: 47895 | D19: 142210 | E19: AL QUOZ | F19: AL FUTTAIM | G19: Road base | H19: 75.06 | I19: 7.70 | J19: 577.962 | M19: 420.5 | P19: 550 | Q19: 0 | R19: 70
A20: 19 | B20: 2019-03-10 | C20: 47895 | D20: 142240 | E20: MUSSAFAH | F20: AL FUTTAIM | G20: Road base | H20: 78.06 | I20: 16.90 | J20: 1319.214 | M20: 420.5 | P20: 550 | Q20: 0 | R20: 180
A21: 20 | B21: 2019-03-11 | C21: 47895 | D21: 901373 | E21: DUCON | F21: AL BARRAK | G21: Road base | H21: 75.06 | I21: 21.97 | J21: 1649.0682 | K21: 530 | M21: 420.5 | Q21: 0 | R21: 90
A22: 21 | B22: 2019-03-12 | C22: 47895 | D22: 142404 | E22: MUSSAFAH | F22: AL FUTTAIM | G22: Road base | H22: 78.28 | I22: 16.90 | J22: 1322.932 | M22: 420.5 | P22: 550 | Q22: 0 | R22: 180
A23: 22 | B23: 2019-03-12 | C23: 47895 | D23: 142446 | E23: JEBEL ALI | F23: AL FUTTAIM | G23: Road base | H23: 76.92 | I23: 8.75 | J23: 673.05 | M23: 420.5 | P23: 550 | Q23: 0 | R23: 80
A24: 23 | B24: 2019-03-13 | C24: 47895 | D24: 142630 | E24: MUSSAFAH | F24: AL FUTTAIM | G24: Road base | H24: 75.06 | I24: 16.90 | J24: 1268.514 | M24: 420.5 | P24: 550 | Q24: 0 | R24: 180
A25: 24 | B25: 2019-03-13 | C25: 47895 | D25: 142517 | E25: MUSSAFAH | F25: AL FUTTAIM | G25: Road base | H25: 79.36 | I25: 16.90 | J25: 1341.184 | M25: 420.5 | P25: 550 | Q25: 0 | R25: 180
A26: 25 | B26: 2019-03-14 | C26: 47895 | D26: 2215680 | E26: Cement Factory | F26: AL RAWASI | G26: Road base | H26: 78.12 | I26: 16.65 | J26: 1300.698 | L26: 300 | M26: 420.5 | Q26: 0 | R26: 75
A27: 26 | B27: 2019-03-15 | C27: 47895 | D27: 2215740 | E27: Cement Factory | F27: AL RAWASI | G27: Road base | H27: 85.22 | I27: 16.65 | J27: 1418.913 | L27: 300 | Q27: 0 | R27: 100
A28: 27 | B28: 2019-03-15 | C28: 47895 | D28: 142808 | E28: AL QUOZ | F28: AL FUTTAIM | G28: Road base | H28: 76.84 | I28: 7.70 | J28: 591.668 | M28: 420.5 | P28: 550 | Q28: 0 | R28: 70
A29: 28 | B29: 2019-03-15 | C29: 47895 | D29: 142818 | E29: AL QUOZ | F29: AL FUTTAIM | G29: Road base | H29: 76.78 | I29: 7.70 | J29: 591.206 | M29: 420.5 | P29: 550 | Q29: 0 | R29: 70
A30: 29 | B30: 2019-03-16 | C30: 47895 | D30: 2215999 | E30: Cement Factory | F30: AL RAWASI | G30: Road base | H30: 82.8 | I30: 16.65 | J30: 1378.62 | L30: 300 | Q30: 0 | R30: 100
A31: 30 | C31: 47895 | E31: MUSSAFAH | F31: AL FUTTAIM | G31: Road base | I31: 16.90 | J31: 0 | Q31: 0 | R31: 180
A32: 31 | C32: 47895 | E32: Cement Factory | F32: AL RAWASI | G32: Road base | I32: 16.65 | J32: 0 | Q32: 0 | R32: 75
A33: 32 | C33: 47895 | E33: Cement Factory | F33: AL RAWASI | G33: Road base | I33: 16.65 | J33: 0 | Q33: 0 | R33: 75
A34: 33 | C34: 47895 | E34: JEBEL ALI | F34: AL FUTTAIM | G34: Road base | I34: =IF(AND(F34="RIDI SIDI"),"16.65",IF(AND(F34="CENTRAL",E34="DUBAI"),"19",IF(AND(F34="CENTRAL",E34="JEBEL ALI"),"21",IF(AND(F34="AL RAWASI"),"16.65",IF(AND(F34="AL NAKHEEL"),"16.65",IF(AND(F34="WB"),"22.60",IF(AND(F34="AL BARRAK",E34="DUCON"),"21.97",IF(AND(F34="AL KAWTHER",E34="DUCON"),"21.97",IF(AND(F34="AL KAWTHER"),"22.5",IF(AND(F34="AL FUTTAIM",E34="JEBEL ALI"),"8.75",IF(AND(F34="AL FUTTAIM",E34="MAFRAQ"),"16",IF(AND(F34="AL FUTTAIM",E34="AL QUOZ"),"7.70",IF(AND(F34="AL FUTTAIM",E34="MUSSAFAH"),"16.90",IF(AND(F34="AL FUTTAIM",E34="NAD AL SHEBA"),"8.50",IF(AND(F34="AL FUTTAIM",E34="MAHAWI"),"16.90",IF(AND(F34="AL RAWDA",E34="MADAM"),"24.50",)))))))))))))))) -> 8.75 | J34: =I34*H34 -> 0 | Q34: 0 | R34: 80
A35: 34 | C35: 47895 | E35: AL QUOZ | F35: AL FUTTAIM | G35: Road base | I35: 7.70 | J35: 0 | Q35: 0 | R35: 70
A36: 35 | C36: 47895 | E36: AL QUOZ | F36: AL FUTTAIM | G36: Road base | I36: 7.70 | J36: 0 | Q36: 0 | R36: 70
A37: 36 | C37: 47895 | E37: MAFRAQ | F37: AL FUTTAIM | G37: Road base | I37: 16 | J37: 0 | Q37: 0 | R37: 160
A38: =ROW()-1 -> 37 | C38: 47895 | E38: AL QUOZ | F38: AL FUTTAIM | G38: Road base | I38: 7.70 | J38: 0 | Q38: 0 | R38: 70
A39: 38 | C39: 47895 | E39: MAFRAQ | F39: AL FUTTAIM | G39: Road base | I39: 16 | J39: 0 | Q39: 0 | R39: 160
A40: 39 | C40: 47895 | E40: AL QUOZ | F40: AL FUTTAIM | G40: Road base | I40: 7.70 | J40: 0 | Q40: 0 | R40: 70
A41: 40 | C41: 47895 | E41: AL QUOZ | F41: AL FUTTAIM | G41: Road base | I41: 7.70 | J41: 0 | Q41: 0 | R41: 70
A42: 41 | C42: 47895 | E42: JEBEL ALI | F42: AL FUTTAIM | G42: Road base | I42: 8.75 | J42: 0 | Q42: 0 | R42: 80
A43: 42 | C43: 47895 | G43: Road base | I43: 0 | J43: 0 | Q43: 0
A44: 43 | C44: 47895 | G44: Road base | I44: 0 | J44: 0 | Q44: 0
A45: 44 | C45: 47895 | G45: Road base | I45: 0 | J45: 0 | Q45: 0
A46: 45 | C46: 47895 | G46: Road base | I46: 0 | J46: 0 | Q46: 0
A47: 46 | C47: 47895 | G47: Road base | I47: 0 | J47: 0 | Q47: 0
A48: 47 | C48: 47895 | G48: Road base | I48: 0 | J48: 0 | Q48: 0
A49: 48 | C49: 47895 | G49: Road base | I49: 0 | J49: 0 | Q49: 0
A50: 49 | C50: 47895 | E50: Cement Factory | F50: AL RAWASI | G50: Road base | I50: 16.65 | J50: 0 | Q50: 0
A51: 50 | C51: 47895 | E51: DUCON | F51: WB | G51: Road base | I51: 22.60 | J51: 0 | Q51: 0
A52: 51 | C52: 47895 | E52: DUCON | F52: WB | G52: Road base | I52: 22.60 | J52: 0 | Q52: 0
A53: 52 | C53: 47895 | E53: Cement Factory | F53: AL RAWASI | G53: Road base | I53: 16.65 | J53: 0 | Q53: 0
A54: 53 | C54: 47895 | E54: Cement Factory | F54: AL RAWASI | G54: Road base | I54: 16.65 | J54: 0 | Q54: 0
A55: 54 | C55: 47895 | E55: Cement Factory | F55: AL NAKHEEL | G55: Road base | I55: 16.65 | J55: 0 | Q55: 0
A56: 55 | C56: 47895 | E56: Cement Factory | F56: AL RAWASI | G56: Road base | I56: 16.65 | J56: 0 | Q56: 0
A57: 56 | C57: 47895 | E57: DUCON | F57: WB | G57: Road base | I57: 22.60 | J57: 0 | Q57: 0
A58: 57 | C58: 47895 | E58: DUBAI | F58: CENTRAL | G58: Road base | I58: 19 | J58: 0 | Q58: 0
A59: 58 | C59: 47895 | G59: Road base | I59: 0 | J59: 0 | Q59: 0
A60: 59 | C60: 47895 | G60: Road base | I60: 0 | J60: 0 | Q60: 0
A61: 60 | C61: 47895 | G61: Road base | I61: 0 | J61: 0 | Q61: 0
A62: 61 | C62: 47895 | G62: Road base | I62: 0 | J62: 0 | Q62: 0
A63: 62 | C63: 47895 | G63: Road base | I63: 0 | J63: 0 | Q63: 0
A64: 63 | C64: 47895 | G64: Road base | I64: 0 | J64: 0 | Q64: 0
A65: 64 | C65: 47895 | G65: Road base | I65: 0 | J65: 0 | Q65: 0
A66: 65 | C66: 47895 | G66: Road base | I66: =IF(AND(F66="RIDI SIDI"),"16.65",IF(AND(F66="CENTRAL",E66="DUBAI"),"19",IF(AND(F66="CENTRAL",E66="JEBEL ALI"),"21",IF(AND(F66="AL RAWASI"),"16.65",IF(AND(F66="AL NAKHEEL"),"16.65",IF(AND(F66="WB"),"22.60",IF(AND(F66="AL BARRAK",E66="DUCON"),"21.97",IF(AND(F66="AL KAWTHER",E66="DUCON"),"21.97",IF(AND(F66="AL KAWTHER"),"22.5",IF(AND(F66="AL FUTTAIM",E66="JEBEL ALI"),"8.75",IF(AND(F66="AL FUTTAIM",E66="MAFRAQ"),"16",IF(AND(F66="AL FUTTAIM",E66="AL QUOZ"),"7.70",IF(AND(F66="AL FUTTAIM",E66="MUSSAFAH"),"16.90",IF(AND(F66="AL FUTTAIM",E66="NAD AL SHEBA"),"8.50",IF(AND(F66="AL FUTTAIM",E66="MAHAWI"),"16.90",IF(AND(F66="AL RAWDA",E66="MADAM"),"24.50",)))))))))))))))) -> 0 | J66: =I66*H66 -> 0 | Q66: 0
A67: 66 | C67: 47895 | G67: Road base | I67: 0 | J67: 0 | Q67: 0
A68: 67 | C68: 47895 | G68: Road base | I68: 0 | J68: 0 | Q68: 0
A69: 68 | C69: 47895 | G69: Road base | I69: 0 | J69: 0 | Q69: 0
A70: =ROW()-1 -> 69 | C70: 47895 | G70: Road base | I70: 0 | J70: 0 | Q70: 0
A71: 70 | C71: 47895 | G71: Road base | I71: 0 | J71: 0 | Q71: 0
A72: 71 | C72: 47895 | G72: Road base | I72: 0 | J72: 0 | Q72: 0
A73: 72 | C73: 47895 | G73: Road base | I73: 0 | J73: 0 | Q73: 0
A74: 73 | C74: 47895 | G74: Road base | I74: 0 | J74: 0 | Q74: 0
A75: 74 | C75: 47895 | G75: Road base | I75: 0 | J75: 0 | Q75: 0
A76: 75 | C76: 47895 | G76: Road base | I76: 0 | J76: 0 | Q76: 0
A77: 76 | C77: 47895 | G77: Road base | I77: 0 | J77: 0 | Q77: 0
A78: 77 | C78: 47895 | G78: Road base | I78: 0 | J78: 0 | Q78: 0
A79: 78 | C79: 47895 | G79: Road base | I79: 0 | J79: 0 | Q79: 0
A80: 79 | C80: 47895 | G80: Road base | I80: 0 | J80: 0 | Q80: 0
A81: 80 | C81: 47895 | G81: Road base | I81: 0 | J81: 0 | Q81: 0
A82: 81 | C82: 47895 | G82: Road base | I82: 0 | J82: 0 | Q82: 0
A83: 82 | C83: 47895 | G83: Road base | I83: 0 | J83: 0 | Q83: 0
A84: 83 | C84: 47895 | G84: Road base | I84: 0 | J84: 0 | Q84: 0
A85: 84 | C85: 47895 | G85: Road base | I85: 0 | J85: 0 | Q85: 0
A86: 85 | C86: 47895 | G86: Road base | I86: 0 | J86: 0 | Q86: 0
B87: =SUBTOTAL(2,B5:B86) -> 26 | H87: =SUBTOTAL(9,H5:H86) -> 2017.54 | I87: =SUBTOTAL(9,I5:I86) -> 0 | J87: =SUBTOTAL(9,J5:J85) -> 27284.0672 | K87: =SUBTOTAL(9,K2:K86) -> 530 | L87: =SUBTOTAL(9,L2:L86) -> 1200 | M87: 10933 | N87: 0 | O87: 0 | P87: 13200 | Q87: =SUBTOTAL(9,Q5:Q86) -> 0 | R87: 4245

Sheet SALIM_BALANCE
A1: م | B1: DATE التاريخ | C1: NO TRUCK رقم السيارة | D1: NO TICKET رقم الفاتورة | E1: DESTINATION الموقع | F1: CRUCHER الكسارة | G1: MATERIAL المادة | H1: NETWET الوزن | I1: RATE سعر الطن | J1: TOTAL الاجمالى
B2: 2019-03-01 | C2: 40104 | D2: 141337 | E2: MUSSAFAH | F2: AL FUTTAIM | G2: Road base | H2: 78.14 | I2: =IF(H2="","",IF(AND(F2="RIDI SIDI"),"16.65",IF(AND(F2="CENTRAL",E2="DUBAI"),"19",IF(AND(F2="CENTRAL",E2="JEBEL ALI"),"21",IF(AND(F2="AL RAWASI"),"16.65",IF(AND(F2="AL NAKHEEL"),"16.65",IF(AND(F2="WB"),"22.60",IF(AND(F2="AL BARRAK",E2="DUCON"),"21.97",IF(AND(F2="AL KAWTHER",E2="DUCON"),"21.97",IF(AND(F2="AL KAWTHER"),"22.5",IF(AND(F2="AL FUTTAIM",E2="JEBEL ALI"),"8.75",IF(AND(F2="AL FUTTAIM",E2="MAFRAQ"),"16",IF(AND(F2="AL FUTTAIM",E2="AL QUOZ"),"7.70",IF(AND(F2="AL FUTTAIM",E2="MUSSAFAH"),"16.90",IF(AND(F2="AL FUTTAIM",E2="NAD AL SHEBA"),"8.50",IF(AND(F2="AL FUTTAIM",E2="MAHAWI"),"16.90",IF(AND(F2="AL RAWDA",E2="MADAM"),"24.50",))))))))))))))))) -> 16.90 | J2: =IF(H2="","",I2*H2) -> 1320.566 | K2: BEGIN OF SHEET: SALIM_BALANCE
B3: 2019-03-02 | C3: 40104 | D3: 141396 | E3: AL QUOZ | F3: AL FUTTAIM | G3: Road base | H3: 79.54 | I3: 7.70 | J3: =IF(H3="","",I3*H3) -> 612.458
B4: 2019-03-03 | C4: 40104 | D4: 2213818 | E4: Cement Factory | F4: AL RAWASI | G4: Road base | H4: 79.58 | I4: 16.65 | J4: 1325.007
B5: 2019-03-03 | C5: 40104 | D5: 141521 | E5: JEBEL ALI | F5: AL FUTTAIM | G5: Road base | H5: 78.52 | I5: 8.75 | J5: 687.05 | M5: ارجو الاتجاه للاسفل لآخر الجدول لمشاهدة الملاحظة و الخطأ
B6: 2019-03-03 | C6: 40104 | D6: 141437 | E6: MUSSAFAH | F6: AL FUTTAIM | G6: Road base | H6: 78.28 | I6: 16.90 | J6: 1322.932
B7: 2019-03-04 | C7: 40104 | D7: 141564 | E7: AL QUOZ | F7: AL FUTTAIM | G7: Road base | H7: 79.56 | I7: 7.70 | J7: 612.612
B8: 2019-03-04 | C8: 40104 | D8: 141611 | E8: JEBEL ALI | F8: AL RAWASI | G8: Road base | H8: 78.72 | I8: 16.65 | J8: 1310.688
B9: 2019-03-05 | C9: 40104 | D9: 141658 | E9: MAFRAQ | F9: AL FUTTAIM | G9: Road base | H9: 76.54 | I9: 16 | J9: 1224.64
B10: 2019-03-06 | C10: 40104 | D10: 2214141 | E10: Cement Factory | F10: AL RAWASI | G10: Road base | H10: 83.58 | I10: 16.65 | J10: 1391.607
B11: 2019-03-06 | C11: 40104 | D11: 2214280 | E11: Cement Factory | F11: AL RAWASI | G11: Road base | H11: 78.76 | I11: 16.65 | J11: 1311.354
B12: 2019-03-06 | C12: 40104 | D12: 2214214 | E12: Cement Factory | F12: AL RAWASI | G12: Road base | H12: 81.24 | I12: 16.65 | J12: 1352.646
B13: 2019-03-07 | C13: 40104 | D13: 2214314 | E13: Cement Factory | F13: AL RAWASI | G13: Road base | H13: 86.42 | I13: 16.65 | J13: 1438.893
B14: 2019-03-07 | C14: 40104 | D14: 2214461 | E14: Cement Factory | F14: AL RAWASI | G14: Road base | H14: 80.42 | I14: 16.65 | J14: 1338.993
B15: 2019-03-07 | C15: 40104 | D15: 141845 | E15: JEBEL ALI | F15: AL FUTTAIM | G15: Road base | H15: 77.66 | I15: 8.75 | J15: 679.525
B16: 2019-03-08 | C16: 40104 | D16: 2214611 | E16: Cement Factory | F16: AL RAWASI | G16: Road base | H16: 84 | I16: 16.65 | J16: 1398.6
B17: 2019-03-08 | C17: 40104 | D17: 2214848 | E17: Cement Factory | F17: AL RAWASI | G17: Road base | H17: 89.6 | I17: 16.65 | J17: 1491.84
B18: 2019-03-08 | C18: 40104 | D18: 2214775 | E18: Cement Factory | F18: AL RAWASI | G18: Road base | H18: 74.64 | I18: 16.65 | J18: 1242.756
B19: 2019-03-09 | C19: 40104 | D19: 2214914 | E19: Cement Factory | F19: AL RAWASI | G19: Road base | H19: 84.62 | I19: 16.65 | J19: 1408.923
B20: 2019-03-09 | C20: 40104 | D20: 2215117 | E20: Cement Factory | F20: AL RAWASI | G20: Road base | H20: 80.76 | I20: 16.65 | J20: 1344.654
B21: 2019-03-09 | C21: 40104 | D21: 2215049 | E21: Cement Factory | F21: AL RAWASI | G21: Road base | H21: 87.8 | I21: 16.65 | J21: 1461.87
B22: 2019-03-10 | C22: 40104 | D22: 2215149 | E22: Cement Factory | F22: AL RAWASI | G22: Road base | H22: 81.84 | I22: 16.65 | J22: 1362.636
B23: 2019-03-10 | C23: 40104 | D23: 142192 | E23: AL QUOZ | F23: AL FUTTAIM | G23: Road base | H23: 78.3 | I23: 7.70 | J23: 602.91
B24: 2019-03-11 | C24: 40104 | D24: 2215276 | E24: Cement Factory | F24: AL RAWASI | G24: Road base | H24: 75.52 | I24: 16.65 | J24: 1257.408
B25: 2019-03-11 | C25: 40104 | D25: 901370 | E25: DUCON | F25: AL BARRAK | G25: Road base | H25: 76.82 | I25: 21.97 | J25: 1687.7354
B26: 2019-03-12 | C26: 40104 | D26: 2215474 | E26: Cement Factory | F26: AL RAWASI | G26: Road base | H26: 81.52 | I26: 16.65 | J26: 1357.308
B27: 2019-03-12 | C27: 40104 | D27: 901558 | E27: DUCON | F27: AL BARRAK | G27: Road base | H27: 83.56 | I27: 21.97 | J27: 1835.8132
B28: 2019-03-13 | C28: 40104 | D28: 2217647 | E28: Cement Factory | F28: AL RAWASI | G28: Road base | H28: 83.58 | I28: 16.65 | J28: 1391.607
C29: 40104 | E29: JEBEL ALI | F29: AL FUTTAIM | G29: Road base
C30: 40104 | E30: MAFRAQ | F30: AL FUTTAIM | G30: Road base
C31: 40104 | E31: DUCON | F31: AL BARRAK | G31: Road base
C32: 40104 | E32: AL QUOZ | F32: AL FUTTAIM | G32: Road base
C33: 40104 | E33: AL QUOZ | F33: AL FUTTAIM | G33: Road base
C34: 40104 | E34: MAFRAQ | F34: AL FUTTAIM | G34: Road base
C35: 40104 | E35: MAFRAQ | F35: AL FUTTAIM | G35: Road base
C36: 40104 | E36: AL QUOZ | F36: AL FUTTAIM | G36: Road base
C37: 40104 | E37: AL QUOZ | F37: AL FUTTAIM | G37: Road base
C38: 40104 | E38: JEBEL ALI | F38: AL FUTTAIM | G38: Road base
C39: 40104 | E39: DUCON | F39: AL KAWTHER | G39: Road base
C40: 40104 | E40: Cement Factory | F40: AL RAWASI | G40: Road base
C41: 40104 | E41: DUCON | F41: AL KAWTHER | G41: Road base
C42: 40104 | E42: Cement Factory | F42: AL RAWASI | G42: Road base
C43: 40104 | E43: Cement Factory | F43: AL RAWASI | G43: Road base
C44: 40104 | E44: DUCON | F44: AL KAWTHER | G44: Road base
C45: 40104 | E45: Cement Factory | F45: AL RAWASI | G45: Road base
C46: 40104 | E46: Cement Factory | F46: AL NAKHEEL | G46: Road base
C47: 40104 | E47: DUCON | F47: AL KAWTHER | G47: Road base
C48: 40104 | E48: Cement Factory | F48: AL RAWASI | G48: Road base
C49: 40104 | E49: Cement Factory | F49: AL RAWASI | G49: Road base
C50: 40104 | E50: Cement Factory | F50: AL RAWASI | G50: Road base
C51: 40104 | E51: Cement Factory | F51: AL RAWASI | G51: Road base
C52: 40104 | E52: DUCON | F52: AL KAWTHER | G52: Road base
C53: 40104 | E53: Cement Factory | F53: AL RAWASI | G53: Road base
C54: 40104 | E54: DUBAI | F54: CENTRAL | G54: Road base
C55: 40104 | E55: DUCON | F55: AL KAWTHER | G55: Road base
C56: 40104 | E56: Cement Factory | F56: AL RAWASI | G56: Road base
C57: 40104 | E57: Cement Factory | F57: AL RAWASI | G57: Road base
C58: 40104 | E58: Cement Factory | F58: AL RAWASI | G58: Road base
C59: 40104 | E59: DUCON | F59: AL KAWTHER | G59: Road base
C60: 40104 | E60: DUCON | F60: AL KAWTHER | G60: Road base
C61: 40104 | E61: DUCON | F61: AL KAWTHER | G61: Road base
C62: 40104 | E62: DUCON | F62: AL KAWTHER | G62: Road base
C63: 40104 | E63: Cement Factory | F63: AL RAWASI | G63: Road base
C64: 40104 | E64: DUCON | F64: AL KAWTHER | G64: Road base
C65: 40104 | E65: Cement Factory | F65: AL RAWASI | G65: Road base
C66: 40104 | E66: Cement Factory | F66: AL RAWASI | G66: Road base
C67: 40104 | E67: DUCON | F67: AL KAWTHER | G67: Road base | I67: =IF(H67="","",IF(AND(F67="RIDI SIDI"),"16.65",IF(AND(F67="CENTRAL",E67="DUBAI"),"19",IF(AND(F67="CENTRAL",E67="JEBEL ALI"),"21",IF(AND(F67="AL RAWASI"),"16.65",IF(AND(F67="AL NAKHEEL"),"16.65",IF(AND(F67="WB"),"22.60",IF(AND(F67="AL BARRAK",E67="DUCON"),"21.97",IF(AND(F67="AL KAWTHER",E67="DUCON"),"21.97",IF(AND(F67="AL KAWTHER"),"22.5",IF(AND(F67="AL FUTTAIM",E67="JEBEL ALI"),"8.75",IF(AND(F67="AL FUTTAIM",E67="MAFRAQ"),"16",IF(AND(F67="AL FUTTAIM",E67="AL QUOZ"),"7.70",IF(AND(F67="AL FUTTAIM",E67="MUSSAFAH"),"16.90",IF(AND(F67="AL FUTTAIM",E67="NAD AL SHEBA"),"8.50",IF(AND(F67="AL FUTTAIM",E67="MAHAWI"),"16.90",IF(AND(F67="AL RAWDA",E67="MADAM"),"24.50",))))))))))))))))) ->  | J67: =IF(H67="","",I67*H67) -> 
C68: 40104 | E68: Cement Factory | F68: AL RAWASI | G68: Road base
C69: 40104 | E69: DUBAI | F69: CENTRAL | G69: Road base
C70: 40104 | E70: DUCON | F70: AL BARRAK | G70: Road base
C71: 40104 | E71: Cement Factory | F71: AL RAWASI | G71: Road base
C72: 40104 | E72: Cement Factory | F72: RIDI SIDI | G72: Road base
C73: 40104 | E73: Cement Factory | F73: RIDI SIDI | G73: Road base
C74: 40104 | E74: Cement Factory | F74: RIDI SIDI | G74: Road base
C75: 40104 | E75: Cement Factory | F75: RIDI SIDI | G75: Road base
C76: 40104 | E76: Cement Factory | F76: RIDI SIDI | G76: Road base
C77: 40104 | E77: Cement Factory | F77: RIDI SIDI | G77: Road base
C78: 40104 | E78: Cement Factory | F78: RIDI SIDI | G78: Road base
C79: 40104 | E79: Cement Factory | F79: RIDI SIDI | G79: Road base
C80: 40104 | E80: AL QUOZ | F80: AL FUTTAIM | G80: Road base
C81: 40104 | E81: MAFRAQ | F81: AL FUTTAIM | G81: Road base | K81: END OF SHEET: SALIM_BALANCE
B84: 2019-03-01 | C84: 47912 | D84: 141335 | E84: AL QUOZ | F84: AL FUTTAIM | G84: Road base | H84: 75.76 | I84: 7.70 | J84: 583.352 | K84: BEGIN OF SHEET: SALIM_BALANCE
B85: 2019-03-02 | C85: 47912 | D85: 2213475 | E85: Cement Factory | F85: AL RAWASI | G85: Road base | H85: 78.88 | I85: 16.65 | J85: 1313.352
B86: 2019-03-02 | C86: 47912 | D86: 141368 | E86: AL QUOZ | F86: AL FUTTAIM | G86: Road base | H86: 78.16 | I86: 7.70 | J86: 601.832
B87: 2019-03-03 | C87: 47912 | D87: 2213628 | E87: Cement Factory | F87: AL RAWASI | G87: Road base | H87: 80.26 | I87: 16.65 | J87: 1336.329
B88: 2019-03-03 | C88: 47912 | D88: 2213792 | E88: Cement Factory | F88: AL RAWASI | G88: Road base | H88: 79.14 | I88: 16.65 | J88: 1317.681
B89: 2019-03-04 | C89: 47912 | D89: 2213937 | E89: Cement Factory | F89: AL RAWASI | G89: Road base | H89: 70.34 | I89: 16.65 | J89: 1171.161
B90: 2019-03-04 | C90: 47912 | D90: 141605 | E90: JEBEL ALI | F90: AL FUTTAIM | G90: Road base | H90: 77.4 | I90: 8.75 | J90: 677.25
B91: 2019-03-04 | C91: 47912 | D91: 2213874 | E91: Cement Factory | F91: AL RAWASI | G91: Road base | H91: 77.2 | I91: 16.65 | J91: 1285.38
B92: 2019-03-05 | C92: 47912 | D92: 2214101 | E92: Cement Factory | F92: AL RAWASI | G92: Road base | H92: 74.32 | I92: 16.65 | J92: 1237.428
B93: 2019-03-05 | C93: 47912 | D93: 141657 | E93: JEBEL ALI | F93: AL FUTTAIM | G93: Road base | H93: 73.94 | I93: 8.75 | J93: 646.975
B94: 2019-03-06 | C94: 47912 | D94: 2214237 | E94: Cement Factory | F94: AL RAWASI | G94: Road base | H94: 77.08 | I94: 16.65 | J94: 1283.382
B95: 2019-03-06 | C95: 47912 | D95: 2214136 | E95: Cement Factory | F95: AL RAWASI | G95: Road base | H95: 79.44 | I95: 16.65 | J95: 1322.676
B96: 2019-03-07 | C96: 47912 | D96: 2214329 | E96: Cement Factory | F96: AL RAWASI | G96: Road base | H96: 79.76 | I96: 16.65 | J96: 1328.004
B97: 2019-03-07 | C97: 47912 | D97: 2214358 | E97: Cement Factory | F97: AL RAWASI | G97: Road base | H97: 73.08 | I97: 16.65 | J97: 1216.782
B98: 2019-03-07 | C98: 47912 | D98: 2214434 | E98: Cement Factory | F98: AL RAWASI | G98: Road base | H98: 80.16 | I98: 16.65 | J98: 1334.664
B99: 2019-03-08 | C99: 47912 | D99: 2214560 | E99: Cement Factory | F99: AL RAWASI | G99: Road base | H99: 73.84 | I99: 16.65 | J99: 1229.436
B100: 2019-03-08 | C100: 47912 | D100: 2214792 | E100: Cement Factory | F100: AL RAWASI | G100: Road base | H100: 79.32 | I100: 16.65 | J100: 1320.678
B101: 2019-03-09 | C101: 47912 | D101: 2214894 | E101: Cement Factory | F101: AL RAWASI | G101: Road base | H101: 81.5 | I101: 16.65 | J101: 1356.975
B102: 2019-03-09 | C102: 47912 | D102: 2215052 | E102: Cement Factory | F102: AL NAKHEEL | G102: Road base | H102: 71.36 | I102: 16.65 | J102: 1188.144
B103: 2019-03-09 | C103: 47912 | D103: 2215103 | E103: Cement Factory | F103: AL RAWASI | G103: Road base | H103: 78.56 | I103: 16.65 | J103: 1308.024
B104: 2019-03-10 | C104: 47912 | D104: 2215152 | E104: Cement Factory | F104: AL RAWASI | G104: Road base | H104: 76.32 | I104: 16.65 | J104: 1270.728
B105: 2019-03-10 | C105: 47912 | D105: 2215209 | E105: Cement Factory | F105: AL NAKHEEL | G105: Road base | H105: 69.46 | I105: 16.65 | J105: 1156.509
B106: 2019-03-10 | C106: 47912 | D106: 142188 | E106: JEBEL ALI | F106: AL FUTTAIM | G106: Road base | H106: 77.02 | I106: 8.75 | J106: 673.925
B107: 2019-03-11 | C107: 47912 | D107: 2215282 | E107: Cement Factory | F107: AL RAWASI | G107: Road base | H107: 78.36 | I107: 16.65 | J107: 1304.694
B108: 2019-03-11 | C108: 47912 | D108: 2215399 | E108: Cement Factory | F108: AL RAWASI | G108: Road base | H108: 79.5 | I108: 16.65 | J108: 1323.675
B109: 2019-03-12 | C109: 47912 | D109: 2215473 | E109: Cement Factory | F109: AL RAWASI | G109: Road base | H109: 73.34 | I109: 16.65 | J109: 1221.111
B110: 2019-03-12 | C110: 47912 | D110: 2217516 | E110: Cement Factory | F110: AL RAWASI | G110: Road base | H110: 74.58 | I110: 16.65 | J110: 1241.757
B111: 2019-03-12 | C111: 47912 | D111: 2217571 | E111: Cement Factory | F111: AL RAWASI | G111: Road base | H111: 78.34 | I111: 16.65 | J111: 1304.361
B112: 2019-03-13 | C112: 47912 | D112: 142639 | E112: AL QUOZ | F112: AL FUTTAIM | G112: Road base | H112: 77.6 | I112: 7.70 | J112: 597.52
B113: 2019-03-13 | C113: 47912 | D113: 142556 | E113: AL QUOZ | F113: AL FUTTAIM | G113: Road base | H113: 75.84 | I113: 7.70 | J113: 583.968
B114: 2019-03-14 | C114: 47912 | D114: 2215590 | E114: Cement Factory | F114: AL RAWASI | G114: Road base | H114: 80.36 | I114: 16.65 | J114: 1337.994
B115: 2019-03-15 | C115: 47912 | D115: 2215743 | E115: Cement Factory | F115: AL RAWASI | G115: Road base | H115: 74.76 | I115: 16.65 | J115: 1244.754
C116: 47912 | E116: Cement Factory | F116: AL NAKHEEL | G116: Road base
C117: 47912 | E117: Cement Factory | F117: AL RAWASI | G117: Road base
C118: 47912 | E118: Cement Factory | F118: AL RAWASI | G118: Road base
C119: 47912 | E119: Cement Factory | F119: AL NAKHEEL | G119: Road base
C120: 47912 | E120: Cement Factory | F120: AL RAWASI | G120: Road base
C121: 47912 | E121: DUBAI | F121: CENTRAL | G121: Road base
C122: 47912 | E122: DUBAI | F122: CENTRAL | G122: Road base
C123: 47912 | E123: Cement Factory | F123: AL RAWASI | G123: Road base
C124: 47912 | E124: Cement Factory | F124: AL RAWASI | G124: Road base
C125: 47912 | E125: Cement Factory | F125: AL RAWASI | G125: Road base
C126: 47912 | E126: Cement Factory | F126: AL RAWASI | G126: Road base
C127: 47912 | E127: Cement Factory | F127: AL RAWASI | G127: Road base
C128: 47912 | E128: Cement Factory | F128: AL RAWASI | G128: Road base
C129: 47912 | E129: Cement Factory | F129: AL RAWASI | G129: Road base
C130: 47912 | E130: Cement Factory | F130: AL RAWASI | G130: Road base
C131: 47912 | E131: Cement Factory | F131: AL RAWASI | G131: Road base | I131: =IF(H131="","",IF(AND(F131="RIDI SIDI"),"16.65",IF(AND(F131="CENTRAL",E131="DUBAI"),"19",IF(AND(F131="CENTRAL",E131="JEBEL ALI"),"21",IF(AND(F131="AL RAWASI"),"16.65",IF(AND(F131="AL NAKHEEL"),"16.65",IF(AND(F131="WB"),"22.60",IF(AND(F131="AL BARRAK",E131="DUCON"),"21.97",IF(AND(F131="AL KAWTHER",E131="DUCON"),"21.97",IF(AND(F131="AL KAWTHER"),"22.5",IF(AND(F131="AL FUTTAIM",E131="JEBEL ALI"),"8.75",IF(AND(F131="AL FUTTAIM",E131="MAFRAQ"),"16",IF(AND(F131="AL FUTTAIM",E131="AL QUOZ"),"7.70",IF(AND(F131="AL FUTTAIM",E131="MUSSAFAH"),"16.90",IF(AND(F131="AL FUTTAIM",E131="NAD AL SHEBA"),"8.50",IF(AND(F131="AL FUTTAIM",E131="MAHAWI"),"16.90",IF(AND(F131="AL RAWDA",E131="MADAM"),"24.50",))))))))))))))))) ->  | J131: =IF(H131="","",I131*H131) -> 
C132: 47895 | E132: DUBAI | F132: CENTRAL | G132: Road base
C133: 47895 | E133: DUBAI | F133: CENTRAL | G133: Road base
C134: 47895 | E134: DUCON | F134: AL BARRAK | G134: Road base
C135: 47895 | E135: Cement Factory | F135: AL RAWASI | G135: Road base
C136: 47895 | E136: Cement Factory | F136: AL RAWASI | G136: Road base
C137: 47895 | E137: DUBAI | F137: CENTRAL | G137: Road base
C138: 47895 | E138: DUBAI | F138: CENTRAL | G138: Road base
C139: 47895 | E139: DUBAI | F139: CENTRAL | G139: Road base
C140: 47895 | E140: Cement Factory | F140: AL NAKHEEL | G140: Road base
C141: 47895 | E141: Cement Factory | F141: AL RAWASI | G141: Road base
C142: 47895 | E142: Cement Factory | F142: AL RAWASI | G142: Road base
C143: 47895 | E143: Cement Factory | F143: AL RAWASI | G143: Road base
C144: 47895 | E144: Cement Factory | F144: AL RAWASI | G144: Road base
C145: 47895 | E145: Cement Factory | F145: AL RAWASI | G145: Road base
C146: 47895 | E146: Cement Factory | F146: AL RAWASI | G146: Road base
C147: 47895 | E147: Cement Factory | F147: AL NAKHEEL | G147: Road base
C148: 47895 | E148: Cement Factory | F148: AL RAWASI | G148: Road base
C149: 47895 | E149: Cement Factory | F149: AL RAWASI | G149: Road base
C150: 47895 | E150: Cement Factory | F150: AL RAWASI | G150: Road base
C151: 47895 | E151: Cement Factory | F151: AL RAWASI | G151: Road base
C152: 47895 | E152: Cement Factory | F152: AL RAWASI | G152: Road base
C153: 47895 | E153: Cement Factory | F153: AL RAWASI | G153: Road base
C154: 47895 | E154: Cement Factory | F154: RIDI SIDI | G154: Road base
C155: 47895 | E155: Cement Factory | F155: RIDI SIDI | G155: Road base
C156: 47895 | E156: Cement Factory | F156: RIDI SIDI | G156: Road base
C157: 47895 | E157: Cement Factory | F157: RIDI SIDI | G157: Road base
C158: 47895 | E158: Cement Factory | F158: RIDI SIDI | G158: Road base
C159: 47895 | E159: Cement Factory | F159: RIDI SIDI | G159: Road base
C160: 47895 | E160: Cement Factory | F160: RIDI SIDI | G160: Road base
C161: 47895 | E161: Cement Factory | F161: RIDI SIDI | G161: Road base
C162: 47895 | E162: AL QUOZ | F162: AL FUTTAIM | G162: Road base
C163: 47895 | E163: MAFRAQ | F163: AL FUTTAIM | G163: Road base | K163: END OF SHEET: SALIM_BALANCE
B166: 2019-03-01 | C166: 40223 | D166: 141343 | E166: MUSSAFAH | F166: AL FUTTAIM | G166: Road base | H166: 77.78 | I166: 16.90 | J166: 1314.482 | K166: BEGIN OF SHEET: SALIM_BALANCE
B167: 2019-03-02 | C167: 40223 | D167: 141397 | E167: AL QUOZ | F167: AL FUTTAIM | G167: Road base | H167: 76.76 | I167: 7.70 | J167: 591.052
B168: 2019-03-03 | C168: 40223 | D168: 141485 | E168: AL QUOZ | F168: AL FUTTAIM | G168: Road base | H168: 75.32 | I168: 7.70 | J168: 579.964
B169: 2019-03-03 | C169: 40223 | D169: 141441 | E169: MUSSAFAH | F169: AL FUTTAIM | G169: Road base | H169: 80.52 | I169: 16.90 | J169: 1360.788
B170: 2019-03-04 | C170: 40223 | D170: 141536 | E170: MAFRAQ | F170: AL FUTTAIM | G170: Road base | H170: 76.02 | I170: 16 | J170: 1216.32
B171: 2019-03-04 | C171: 40223 | D171: 141576 | E171: AL QUOZ | F171: AL FUTTAIM | G171: Road base | H171: 75.16 | I171: 7.70 | J171: 578.732
B172: 2019-03-04 | C172: 40223 | D172: 141637 | E172: JEBEL ALI | F172: AL FUTTAIM | G172: Road base | H172: 76.94 | I172: 8.75 | J172: 673.225
B173: 2019-03-05 | C173: 40223 | D173: 141735 | E173: MAFRAQ | F173: AL FUTTAIM | G173: Road base | H173: 77.42 | I173: 16 | J173: 1238.72
B174: 2019-03-05 | C174: 40223 | D174: 141703 | E174: AL QUOZ | F174: AL FUTTAIM | G174: Road base | H174: 77.74 | I174: 7.70 | J174: 598.598
B175: 2019-03-05 | C175: 40223 | D175: 141670 | E175: JEBEL ALI | F175: AL FUTTAIM | G175: Road base | H175: 76.62 | I175: 8.75 | J175: 670.425
B176: 2019-03-06 | C176: 40223 | D176: 141781 | E176: AL QUOZ | F176: AL FUTTAIM | G176: Road base | H176: 75.62 | I176: 7.70 | J176: 582.274
B177: 2019-03-07 | C177: 40223 | D177: 2214604 | E177: Cement Factory | F177: AL RAWASI | G177: Road base | H177: 87.84 | I177: 16.65 | J177: 1462.536
B178: 2019-03-07 | C178: 40223 | D178: 2214335 | E178: Cement Factory | F178: AL NAKHEEL | G178: Road base | H178: 74.48 | I178: 16.65 | J178: 1240.092
B179: 2019-03-07 | C179: 40223 | D179: 141853 | E179: JEBEL ALI | F179: AL FUTTAIM | G179: Road base | H179: 78.26 | I179: 8.75 | J179: 684.775
B180: 2019-03-07 | C180: 40223 | D180: 900718 | E180: DUCON | F180: AL BARRAK | G180: Road base | H180: 71.76 | I180: 21.97 | J180: 1576.5672
B181: 2019-03-08 | C181: 40223 | D181: 2214861 | E181: Cement Factory | F181: AL RAWASI | G181: Road base | H181: 77.7 | I181: 16.65 | J181: 1293.705
B182: 2019-03-08 | C182: 40223 | D182: 141960 | E182: MAFRAQ | F182: AL FUTTAIM | G182: Road base | H182: 79.58 | I182: 16 | J182: 1273.28
B183: 2019-03-09 | C183: 40223 | D183: 142031 | E183: MUSSAFAH | F183: AL FUTTAIM | G183: Road base | H183: 78 | I183: 16.90 | J183: 1318.2
B184: 2019-03-09 | C184: 40223 | D184: 142108 | E184: AL QUOZ | F184: AL FUTTAIM | G184: Road base | H184: 77.6 | I184: 7.70 | J184: 597.52
B185: 2019-03-10 | C185: 40223 | D185: 142167 | E185: MUSSAFAH | F185: AL FUTTAIM | G185: Road base | H185: 76.74 | I185: 16.90 | J185: 1296.906
B186: 2019-03-11 | C186: 40223 | D186: 142303 | E186: MUSSAFAH | F186: AL FUTTAIM | G186: Road base | H186: 81.82 | I186: 16.90 | J186: 1382.758
B187: 2019-03-11 | C187: 40223 | D187: 142391 | E187: MAHAWI | F187: AL FUTTAIM | G187: Road base | H187: 82.7 | I187: 16.90 | J187: 1397.63
B188: 2019-03-11 | C188: 40223 | D188: 2215244 | E188: Cement Factory | F188: AL RAWASI | G188: Road base | H188: 75.76 | I188: 16.65 | J188: 1261.404
B189: 2019-03-11 | C189: 40223 | D189: 2215422 | E189: Cement Factory | F189: AL RAWASI | G189: Road base | H189: 79.66 | I189: 16.65 | J189: 1326.339
B190: 2019-03-12 | C190: 40223 | D190: 142460 | E190: JEBEL ALI | F190: AL FUTTAIM | G190: Road base | H190: 77.8 | I190: 8.75 | J190: 680.75
B191: 2019-03-13 | C191: 40223 | D191: 142541 | E191: MUSSAFAH | F191: AL FUTTAIM | G191: Road base | H191: 78.38 | I191: 16.90 | J191: 1324.622
B192: 2019-03-13 | C192: 40223 | D192: 142599 | E192: AL QUOZ | F192: AL FUTTAIM | G192: Road base | H192: 76.4 | I192: 7.70 | J192: 588.28
B193: 2019-03-13 | C193: 40223 | D193: 142665 | E193: JEBEL ALI | F193: AL FUTTAIM | G193: Road base | H193: 77.36 | I193: 8.75 | J193: 676.9
B194: 2019-03-14 | C194: 40223 | D194: 2215674 | E194: Cement Factory | F194: AL RAWASI | G194: Road base | H194: 77.2 | I194: 16.65 | J194: 1285.38
B195: 2019-03-14 | C195: 40223 | D195: 142793 | E195: MAFRAQ | F195: AL FUTTAIM | G195: Road base | H195: 78.12 | I195: =IF(H195="","",IF(AND(F195="RIDI SIDI"),"16.65",IF(AND(F195="CENTRAL",E195="DUBAI"),"19",IF(AND(F195="CENTRAL",E195="JEBEL ALI"),"21",IF(AND(F195="AL RAWASI"),"16.65",IF(AND(F195="AL NAKHEEL"),"16.65",IF(AND(F195="WB"),"22.60",IF(AND(F195="AL BARRAK",E195="DUCON"),"21.97",IF(AND(F195="AL KAWTHER",E195="DUCON"),"21.97",IF(AND(F195="AL KAWTHER"),"22.5",IF(AND(F195="AL FUTTAIM",E195="JEBEL ALI"),"8.75",IF(AND(F195="AL FUTTAIM",E195="MAFRAQ"),"16",IF(AND(F195="AL FUTTAIM",E195="AL QUOZ"),"7.70",IF(AND(F195="AL FUTTAIM",E195="MUSSAFAH"),"16.90",IF(AND(F195="AL FUTTAIM",E195="NAD AL SHEBA"),"8.50",IF(AND(F195="AL FUTTAIM",E195="MAHAWI"),"16.90",IF(AND(F195="AL RAWDA",E195="MADAM"),"24.50",))))))))))))))))) -> 16 | J195: =IF(H195="","",I195*H195) -> 1249.92
B196: 2019-03-15 | C196: 40223 | D196: 142819 | E196: AL QUOZ | F196: AL FUTTAIM | G196: Road base | H196: 77.92 | I196: 7.70 | J196: 599.984
B197: 2019-03-16 | C197: 40223 | D197: 2216043 | E197: Cement Factory | F197: AL RAWASI | G197: Road base | H197: 82.44 | I197: 16.65 | J197: 1372.626
B198: 2019-03-16 | C198: 40223 | D198: 142874 | E198: JEBEL ALI | F198: AL FUTTAIM | G198: Road base | H198: 74.86 | I198: 8.75 | J198: 655.025
C199: 40223 | E199: JEBEL ALI | F199: AL FUTTAIM | G199: Road base
C200: 40223 | E200: AL QUOZ | F200: AL FUTTAIM | G200: Road base
C201: 40223 | E201: AL QUOZ | F201: AL FUTTAIM | G201: Road base
C202: 40223 | E202: MAFRAQ | F202: AL FUTTAIM | G202: Road base
C203: 40223 | E203: AL QUOZ | F203: AL FUTTAIM | G203: Road base
C204: 40223 | E204: MAFRAQ | F204: AL FUTTAIM | G204: Road base
... 615 more rows
